Fondo / Fund;Codice locale progetto / Local identifier of operation;Codice Unico Progetto / Unique project code;Codice fiscale Beneficiario / Beneficiary fiscal code;Nome Beneficiario / Beneficiary name;Denominazione operazione / Operation name;Sintesi operazione / Operation summary;Data inizio operazione / Operation start date;Data fine operazione / Operation end date;Spesa ammissibile / Eligible expenditure;Tasso di cofinanziamento UE / EU co?financing rate;CAP / Postcode;Comune / Town;Provincia / Province;Regione / Region;Paese / Country;Categoria di operazione / Category of intervention;Data aggiornamento elenco operazioni / Date of last update of the list of operations
FSE;38841;H39J15001710009;02705030233;C.P. PER LA FORMAZIONE LA SICUREZZA ED I SERVIZI AL LAVORO DI VERONA ESEV CPT;INTERVENTO DI RIQUALIFICAZIONE COOPERATIVA SAN MICHELE;INTERVENTO DI RIQUALIFICAZIONE COOPERATIVA SAN MICHELE;06/08/2015;16/11/2017;22.976,00;0,50;37100;VERONA;VERONA;VENETO;ITALIA;Adattamento al cambiamento da parte di lavoratori, imprese e imprenditori;30/06/2018
FSE;38842;H39J15001700009;02449180237;E.NA.C. ENTE NAZIONALE  CANOSSIANO;Percorsi di riqualificazione e outplacement nella Provincia di Verona;Percorsi di riqualificazione e outplacement nella Provincia di Verona;31/07/2015;18/06/2018;110.420,00;0,50;37100;VERONA;VERONA;VENETO;ITALIA;Adattamento al cambiamento da parte di lavoratori, imprese e imprenditori;30/06/2018
FSE;38843;H29J15000780009;03266230279;APINDUSTRIA SERVIZI SRL;PROGETTO DI RIQUALIFICAZIONE PER L'AZIENDA TECNOGRONDE S.N.C;PROGETTO DI RIQUALIFICAZIONE PER L'AZIENDA TECNOGRONDE S.N.C;04/08/2015;17/10/2017;17.216,00;0,50;31100:::31030;TREVISO:::CARBONERA;TREVISO;VENETO;ITALIA;Adattamento al cambiamento da parte di lavoratori, imprese e imprenditori;30/06/2018
FSE;38844;H79J15001940009;13081080155;ADECCO FORMAZIONE SRL;Formazione per una migliore occupabilit� dei lavoratori ISC;Formazione per una migliore occupabilit� dei lavoratori ISC;23/07/2015;19/12/2017;109.576,00;0,50;30100;VENEZIA;VENEZIA;VENETO;ITALIA;Adattamento al cambiamento da parte di lavoratori, imprese e imprenditori;30/06/2018
FSE;38845;H39J15001720009;13081080155;ADECCO FORMAZIONE SRL;IL CAMBIAMENTO CHE DIVENTA OPPORTUNITA': AZIONI DI OUTPLACEMENT PER LA CONTINUITA' OCCUPAZIONALE;IL CAMBIAMENTO CHE DIVENTA OPPORTUNITA': AZIONI DI OUTPLACEMENT PER LA CONTINUITA' OCCUPAZIONALE;29/07/2015;19/12/2017;33.236,00;0,50;37100;VERONA;VERONA;VENETO;ITALIA;Adattamento al cambiamento da parte di lavoratori, imprese e imprenditori;30/06/2018
FSE;38846;H49J15001250009;03082810262;UOMO E IMPRESA S.R.L.;Progetto di riqualificazione Professionale e Reimpiego di lavoratori in Cassa Integrazione Straordinaria provenienti dall'azienda Selco Srl;Progetto di riqualificazione Professionale e Reimpiego di lavoratori in Cassa Integrazione Straordinaria provenienti dall'azienda Selco Srl;21/07/2015;26/09/2016;48.704,00;0,50;35100:::35019;PADOVA:::TOMBOLO;PADOVA;VENETO;ITALIA;Adattamento al cambiamento da parte di lavoratori, imprese e imprenditori;30/06/2018
FSE;38847;H39J15001690009;11947650153;MANPOWER SRL;Percorso di riqualificazione e outplacement per lavoratori Symbol srl;Percorso di riqualificazione e outplacement per lavoratori Symbol srl;21/07/2015;09/10/2017;69.232,00;0,50;37100;VERONA;VERONA;VENETO;ITALIA;Adattamento al cambiamento da parte di lavoratori, imprese e imprenditori;30/06/2018
FSE;38848;H69J15001960009;12730090151;RANDSTAD ITALIA SPA;READY TO GO: ACQUISIRE NUOVE COMPETENZE PER RIPARTIRE NEL MONDO DEL LAVORO;READY TO GO: ACQUISIRE NUOVE COMPETENZE PER RIPARTIRE NEL MONDO DEL LAVORO;21/07/2015;29/02/2016;38.808,00;0,50;31100:::31015;TREVISO:::CONEGLIANO;TREVISO;VENETO;ITALIA;Adattamento al cambiamento da parte di lavoratori, imprese e imprenditori;30/06/2018
FSE;38849;H39J15001670009;90019220277;FEDERAZIONE CNOS/FAP - VENETO;PERCORSO DI RIQUALIFICAZIONE E OUTPLACEMENT PER LAVORATORI SYMBOL S.R.L - PROGETTO 1;PERCORSO DI RIQUALIFICAZIONE E OUTPLACEMENT PER LAVORATORI SYMBOL S.R.L - PROGETTO 1;24/07/2015;26/09/2016;63.232,00;0,50;37100;VERONA;VERONA;VENETO;ITALIA;Adattamento al cambiamento da parte di lavoratori, imprese e imprenditori;30/06/2018
FSE;38850;H39J15001680009;02429800242;FONDAZIONE CENTRO PRODUTTIVITA' VENETO;Percorso di outplacement per lavoratori coinvolti nella fabbricazione di prodotti di carpenteria in legno;Percorso di outplacement per lavoratori coinvolti nella fabbricazione di prodotti di carpenteria in legno;24/07/2015;25/05/2018;24.920,00;0,50;36100;VICENZA;VICENZA;VENETO;ITALIA;Adattamento al cambiamento da parte di lavoratori, imprese e imprenditori;30/06/2018
FSE;38881;H89J15001870009;02072890284;CESCOT VENETO CENTRO SVILUPPO COMMERCIO TURISMO E TERZIARIO;#PostMediaMood;#PostMediaMood;20/07/2015;25/05/2018;236.954,00;0,50;32100:::31100:::36100:::37100:::30100:::35100;BELLUNO:::TREVISO:::VICENZA:::VERONA:::VENEZIA:::PADOVA;VENEZIA:::VERONA:::TREVISO:::BELLUNO:::PADOVA:::VICENZA;VENETO;ITALIA;Adattamento al cambiamento da parte di lavoratori, imprese e imprenditori;30/06/2018
FSE;38882;H99J15005260007;02422020285;FOREMA SRL;LEANERSHIP - Azioni per il miglioramento delle performance in azienda;LEANERSHIP - Azioni per il miglioramento delle performance in azienda;14/07/2015;05/10/2017;299.927,50;0,50;35100;PADOVA;PADOVA;VENETO;ITALIA;Adattamento al cambiamento da parte di lavoratori, imprese e imprenditori;30/06/2018
FSE;38883;H49J15001000009;03387580271;FONDAZIONE UNIVERSITA' CA' FOSCARI VENEZIA;INNOVARE IL MARKETING TERRITORIALE DELLO SPORTSYSTEM: MUSEO, RETI, MULTIMEDIALITA' E DESIGN;INNOVARE IL MARKETING TERRITORIALE DELLO SPORTSYSTEM: MUSEO, RETI, MULTIMEDIALITA' E DESIGN;27/07/2015;25/05/2018;207.880,96;0,50;31100:::31044;TREVISO:::MONTEBELLUNA;TREVISO;VENETO;ITALIA;Adattamento al cambiamento da parte di lavoratori, imprese e imprenditori;30/06/2018
FSE;38884;H79J15001870009;02968900239;IMPRESA VERDE VERONA S.R.L.;VenetoRetImprese: valorizzazione e innovazione nel sistema  agroalimentare;VenetoRetImprese: valorizzazione e innovazione nel sistema  agroalimentare;17/08/2015;25/05/2018;218.185,00;0,50;36100:::37100:::45100;VICENZA:::VERONA:::ROVIGO;VERONA:::ROVIGO:::VICENZA;VENETO;ITALIA;Adattamento al cambiamento da parte di lavoratori, imprese e imprenditori;30/06/2018
FSE;38885;H39J15001490009;02760040275;I.N.I.A.P.A. VENETO S. CONSORTILE A R.L.;KNOW-NET: Knowledge Networking in Tourism. Pmi Venete in rete per una crescita intelligente, sostenibile ed inclusiva del settore turismo, ristorazione e sviluppo del territorio;KNOW-NET: Knowledge Networking in Tourism. Pmi Venete in rete per una crescita intelligente, sostenibile ed inclusiva del settore turismo, ristorazione e sviluppo del territorio;16/07/2015;16/02/2018;287.613,76;0,50;32100:::31100:::36100:::37100:::30100:::35100:::45100;BELLUNO:::TREVISO:::VICENZA:::VERONA:::VENEZIA:::PADOVA:::ROVIGO;VENEZIA:::VERONA:::TREVISO:::ROVIGO:::BELLUNO:::PADOVA:::VICENZA;VENETO;ITALIA;Adattamento al cambiamento da parte di lavoratori, imprese e imprenditori;30/06/2018
FSE;38886;H39J15001480009;02429800242;FONDAZIONE CENTRO PRODUTTIVITA' VENETO;Interventi di condivisione e aggiornamento per responsabili del controllo e della misurazione delle prestazioni aziendali;Interventi di condivisione e aggiornamento per responsabili del controllo e della misurazione delle prestazioni aziendali;05/08/2015;13/11/2017;104.061,48;0,50;36100;VICENZA;VICENZA;VENETO;ITALIA;Adattamento al cambiamento da parte di lavoratori, imprese e imprenditori;30/06/2018
FSE;38887;H59J15001090009;02499420277;SIVE FORMAZIONE SRL;COOPERARE PER CRESCERE: le aziende venete della filiera turistica in rete per la competitivit�;COOPERARE PER CRESCERE: le aziende venete della filiera turistica in rete per la competitivit�;28/07/2015;14/03/2018;297.566,00;0,50;31100:::36100:::30100:::35100;TREVISO:::VICENZA:::VENEZIA:::PADOVA;VENEZIA:::TREVISO:::PADOVA:::VICENZA;VENETO;ITALIA;Adattamento al cambiamento da parte di lavoratori, imprese e imprenditori;30/06/2018
FSE;38888;H49J15001080009;02301900268;UNINDUSTRIA TREVISO SERVIZI & FORMAZIONE SCARL;METODOLOGIE E STRUMENTI PER FAVORIRE COOPERAZIONE E COMPETITIVITA' DEL SETTORE MOBILE E ARREDO;METODOLOGIE E STRUMENTI PER FAVORIRE COOPERAZIONE E COMPETITIVITA' DEL SETTORE MOBILE E ARREDO;05/08/2015;25/05/2018;120.372,65;0,50;31100;TREVISO;TREVISO;VENETO;ITALIA;Adattamento al cambiamento da parte di lavoratori, imprese e imprenditori;30/06/2018
FSE;38889;H89J15001900009;00927360255;META' LOGOS;Export manager: figura chiave della ripresa;Export manager: figura chiave della ripresa;16/07/2015;09/06/2017;129.292,00;0,50;32100:::31100:::36100:::32010:::30100:::35100:::45100;BELLUNO:::TREVISO:::VICENZA:::PIEVE D'ALPAGO:::VENEZIA:::PADOVA:::ROVIGO;VENEZIA:::TREVISO:::ROVIGO:::BELLUNO:::PADOVA:::VICENZA;VENETO;ITALIA;Adattamento al cambiamento da parte di lavoratori, imprese e imprenditori;30/06/2018
FSE;38890;H29J15000740009;02422020285;FOREMA SRL;Strategie di sviluppo internazionale in Aercomponents;Strategie di sviluppo internazionale in Aercomponents;14/07/2015;03/03/2017;20.992,00;0,50;35100:::35020;PADOVA:::LEGNARO;PADOVA;VENETO;ITALIA;Adattamento al cambiamento da parte di lavoratori, imprese e imprenditori;30/06/2018
FSE;38891;H49J15001010009;02301900268;UNINDUSTRIA TREVISO SERVIZI & FORMAZIONE SCARL;INTERNAZIONALIZZARE LA FILIERA TESSILE-ABBIGLIAMENTO VENETA;INTERNAZIONALIZZARE LA FILIERA TESSILE-ABBIGLIAMENTO VENETA;13/07/2015;01/06/2017;26.560,00;0,50;31100;TREVISO;TREVISO;VENETO;ITALIA;Adattamento al cambiamento da parte di lavoratori, imprese e imprenditori;30/06/2018
FSE;38892;H99J15002340009;01910030269;I.S.C.O. S.C.;Tecnologie innovative per l'uso dell'ozono nella depurazione in contesti civili e industriali;Tecnologie innovative per l'uso dell'ozono nella depurazione in contesti civili e industriali;13/07/2015;11/05/2017;14.600,00;0,50;35100;PADOVA;PADOVA;VENETO;ITALIA;Adattamento al cambiamento da parte di lavoratori, imprese e imprenditori;30/06/2018
FSE;38893;H49J15001130009;00681190278;ISFID PRISMA SOCIETA'  COOPERATIVA;Produzione attrezzature a pressione - Innovazione di processo;Produzione attrezzature a pressione - Innovazione di processo;23/07/2015;03/03/2017;15.344,00;0,50;31100:::31044;TREVISO:::MONTEBELLUNA;TREVISO;VENETO;ITALIA;Adattamento al cambiamento da parte di lavoratori, imprese e imprenditori;30/06/2018
FSE;38894;H39J15001440009;01856980246;CESAR SRL;Eccellenza  internazionale dellabitare italiano Casa & Co per consorzio Fenestra Veneta;Eccellenza  internazionale dellabitare italiano Casa & Co per consorzio Fenestra Veneta;21/07/2015;24/05/2017;29.742,00;0,50;36100;VICENZA;VICENZA;VENETO;ITALIA;Adattamento al cambiamento da parte di lavoratori, imprese e imprenditori;30/06/2018
FSE;38895;H69J15001800009;03323150288;KORO SRL;GREEN ECONOMY: UNA LEVA PER L'INCREMENTO DEL BUSINESS ALBERGHIERO;GREEN ECONOMY: UNA LEVA PER L'INCREMENTO DEL BUSINESS ALBERGHIERO;10/07/2015;09/08/2017;14.248,00;0,50;35036:::35100;MONTEGROTTO TERME:::PADOVA;PADOVA;VENETO;ITALIA;Adattamento al cambiamento da parte di lavoratori, imprese e imprenditori;30/06/2018
FSE;38896;H29J15000750009;00790870257;CERTOTTICA S.C.A.R.L.;Sviluppo di nuovi prodotti e rinnovamento nei servizi dellazienda Carus;Sviluppo di nuovi prodotti e rinnovamento nei servizi dellazienda Carus;20/07/2015;01/11/2017;11.821,84;0,50;32100:::32020;BELLUNO:::LIMANA;BELLUNO;VENETO;ITALIA;Adattamento al cambiamento da parte di lavoratori, imprese e imprenditori;30/06/2018
FSE;38897;H79J15001710009;01171060294;E-CONS S.R.L;Innovazione di processo in una PMI del settore metalmeccanico: CORINAI S.r.l.;Innovazione di processo in una PMI del settore metalmeccanico: CORINAI S.r.l.;13/07/2015;03/03/2017;14.516,00;0,50;45011:::45100;ADRIA:::ROVIGO;ROVIGO;VENETO;ITALIA;Adattamento al cambiamento da parte di lavoratori, imprese e imprenditori;30/06/2018
FSE;38898;H99J15002290009;02700760248;RISORSE IN CRESCITA S.R.L.;Nuove strategie di Marketing in Centro Servizi Auto Rasotto;Nuove strategie di Marketing in Centro Servizi Auto Rasotto;20/07/2015;16/02/2017;35.752,00;0,50;36100:::36031;VICENZA:::DUEVILLE;VICENZA;VENETO;ITALIA;Adattamento al cambiamento da parte di lavoratori, imprese e imprenditori;30/06/2018
FSE;38899;H89J15002040009;00215820259;REVIVISCAR S.R.L.;Strategie di marketing digitale in Trevi Coliseum;Strategie di marketing digitale in Trevi Coliseum;20/07/2015;07/03/2017;15.184,00;0,50;32100;BELLUNO;BELLUNO;VENETO;ITALIA;Adattamento al cambiamento da parte di lavoratori, imprese e imprenditori;30/06/2018
FSE;38900;H39J15001600009;00215820259;REVIVISCAR S.R.L.;Utilizzo dei nuovi media in un'azienda B2B: innovazione comunicativa in ECS;Utilizzo dei nuovi media in un'azienda B2B: innovazione comunicativa in ECS;20/07/2015;07/03/2017;13.576,00;0,50;32100;BELLUNO;BELLUNO;VENETO;ITALIA;Adattamento al cambiamento da parte di lavoratori, imprese e imprenditori;30/06/2018
FSE;38901;H49J15001060009;03824150282;EDUFORMA SRL;La valorizzazione del nuovo prodotto di @BC NETWORK;La valorizzazione del nuovo prodotto di @BC NETWORK;23/07/2015;01/03/2017;18.763,28;0,50;35100:::35043;PADOVA:::MONSELICE;PADOVA;VENETO;ITALIA;Adattamento al cambiamento da parte di lavoratori, imprese e imprenditori;30/06/2018
FSE;38902;H89J15002020009;02793590270;CO.GE.S.  DON LORENZO MILANI SOCIETA' COOPERATIVA SOCIALE;Ricerca ed innovazione per potenziare la strategia di internazionalizzazione di O.C.L.L.;Ricerca ed innovazione per potenziare la strategia di internazionalizzazione di O.C.L.L.;20/07/2015;04/07/2017;23.280,00;0,50;35010:::35100;VILLANOVA DI CAMPOSAMPIERO:::PADOVA;PADOVA;VENETO;ITALIA;Adattamento al cambiamento da parte di lavoratori, imprese e imprenditori;30/06/2018
FSE;38903;H49J15000960009;04332880287;ADATTA SRL;BUSINESS PROCESS REENGINEERING dei processi fondamentali attraverso l'uso di tecniche e strumenti LEAN;BUSINESS PROCESS REENGINEERING dei processi fondamentali attraverso l'uso di tecniche e strumenti LEAN;22/07/2015;20/02/2017;32.240,00;0,50;31100:::31044;TREVISO:::MONTEBELLUNA;TREVISO;VENETO;ITALIA;Adattamento al cambiamento da parte di lavoratori, imprese e imprenditori;30/06/2018
FSE;38904;H89J15002030009;00229240288;FILA INDUSTRIA CHIMICA SPA;STRUMENTI E COMPETENZE A SUPPORTO DELLA STRATEGIA DI INTERNAZIONALIZZAZIONE DI FILA INDUSTRIA CHIMICA;STRUMENTI E COMPETENZE A SUPPORTO DELLA STRATEGIA DI INTERNAZIONALIZZAZIONE DI FILA INDUSTRIA CHIMICA;28/07/2015;04/07/2017;69.684,00;0,50;35018:::35100;SAN MARTINO DI LUPARI:::PADOVA;PADOVA;VENETO;ITALIA;Adattamento al cambiamento da parte di lavoratori, imprese e imprenditori;30/06/2018
FSE;38905;H99J15002170009;04412120265;ELLEA CONSULENZA DIREZIONALE S.N.C.;Competere tramite l'organizzazione: modelli innovativi per la crescita;Competere tramite l'organizzazione: modelli innovativi per la crescita;13/07/2015;01/03/2017;69.048,00;0,50;31100:::31056;TREVISO:::RONCADE;TREVISO;VENETO;ITALIA;Adattamento al cambiamento da parte di lavoratori, imprese e imprenditori;30/06/2018
FSE;38906;H49J15001100009;10577360158;PERFORMA S.R.L.;OPERARE PER PROCESSI;OPERARE PER PROCESSI;14/07/2015;27/02/2017;18.536,00;0,50;37100:::37045;VERONA:::LEGNAGO;VERONA;VENETO;ITALIA;Adattamento al cambiamento da parte di lavoratori, imprese e imprenditori;30/06/2018
FSE;38907;H99J15002250009;80037180280;IRECOOP VENETO-ISTITUTO REGIONALE PER L'EDUCAZIONE- STUDI COOP. ASS.RICONOSCIUTI;LEAN ORGANIZATION E LEAN PRODUCTION PER LA RISTORAZIONE;LEAN ORGANIZATION E LEAN PRODUCTION PER LA RISTORAZIONE;31/07/2015;18/07/2017;34.902,00;0,50;35100;PADOVA;PADOVA;VENETO;ITALIA;Adattamento al cambiamento da parte di lavoratori, imprese e imprenditori;30/06/2018
FSE;38908;H39J15001520009;03285640268;MILANI S.R.L.;MILANI FASHION & GLOBAL;MILANI FASHION & GLOBAL;04/08/2015;01/11/2017;29.885,93;0,50;30100:::30020;VENEZIA:::MEOLO;VENEZIA;VENETO;ITALIA;Adattamento al cambiamento da parte di lavoratori, imprese e imprenditori;30/06/2018
FSE;38909;H89J15002680007;13282360158;SVILUPPO FORMAZIONE S.C. A R.L.;Sistema di progettazione in modalit� Cost Reduction per BNP;Sistema di progettazione in modalit� Cost Reduction per BNP;20/07/2015;28/02/2017;32.800,00;0,50;35013:::35100;CITTADELLA:::PADOVA;PADOVA;VENETO;ITALIA;Adattamento al cambiamento da parte di lavoratori, imprese e imprenditori;30/06/2018
FSE;38910;H39J15001400009;Individuo;Individuo;Brand relevance: VERSO UN MARKETING INNOVATIVO;Brand relevance: VERSO UN MARKETING INNOVATIVO;20/07/2015;03/03/2017;12.896,00;0,50;37053:::37100;CEREA:::VERONA;VERONA;VENETO;ITALIA;Adattamento al cambiamento da parte di lavoratori, imprese e imprenditori;30/06/2018
FSE;38921;H19J15000820009;00768450678;GENESIS SRL;CONOSCENZE E TECNICHE DI INTERNAZIONALIZZAZIONE COME PORTA DI ACCESSO A  NUOVI MERCATI;CONOSCENZE E TECNICHE DI INTERNAZIONALIZZAZIONE COME PORTA DI ACCESSO A  NUOVI MERCATI;31/08/2015;26/05/2017;12.134,56;0,50;35010:::35100;CADONEGHE:::PADOVA;PADOVA;VENETO;ITALIA;Adattamento al cambiamento da parte di lavoratori, imprese e imprenditori;30/06/2018
FSE;38922;H29J15000700009;02645700242;FONDAZIONE CUOA - CENTRO UNIVERSITARIO ORGANIZZAZIONE AZIENDALE;LEAN BUILDING: migliorare i processi per aumentare la competitivit�;LEAN BUILDING: migliorare i processi per aumentare la competitivit�;27/07/2015;23/05/2017;58.520,00;0,50;36100:::36077:::35100;VICENZA:::ALTAVILLA VICENTINA:::PADOVA;PADOVA:::VICENZA;VENETO;ITALIA;Adattamento al cambiamento da parte di lavoratori, imprese e imprenditori;30/06/2018
FSE;38923;H69J15001880009;02495270270;KAIROS S.P.A.;Prodeco punta sui mercati internazionali per crescere;Prodeco punta sui mercati internazionali per crescere;10/07/2015;05/07/2017;26.888,00;0,50;31100:::31033;TREVISO:::CASTELFRANCO VENETO;TREVISO;VENETO;ITALIA;Adattamento al cambiamento da parte di lavoratori, imprese e imprenditori;30/06/2018
FSE;38924;H89J15001920009;01659800278;CONFINDUSTRIA VENETO SIAV S.P.A.;INNOVARE I PROCESSI NELLA MANIFATTURA: tecnologie, organizzazione, skills;INNOVARE I PROCESSI NELLA MANIFATTURA: tecnologie, organizzazione, skills;23/07/2015;15/05/2017;69.981,00;0,50;31100:::36100:::37100:::30100:::35100;TREVISO:::VICENZA:::VERONA:::VENEZIA:::PADOVA;VENEZIA:::VERONA:::TREVISO:::PADOVA:::VICENZA;VENETO;ITALIA;Adattamento al cambiamento da parte di lavoratori, imprese e imprenditori;30/06/2018
FSE;38925;H39J15001560009;02794810230;FO.CA.VER. - CONSORZIO DI FORMAZIONE DEL DISTRETTO CALZATURIERO VERONESE;Ottimizzazione dei processi aziendali in ottica lean;Ottimizzazione dei processi aziendali in ottica lean;16/07/2015;01/03/2017;56.774,00;0,50;37100;VERONA;VERONA;VENETO;ITALIA;Adattamento al cambiamento da parte di lavoratori, imprese e imprenditori;30/06/2018
FSE;38926;H99J15002160009;02615820285;C.C.S. CONSORZIO COOPERATIVE SOCIALI;COMPARTO DELLA MECCANICA HI-TECH: L'APPROCCIO AI MERCATI ESTERI COME FATTORE COMPETITIVO;COMPARTO DELLA MECCANICA HI-TECH: L'APPROCCIO AI MERCATI ESTERI COME FATTORE COMPETITIVO;11/08/2015;01/03/2017;24.460,00;0,50;35020:::35100;BRUGINE:::PADOVA;PADOVA;VENETO;ITALIA;Adattamento al cambiamento da parte di lavoratori, imprese e imprenditori;30/06/2018
FSE;38927;H79J15003370009;00494610249;CAMINETTI MONTEGRAPPA S.P.A.;Dalla produzione all'impresa snella Lean Accounting;Dalla produzione all'impresa snella Lean Accounting;12/08/2015;27/02/2017;30.240,00;0,50;36100:::36020;VICENZA:::POVE DEL GRAPPA;VICENZA;VENETO;ITALIA;Adattamento al cambiamento da parte di lavoratori, imprese e imprenditori;30/06/2018
FSE;38928;H59J15001110009;01110090295;AD CONSULTING S.R.L.;LA CULTURA DELLA LEAN ORGANIZATION E DELLA LEAN PRODUCTION IN NUOVA LOFRA;LA CULTURA DELLA LEAN ORGANIZATION E DELLA LEAN PRODUCTION IN NUOVA LOFRA;16/07/2015;25/07/2017;15.744,00;0,50;35038:::35100;TORREGLIA:::PADOVA;PADOVA;VENETO;ITALIA;Adattamento al cambiamento da parte di lavoratori, imprese e imprenditori;30/06/2018
FSE;38929;H19J15000850009;01110090295;AD CONSULTING S.R.L.;La filosofia Lean per ridurre gli sprechi ed ottimizzare l'organizzazione in un'azienda di servizi;La filosofia Lean per ridurre gli sprechi ed ottimizzare l'organizzazione in un'azienda di servizi;16/07/2015;18/08/2017;13.120,00;0,50;45100;ROVIGO;ROVIGO;VENETO;ITALIA;Adattamento al cambiamento da parte di lavoratori, imprese e imprenditori;30/06/2018
FSE;38930;H69J15001790009;01742990243;ISTITUTO DI PROGRAMMAZIONE E ORGANIZZAZIONE DELLO SVILUPPO TERRITORIALE - POSTER;Ciclo di vita sostenibile e nuovi modelli di business consapevoli in GPG srl;Ciclo di vita sostenibile e nuovi modelli di business consapevoli in GPG srl;03/08/2015;01/11/2017;24.298,00;0,50;35020:::35100;ALBIGNASEGO:::PADOVA;PADOVA;VENETO;ITALIA;Adattamento al cambiamento da parte di lavoratori, imprese e imprenditori;30/06/2018
FSE;38931;H49J15001090009;03541060269;G.I.F. SCARL GRUPPO INSEGNANTI FORMATORI;Make to Order ed Engeneer to order: innovazione di processo nell'azienda manifatturiera del settore legno arredo;Make to Order ed Engeneer to order: innovazione di processo nell'azienda manifatturiera del settore legno arredo;13/07/2015;27/02/2017;32.240,00;0,50;31100:::31040;TREVISO:::MANSUE';TREVISO;VENETO;ITALIA;Adattamento al cambiamento da parte di lavoratori, imprese e imprenditori;30/06/2018
FSE;38932;H49J15001030009;03824150282;EDUFORMA SRL;Innovazione degli strumenti e canali di vendita online in MARTON DIVISION;Innovazione degli strumenti e canali di vendita online in MARTON DIVISION;23/07/2015;14/09/2017;18.118,93;0,50;31100:::31050;TREVISO:::VILLORBA;TREVISO;VENETO;ITALIA;Adattamento al cambiamento da parte di lavoratori, imprese e imprenditori;30/06/2018
FSE;38933;H59J15001210009;00327010286;BALLAN S.P.A.;Strategie operative e strumenti aziendali di internazionalizzazione d'impresa;Strategie operative e strumenti aziendali di internazionalizzazione d'impresa;28/07/2015;01/03/2017;44.240,00;0,50;35010:::35100;VILLA DEL CONTE:::PADOVA;PADOVA;VENETO;ITALIA;Adattamento al cambiamento da parte di lavoratori, imprese e imprenditori;30/06/2018
FSE;38934;H29J15000720009;01147330284;CRIOCABIN S.P.A.;MANAGEMENT E POLICY DELLA LOGISTICA INTEGRATA;MANAGEMENT E POLICY DELLA LOGISTICA INTEGRATA;04/08/2015;28/02/2017;29.550,00;0,50;35037:::35100;TEOLO:::PADOVA;PADOVA;VENETO;ITALIA;Adattamento al cambiamento da parte di lavoratori, imprese e imprenditori;30/06/2018
FSE;38935;H49J15001070009;03612280267;PIANETA FORMAZIONE SRL SOCIETA' UNIPERSONALE;Lean thinking: la gestione delle commesse di cantiere in un'ottica di ottimizzazione delle performance aziendali;Lean thinking: la gestione delle commesse di cantiere in un'ottica di ottimizzazione delle performance aziendali;10/07/2015;04/05/2018;17.763,72;0,50;31100:::31050;TREVISO:::VILLORBA;TREVISO;VENETO;ITALIA;Adattamento al cambiamento da parte di lavoratori, imprese e imprenditori;30/06/2018
FSE;38936;H39J15001540009;09864900015;SOGES SPA;New Production Rancan;New Production Rancan;03/08/2015;13/12/2016;11.808,00;0,50;36100;VICENZA;VICENZA;VENETO;ITALIA;Adattamento al cambiamento da parte di lavoratori, imprese e imprenditori;30/06/2018
FSE;38937;H79J15001680009;80002410233;ISPETTORIA SALESIANA SAN ZENO;APPLICARE LA BLUE ECONOMY IN AZIENDA;APPLICARE LA BLUE ECONOMY IN AZIENDA;27/07/2015;27/06/2017;10.075,00;0,50;37100:::37041;VERONA:::ALBAREDO D'ADIGE;VERONA;VENETO;ITALIA;Adattamento al cambiamento da parte di lavoratori, imprese e imprenditori;30/06/2018
FSE;38938;H89J15001930009;02888500242;CERAMICHE MAROSO S.N.C.;INTRODUZIONE DELLA TECNOLOGIA DI STAMPA 3D IN UN'AZIENDA CERAMICA DI NOVE PER INNOVARE IL PROCESSO DI PRODUZIONE;INTRODUZIONE DELLA TECNOLOGIA DI STAMPA 3D IN UN'AZIENDA CERAMICA DI NOVE PER INNOVARE IL PROCESSO DI PRODUZIONE;20/07/2015;10/07/2017;45.856,93;0,50;36100:::36055;VICENZA:::NOVE;VICENZA;VENETO;ITALIA;Adattamento al cambiamento da parte di lavoratori, imprese e imprenditori;30/06/2018
FSE;38939;H49J15001040009;03559900240;GSC GROUP S.P.A.;La Lean organisation per il miglioramento delle performance aziendali;La Lean organisation per il miglioramento delle performance aziendali;27/07/2015;03/03/2017;24.928,00;0,50;36100:::36054;VICENZA:::MONTEBELLO VICENTINO;VICENZA;VENETO;ITALIA;Adattamento al cambiamento da parte di lavoratori, imprese e imprenditori;30/06/2018
FSE;38940;H69J15001840009;00376770285;BREGA SRL;NUOVE SOLUZIONI PER I PROCESSI AZIENDALI IN BREGA;NUOVE SOLUZIONI PER I PROCESSI AZIENDALI IN BREGA;29/07/2015;15/03/2017;18.120,00;0,50;35100:::35030;PADOVA:::CERVARESE SANTA CROCE;PADOVA;VENETO;ITALIA;Adattamento al cambiamento da parte di lavoratori, imprese e imprenditori;30/06/2018
FSE;38941;H89J15001910009;92042920287;E.F.A. ENTE DI FORMAZIONE ARTIGIANA;FORMAZIONE PER LA MESSA A PUNTO DI UN NUOVO PRODOTTO: IL TURBO SEDIMENTATORE;FORMAZIONE PER LA MESSA A PUNTO DI UN NUOVO PRODOTTO: IL TURBO SEDIMENTATORE;20/07/2015;27/02/2017;17.360,00;0,50;36100:::36040;VICENZA:::GRISIGNANO DI ZOCCO;VICENZA;VENETO;ITALIA;Adattamento al cambiamento da parte di lavoratori, imprese e imprenditori;30/06/2018
FSE;38942;H89J15002060009;04752190282;SONAR ITALIA S.R.L.;Sviluppo di App innovative su cloud per la gestione del business;Sviluppo di App innovative su cloud per la gestione del business;27/08/2015;04/08/2017;16.813,12;0,50;35030:::35100;SELVAZZANO DENTRO:::PADOVA;PADOVA;VENETO;ITALIA;Adattamento al cambiamento da parte di lavoratori, imprese e imprenditori;30/06/2018
FSE;38943;H89J15002050009;00245570288;CONTINENTAL S.R.L.;Strumenti per migliorare l'approccio ai mercati internazionali e la competitivit� dell'impresa in Brasile e negli Emirati Arabi;Strumenti per migliorare l'approccio ai mercati internazionali e la competitivit� dell'impresa in Brasile e negli Emirati Arabi;20/07/2015;18/10/2017;19.886,00;0,50;35030:::35100;SELVAZZANO DENTRO:::PADOVA;PADOVA;VENETO;ITALIA;Adattamento al cambiamento da parte di lavoratori, imprese e imprenditori;30/06/2018
FSE;38944;H29J15000810007;04680920289;GALATO S.R.L.;Il cliente quale focus dell'organizzazione dalla comunicazione all'approccio all'acquisizione alla realizzazione e alla gestione attraverso efficaci ed efficienti strategie di marketing;Il cliente quale focus dell'organizzazione dalla comunicazione all'approccio all'acquisizione alla realizzazione e alla gestione attraverso efficaci ed efficienti strategie di marketing;05/08/2015;27/02/2017;11.590,00;0,50;35100:::35011;PADOVA:::CAMPODARSEGO;PADOVA;VENETO;ITALIA;Adattamento al cambiamento da parte di lavoratori, imprese e imprenditori;30/06/2018
FSE;38945;H39J15001510009;02566530248;M.GB. S.R.L.;Lean Production in M.GB. S.r.l.;Lean Production in M.GB. S.r.l.;23/07/2015;13/02/2017;20.172,00;0,50;36014:::36100;SANTORSO:::VICENZA;VICENZA;VENETO;ITALIA;Adattamento al cambiamento da parte di lavoratori, imprese e imprenditori;30/06/2018
FSE;38946;H39J15001450009;02508960248;RICOS SRL UNIPERSONALE;Formazione per il miglioramento dei processi commerciali e produttivi;Formazione per il miglioramento dei processi commerciali e produttivi;20/07/2015;28/02/2017;38.296,00;0,50;36060:::36100;PIANEZZE:::VICENZA;VICENZA;VENETO;ITALIA;Adattamento al cambiamento da parte di lavoratori, imprese e imprenditori;30/06/2018
FSE;38947;H69J15001810009;01832950263;FALEGNAMERIA SCHIEVANO S.A.S.;INNOVATIVE MARKETING;INNOVATIVE MARKETING;27/07/2015;18/08/2017;17.720,28;0,50;31023:::31100;RESANA:::TREVISO;TREVISO;VENETO;ITALIA;Adattamento al cambiamento da parte di lavoratori, imprese e imprenditori;30/06/2018
FSE;38948;H59J15001190009;02289210276;ECIPA  SOC. CONS. A.R.L.;STRATEGIE LEAN NEL SETTORE AUTOMOTIVE;STRATEGIE LEAN NEL SETTORE AUTOMOTIVE;23/07/2015;16/02/2017;13.120,00;0,50;36100:::36075;VICENZA:::MONTECCHIO MAGGIORE;VICENZA;VENETO;ITALIA;Adattamento al cambiamento da parte di lavoratori, imprese e imprenditori;30/06/2018
FSE;38949;H79J15001810009;04557230283;IL PRATO PUBLISHING HOUSE SRL;"STRATEGIE DI MARKETING E WEB MARKETING PER LA DIFFUSIONE SUL TERRITORIO DELL'INIZIATIVA EDITORIALE ""PROGETTO RE-CYCLE""";"STRATEGIE DI MARKETING E WEB MARKETING PER LA DIFFUSIONE SUL TERRITORIO DELL'INIZIATIVA EDITORIALE ""PROGETTO RE-CYCLE""";16/07/2015;14/12/2017;23.933,28;0,50;35020:::35100;SAONARA:::PADOVA;PADOVA;VENETO;ITALIA;Adattamento al cambiamento da parte di lavoratori, imprese e imprenditori;30/06/2018
FSE;38950;H99J15002320009;03887590234;EUROPEAN COMFORT S.R.L.;Riorganizzazione delle tecnologie e dei processi aziendali in ottica di internazionalizzazione;Riorganizzazione delle tecnologie e dei processi aziendali in ottica di internazionalizzazione;31/07/2015;21/02/2017;23.112,00;0,50;37014:::37100;CASTELNUOVO DEL GARDA:::VERONA;VERONA;VENETO;ITALIA;Adattamento al cambiamento da parte di lavoratori, imprese e imprenditori;30/06/2018
FSE;38951;H39J15001590009;00417080280;PANDA WOOD S.R.L.;SVILUPPO DI NUOVI PRODOTTI VALORIZZANDO L'ATTIVITA' DI RICERCA DELLE CARATTERISTICHE BIOCOMPATIBILI;SVILUPPO DI NUOVI PRODOTTI VALORIZZANDO L'ATTIVITA' DI RICERCA DELLE CARATTERISTICHE BIOCOMPATIBILI;03/08/2015;26/10/2017;36.848,05;0,50;35100:::35030;PADOVA:::RUBANO;PADOVA;VENETO;ITALIA;Adattamento al cambiamento da parte di lavoratori, imprese e imprenditori;30/06/2018
FSE;38952;H79J15001850009;03548230238;SILMEC ZARDINI S.R.L.;VERSO L'INTERNAZIONALIZZAZIONE: UNA STRATEGIA VINCENTE;VERSO L'INTERNAZIONALIZZAZIONE: UNA STRATEGIA VINCENTE;21/07/2015;08/03/2017;69.200,00;0,50;37100:::37060;VERONA:::SONA;VERONA;VENETO;ITALIA;Adattamento al cambiamento da parte di lavoratori, imprese e imprenditori;30/06/2018
FSE;38953;H99J15002460009;03617820232;POLIVER S.P.A.;Web Marketing for the internationalization of the Poliver;Web Marketing for the internationalization of the Poliver;20/07/2015;01/11/2017;69.960,00;0,50;37100:::37020;VERONA:::DOLCE';VERONA;VENETO;ITALIA;Adattamento al cambiamento da parte di lavoratori, imprese e imprenditori;30/06/2018
FSE;38954;H79J15001760009;03124940234;BILDEX SRL;New marketing nel settore delle energie rinnovabili;New marketing nel settore delle energie rinnovabili;20/07/2015;14/12/2016;13.120,00;0,50;37100:::37060;VERONA:::SONA;VERONA;VENETO;ITALIA;Adattamento al cambiamento da parte di lavoratori, imprese e imprenditori;30/06/2018
FSE;38955;H29J15000680009;01505400281;POLITECNICA 80 SPA;Innovative soluzioni tecnologiche per il miglioramento dei processi e della competitivit� di Politecnica 80 nei mercati internazionali;Innovative soluzioni tecnologiche per il miglioramento dei processi e della competitivit� di Politecnica 80 nei mercati internazionali;30/07/2015;23/11/2017;26.244,00;0,50;35100:::35011;PADOVA:::CAMPODARSEGO;PADOVA;VENETO;ITALIA;Adattamento al cambiamento da parte di lavoratori, imprese e imprenditori;30/06/2018
FSE;38956;H59J15001100009;00083850248;S.E.E.  SRL;Innovare ed ottimizzare  la programmazione della produzione con l'ERP;Innovare ed ottimizzare  la programmazione della produzione con l'ERP;16/07/2015;01/11/2017;27.400,00;0,50;36100:::36028;VICENZA:::ROSSANO VENETO;VICENZA;VENETO;ITALIA;Adattamento al cambiamento da parte di lavoratori, imprese e imprenditori;30/06/2018
FSE;38957;H49J15000980009;02371210283;STIVEN SISTEMI SRL;I modelli organizzativi innovativi a supporto della competitivit� aziendale;I modelli organizzativi innovativi a supporto della competitivit� aziendale;23/07/2015;01/11/2017;10.576,00;0,50;35010:::35100;VIGONZA:::PADOVA;PADOVA;VENETO;ITALIA;Adattamento al cambiamento da parte di lavoratori, imprese e imprenditori;30/06/2018
FSE;38958;H79J15001840009;02813890247;POLI DISTILLERIE SRL;Strumenti di Lean Cost in Poli Distillerie;Strumenti di Lean Cost in Poli Distillerie;20/07/2015;13/03/2017;19.680,00;0,50;36100:::36060;VICENZA:::SCHIAVON;VICENZA;VENETO;ITALIA;Adattamento al cambiamento da parte di lavoratori, imprese e imprenditori;30/06/2018
FSE;38959;H49J15001170009;02698510233;COVIM S.R.L.;Strumenti innovativi per il marketing e il commerciale in Covim srl;Strumenti innovativi per il marketing e il commerciale in Covim srl;22/07/2015;07/07/2017;51.168,00;0,50;37057:::37100;SAN GIOVANNI LUPATOTO:::VERONA;VERONA;VENETO;ITALIA;Adattamento al cambiamento da parte di lavoratori, imprese e imprenditori;30/06/2018
FSE;38960;H59J15001350009;00283650265;CANZIAN FRATELLI SRL;Nuove strategie di diversificazione commerciale  Lingresso nei mercati internazionali attraverso i nuovi prodotti per il rivestimento protettivo dei manufatti  sviluppo e implementazione di soluzioni web marketing;Nuove strategie di diversificazione commerciale  Lingresso nei mercati internazionali attraverso i nuovi prodotti per il rivestimento protettivo dei manufatti  sviluppo e implementazione di soluzioni web marketing;07/08/2015;26/05/2017;24.087,28;0,50;31058:::31100;SUSEGANA:::TREVISO;TREVISO;VENETO;ITALIA;Adattamento al cambiamento da parte di lavoratori, imprese e imprenditori;30/06/2018
FSE;38961;H49J15001120009;01721150264;C.E.V. S.P.A.;Processi di internazionalizzazione  promozione, commercializzazione e vendita attraverso soluzioni e strumenti di web marketing  Innovazione tecnologica e commerciale in un settore tradizionale;Processi di internazionalizzazione  promozione, commercializzazione e vendita attraverso soluzioni e strumenti di web marketing  Innovazione tecnologica e commerciale in un settore tradizionale;30/07/2015;23/11/2017;22.285,28;0,50;31100;TREVISO;TREVISO;VENETO;ITALIA;Adattamento al cambiamento da parte di lavoratori, imprese e imprenditori;30/06/2018
FSE;38962;H99J15002190009;04648350280;RIRI SA;Formazione per l'innovazione di prodotto tramite l'utilizzo di nanotecnologie per i trattamenti superficiali estetici e funzionali;Formazione per l'innovazione di prodotto tramite l'utilizzo di nanotecnologie per i trattamenti superficiali estetici e funzionali;20/07/2015;24/02/2017;16.352,00;0,50;35100;PADOVA;PADOVA;VENETO;ITALIA;Adattamento al cambiamento da parte di lavoratori, imprese e imprenditori;30/06/2018
FSE;38963;H89J15002100009;00541230264;SO.CO.MET. SPA;Advanced Planning & Scheduling in SO.CO.MET S.p.a;Advanced Planning & Scheduling in SO.CO.MET S.p.a;30/07/2015;27/06/2017;54.920,00;0,50;31100:::31040;TREVISO:::NERVESA DELLA BATTAGLIA;TREVISO;VENETO;ITALIA;Adattamento al cambiamento da parte di lavoratori, imprese e imprenditori;30/06/2018
FSE;38964;H49J15001140009;02301900268;UNINDUSTRIA TREVISO SERVIZI & FORMAZIONE SCARL;STRATEGIE COMMERCIALI E DI MARKETING:VALORIZZAZIONE DELLE COMPETENZE;STRATEGIE COMMERCIALI E DI MARKETING:VALORIZZAZIONE DELLE COMPETENZE;22/07/2015;02/03/2018;53.508,00;0,50;31100;TREVISO;TREVISO;VENETO;ITALIA;Adattamento al cambiamento da parte di lavoratori, imprese e imprenditori;30/06/2018
FSE;38965;H99J15002230009;02645700242;FONDAZIONE CUOA - CENTRO UNIVERSITARIO ORGANIZZAZIONE AZIENDALE;LEAN & FINANCE - Ripensare i processi finance per generare valore per il cliente ed eliminare gli sprechi;LEAN & FINANCE - Ripensare i processi finance per generare valore per il cliente ed eliminare gli sprechi;27/07/2015;23/08/2017;68.672,00;0,50;31100:::36100:::37100:::36077:::35100;TREVISO:::VICENZA:::VERONA:::ALTAVILLA VICENTINA:::PADOVA;VERONA:::TREVISO:::PADOVA:::VICENZA;VENETO;ITALIA;Adattamento al cambiamento da parte di lavoratori, imprese e imprenditori;30/06/2018
FSE;38966;H19J15000910009;00589040245;ATHENA S.P.A.;Una fabbrica a 0 emissioni � possibile;Una fabbrica a 0 emissioni � possibile;07/08/2015;01/03/2017;43.924,00;0,50;36100:::36040;VICENZA:::ALONTE;VICENZA;VENETO;ITALIA;Adattamento al cambiamento da parte di lavoratori, imprese e imprenditori;30/06/2018
FSE;38967;H39J15001460009;00534400254;CENTRO CONSORZI;Green economy: costruire e restaurare secondo modelli sostenibili;Green economy: costruire e restaurare secondo modelli sostenibili;28/07/2015;07/03/2017;12.400,00;0,50;36100:::36030;VICENZA:::ZUGLIANO;VICENZA;VENETO;ITALIA;Adattamento al cambiamento da parte di lavoratori, imprese e imprenditori;30/06/2018
FSE;38968;H29J15000770009;01412250290;PARENTE FIREWORKS GROUP SRL;tecnologia, organizzazione e logistica per il miglioramento dello spettacolo pirotecnico;tecnologia, organizzazione e logistica per il miglioramento dello spettacolo pirotecnico;09/09/2015;30/03/2018;31.231,00;0,50;45037:::45100;MELARA:::ROVIGO;ROVIGO;VENETO;ITALIA;Adattamento al cambiamento da parte di lavoratori, imprese e imprenditori;30/06/2018
FSE;38969;H39J15001410009;00768450678;GENESIS SRL;"CANALI DI VENDITA INNOVATIVI PER IL LANCIO DI UN NUOVO PRODOTTO: DALLA VENDITA DIRETTA ALLA VENDITA ""SOCIAL""";"CANALI DI VENDITA INNOVATIVI PER IL LANCIO DI UN NUOVO PRODOTTO: DALLA VENDITA DIRETTA ALLA VENDITA ""SOCIAL""";31/08/2015;05/07/2017;14.384,94;0,50;31100:::31057;TREVISO:::SILEA;TREVISO;VENETO;ITALIA;Adattamento al cambiamento da parte di lavoratori, imprese e imprenditori;30/06/2018
FSE;38970;H69J15001830009;00681190278;ISFID PRISMA SOCIETA'  COOPERATIVA;Mappatura LEED Innovazione di prodotto;Mappatura LEED Innovazione di prodotto;23/07/2015;20/02/2017;15.344,00;0,50;35100:::35010;PADOVA:::SAN GIORGIO DELLE PERTICHE;PADOVA;VENETO;ITALIA;Adattamento al cambiamento da parte di lavoratori, imprese e imprenditori;30/06/2018
FSE;38971;H59J15002310007;01659800278;CONFINDUSTRIA VENETO SIAV S.P.A.;MARKETING DELL'INNOVAZIONE: comunicare valore;MARKETING DELL'INNOVAZIONE: comunicare valore;23/07/2015;22/05/2017;68.320,00;0,50;31100:::36100:::30100:::35100;TREVISO:::VICENZA:::VENEZIA:::PADOVA;VENEZIA:::TREVISO:::PADOVA:::VICENZA;VENETO;ITALIA;Adattamento al cambiamento da parte di lavoratori, imprese e imprenditori;30/06/2018
FSE;38972;H39J15001470009;01856980246;CESAR SRL;INNOVAZIONE E ORGANIZZAZIONE INTEGRATA IN FARESIN INDUSTRIES;INNOVAZIONE E ORGANIZZAZIONE INTEGRATA IN FARESIN INDUSTRIES;22/07/2015;18/08/2017;52.894,00;0,50;36100:::36042;VICENZA:::BREGANZE;VICENZA;VENETO;ITALIA;Adattamento al cambiamento da parte di lavoratori, imprese e imprenditori;30/06/2018
FSE;38973;H29J15000690009;03323150288;KORO SRL;L'EFFICIENZA DEI PROCESSI PRODUTTIVI NELL'OTTICA DELLA SOSTENIBILITA' AMBIENTALE;L'EFFICIENZA DEI PROCESSI PRODUTTIVI NELL'OTTICA DELLA SOSTENIBILITA' AMBIENTALE;28/07/2015;09/08/2017;13.432,00;0,50;35037:::35100;TEOLO:::PADOVA;PADOVA;VENETO;ITALIA;Adattamento al cambiamento da parte di lavoratori, imprese e imprenditori;30/06/2018
FSE;38974;H79J15001730009;03323150288;KORO SRL;LA SOSTENIBILITA' AMBIENTALE E L'EFFCIENZA ENERGETICA DELLA PRODUZIONE INDUSTRIALE;LA SOSTENIBILITA' AMBIENTALE E L'EFFCIENZA ENERGETICA DELLA PRODUZIONE INDUSTRIALE;28/07/2015;10/08/2017;12.056,00;0,50;31100:::31047;TREVISO:::PONTE DI PIAVE;TREVISO;VENETO;ITALIA;Adattamento al cambiamento da parte di lavoratori, imprese e imprenditori;30/06/2018
FSE;38975;H49J15002410007;03311480275;UMANA FORMA SRL;IMPLEMENTAZIONE DELLA LEAN PRODUCTION IN CENTRO CARNI COMPANY SPA;IMPLEMENTAZIONE DELLA LEAN PRODUCTION IN CENTRO CARNI COMPANY SPA;10/08/2015;27/02/2017;13.140,00;0,50;35100:::35019;PADOVA:::TOMBOLO;PADOVA;VENETO;ITALIA;Adattamento al cambiamento da parte di lavoratori, imprese e imprenditori;30/06/2018
FSE;38976;H99J15005250009;00193530276;SCATOLIFICIO ONDULKART SPA;INNOVAZIONE DELLA COMUNICAZIONE E DEL MARKETING AZIENDALE;INNOVAZIONE DELLA COMUNICAZIONE E DEL MARKETING AZIENDALE;05/08/2015;16/11/2017;50.816,00;0,50;31100:::31040;TREVISO:::CESSALTO;TREVISO;VENETO;ITALIA;Adattamento al cambiamento da parte di lavoratori, imprese e imprenditori;30/06/2018
FSE;38977;H99J15002470009;02615820285;C.C.S. CONSORZIO COOPERATIVE SOCIALI;LEAN PROCESSES AND TOOLS TRAINING;LEAN PROCESSES AND TOOLS TRAINING;11/08/2015;19/07/2017;29.996,00;0,50;35100;PADOVA;PADOVA;VENETO;ITALIA;Adattamento al cambiamento da parte di lavoratori, imprese e imprenditori;30/06/2018
FSE;38978;H19J15000810009;02495270270;KAIROS S.P.A.;Applicare i principi e le tecniche Lean per incrementare la competitivit� di Allmatic;Applicare i principi e le tecniche Lean per incrementare la competitivit� di Allmatic;22/07/2015;17/08/2017;17.766,56;0,50;32100:::32020;BELLUNO:::LENTIAI;BELLUNO;VENETO;ITALIA;Adattamento al cambiamento da parte di lavoratori, imprese e imprenditori;30/06/2018
FSE;38979;H79J15001780009;02272440260;A&A CONSULENZA S.R.L.;Portabagagli del Porto soc.coop - Il potenziamento delle strategie dell'Impresa per l'espansione nei mercati internazionali;Portabagagli del Porto soc.coop - Il potenziamento delle strategie dell'Impresa per l'espansione nei mercati internazionali;31/07/2015;24/02/2017;21.790,00;0,50;30100;VENEZIA;VENEZIA;VENETO;ITALIA;Adattamento al cambiamento da parte di lavoratori, imprese e imprenditori;30/06/2018
FSE;38980;H59J15001150009;01171060294;E-CONS S.R.L;Lean Organisation in Bottecchia s.r.l.;Lean Organisation in Bottecchia s.r.l.;28/07/2015;01/03/2017;12.636,00;0,50;30100:::30014;VENEZIA:::CAVARZERE;VENEZIA;VENETO;ITALIA;Adattamento al cambiamento da parte di lavoratori, imprese e imprenditori;30/06/2018
FSE;38981;H89J15002070009;02300990245;SCUOLA SUPERIORE DI SALDATURA E CONTROLLO S.R.L.;Sviluppo personale ed aziendale in ottica Lean in Lavorazioni Meccaniche Dalla Via;Sviluppo personale ed aziendale in ottica Lean in Lavorazioni Meccaniche Dalla Via;11/09/2015;27/06/2018;30.210,00;0,50;36100:::36015;VICENZA:::SCHIO;VICENZA;VENETO;ITALIA;Adattamento al cambiamento da parte di lavoratori, imprese e imprenditori;30/06/2018
FSE;38982;H19J15000900009;02564790273;CON-SER SRL UNIPERSONALE;Total Lean Management System;Total Lean Management System;23/07/2015;23/02/2017;13.120,00;0,50;30020:::30100;MARCON:::VENEZIA;VENEZIA;VENETO;ITALIA;Adattamento al cambiamento da parte di lavoratori, imprese e imprenditori;30/06/2018
FSE;38983;H89J15001990009;00215820259;REVIVISCAR S.R.L.;Ottimizzare i processi produttivi in EVCO applicando le tecniche lean;Ottimizzare i processi produttivi in EVCO applicando le tecniche lean;22/07/2015;01/03/2017;15.096,00;0,50;32100:::32036;BELLUNO:::SEDICO;BELLUNO;VENETO;ITALIA;Adattamento al cambiamento da parte di lavoratori, imprese e imprenditori;30/06/2018
FSE;38984;H99J15005280007;02375470289;AB ANALITICA SRL;STRUMENTI E METODOLOGIE PER LA GESTIONE STRATEGICA E IL CONTROLLO DEI PROCESSI DI INNOVAZIONE NELLE IMPRESE AB ANALITICA E DINO PALADIN;STRUMENTI E METODOLOGIE PER LA GESTIONE STRATEGICA E IL CONTROLLO DEI PROCESSI DI INNOVAZIONE NELLE IMPRESE AB ANALITICA E DINO PALADIN;05/08/2015;16/11/2017;20.960,00;0,50;35100;PADOVA;PADOVA;VENETO;ITALIA;Adattamento al cambiamento da parte di lavoratori, imprese e imprenditori;30/06/2018
FSE;38985;H39J15004050007;02629680238;STUDIO ESSEPI S.R.L.;Qualificazione del personale per implementare l'efficienza dei processi di produzione e di vendita energetica;Qualificazione del personale per implementare l'efficienza dei processi di produzione e di vendita energetica;08/09/2015;13/02/2017;45.920,00;0,50;37100;VERONA;VERONA;VENETO;ITALIA;Adattamento al cambiamento da parte di lavoratori, imprese e imprenditori;30/06/2018
FSE;38986;H89J15001940009;80000170250;CFS CENTRO PER LA FORMAZIONE E LA SICUREZZA DI BELLUNO;"Il ""Building Information Modeling"" quale strumento di innovazione nel comparto delle costruzioni";"Il ""Building Information Modeling"" quale strumento di innovazione nel comparto delle costruzioni";05/08/2015;01/03/2017;26.240,00;0,50;32100:::32036;BELLUNO:::SEDICO;BELLUNO;VENETO;ITALIA;Adattamento al cambiamento da parte di lavoratori, imprese e imprenditori;30/06/2018
FSE;38987;H89J15001950009;01742990243;ISTITUTO DI PROGRAMMAZIONE E ORGANIZZAZIONE DELLO SVILUPPO TERRITORIALE - POSTER;Innovazione e nuovi prodotti allinsegna dellambiente in Favaro1;Innovazione e nuovi prodotti allinsegna dellambiente in Favaro1;03/08/2015;16/11/2017;25.090,00;0,50;31100:::31059;TREVISO:::ZERO BRANCO;TREVISO;VENETO;ITALIA;Adattamento al cambiamento da parte di lavoratori, imprese e imprenditori;30/06/2018
FSE;38988;H79J15001740009;00728940156;EFFEGI SISTEMI IDRODINAMICI S.R.L.;La sostenibilit� ambientale con EMAS e la dematerializzazione documentale in Migen;La sostenibilit� ambientale con EMAS e la dematerializzazione documentale in Migen;01/09/2015;16/11/2017;23.043,28;0,50;30100;VENEZIA;VENEZIA;VENETO;ITALIA;Adattamento al cambiamento da parte di lavoratori, imprese e imprenditori;30/06/2018
FSE;38989;H79J15001800009;02549750244;FINECO INNOVAZIONE SRL;SNIPER - Strategie e strumenti del Marketing Scientifico;SNIPER - Strategie e strumenti del Marketing Scientifico;03/08/2015;01/09/2017;37.496,00;0,50;31100:::36100:::36060:::35100;TREVISO:::VICENZA:::ROMANO D'EZZELINO:::PADOVA;TREVISO:::PADOVA:::VICENZA;VENETO;ITALIA;Adattamento al cambiamento da parte di lavoratori, imprese e imprenditori;30/06/2018
FSE;38990;H79J15001770009;02793590270;CO.GE.S.  DON LORENZO MILANI SOCIETA' COOPERATIVA SOCIALE;PROGETTARE SOSTENIBILE: STRUMENTI E TECNICHE INNOVATIVE PER IL RECUPERO E IL CONSOLIDAMENTO;PROGETTARE SOSTENIBILE: STRUMENTI E TECNICHE INNOVATIVE PER IL RECUPERO E IL CONSOLIDAMENTO;22/07/2015;05/07/2017;62.446,56;0,50;30100;VENEZIA;VENEZIA;VENETO;ITALIA;Adattamento al cambiamento da parte di lavoratori, imprese e imprenditori;30/06/2018
FSE;38991;H29J15000760009;03114240231;D & V SRL;THINK LEAN;THINK LEAN;01/09/2015;24/02/2017;26.251,86;0,50;37100:::37047;VERONA:::SAN BONIFACIO;VERONA;VENETO;ITALIA;Adattamento al cambiamento da parte di lavoratori, imprese e imprenditori;30/06/2018
FSE;38992;H79J15001690009;03643690278;NALON S.R.L.;Applicazione di principi e tecniche lean office per ottimizzare le prestazioni economiche dell'impresa (lean cost);Applicazione di principi e tecniche lean office per ottimizzare le prestazioni economiche dell'impresa (lean cost);08/09/2015;07/03/2017;11.268,00;0,50;30100;VENEZIA;VENEZIA;VENETO;ITALIA;Adattamento al cambiamento da parte di lavoratori, imprese e imprenditori;30/06/2018
FSE;38993;H39J15001580009;02454560240;LABRENTA SRL;Riduzione del Lead Time e gestione materiali;Riduzione del Lead Time e gestione materiali;03/08/2015;28/02/2017;26.240,00;0,50;36100:::36042;VICENZA:::BREGANZE;VICENZA;VENETO;ITALIA;Adattamento al cambiamento da parte di lavoratori, imprese e imprenditori;30/06/2018
FSE;38994;H99J15002220009;04332880287;ADATTA SRL;INTERNAZIONALIZZARE BOX HOUSES ECOSOSTENIBILI ATTRAVERSO LA CERTIFICAZIONE GREEN E IL RISPETTO DELLE ESIGENZE DEI MERCATI;INTERNAZIONALIZZARE BOX HOUSES ECOSOSTENIBILI ATTRAVERSO LA CERTIFICAZIONE GREEN E IL RISPETTO DELLE ESIGENZE DEI MERCATI;22/07/2015;07/02/2017;58.384,80;0,50;35100;PADOVA;PADOVA;VENETO;ITALIA;Adattamento al cambiamento da parte di lavoratori, imprese e imprenditori;30/06/2018
FSE;38995;H59J15001160009;03843250287;EUROINTERIM SERVIZI SPA;Lean Organization: rilancio della competitivit� aziendale e sviluppo di nuove skills;Lean Organization: rilancio della competitivit� aziendale e sviluppo di nuove skills;23/07/2015;27/10/2017;26.896,00;0,50;36100:::36073;VICENZA:::CORNEDO VICENTINO;VICENZA;VENETO;ITALIA;Adattamento al cambiamento da parte di lavoratori, imprese e imprenditori;30/06/2018
FSE;38996;H99J15002300009;04008340285;JOB SELECT SRL;Organizzazione snella e vincente per aziende metalmeccaniche del padovano;Organizzazione snella e vincente per aziende metalmeccaniche del padovano;28/07/2015;27/10/2017;69.288,00;0,50;35100;PADOVA;PADOVA;VENETO;ITALIA;Adattamento al cambiamento da parte di lavoratori, imprese e imprenditori;30/06/2018
FSE;38997;H49J15002420007;00855020269;VOLPATO INDUSTRIE S.P.A.;Incremento della presenza nei mercati internazionali (Oceania) attraverso la qualificazione delle competenze aziendali;Incremento della presenza nei mercati internazionali (Oceania) attraverso la qualificazione delle competenze aziendali;03/08/2015;24/11/2017;32.240,00;0,50;31100:::31027;TREVISO:::SPRESIANO;TREVISO;VENETO;ITALIA;Adattamento al cambiamento da parte di lavoratori, imprese e imprenditori;30/06/2018
FSE;38998;H59J15001170009;03275590283;GIPLANET SPA;Lean Thinking per perfezionare il lavoro su commessa: strumenti e metodi di Lean Cost Accounting e Lean Project Management;Lean Thinking per perfezionare il lavoro su commessa: strumenti e metodi di Lean Cost Accounting e Lean Project Management;05/08/2015;26/05/2017;30.960,00;0,50;35028:::35100;PIOVE DI SACCO:::PADOVA;PADOVA;VENETO;ITALIA;Adattamento al cambiamento da parte di lavoratori, imprese e imprenditori;30/06/2018
FSE;38999;H69J15001820009;80002410233;ISPETTORIA SALESIANA SAN ZENO;LCA (Life Cycle Assessment) e CARBON FOOTPRINT di PRODOTTO;LCA (Life Cycle Assessment) e CARBON FOOTPRINT di PRODOTTO;27/07/2015;17/10/2017;10.168,00;0,50;36100:::36071;VICENZA:::ARZIGNANO;VICENZA;VENETO;ITALIA;Adattamento al cambiamento da parte di lavoratori, imprese e imprenditori;30/06/2018
FSE;39000;H49J15001150009;03894490279;MAGNOLIA SRL;STRATEGIE DI INTERNAZIONALIZZAZIONE IN FORNASIERO SRL;STRATEGIE DI INTERNAZIONALIZZAZIONE IN FORNASIERO SRL;05/08/2015;23/02/2017;22.010,00;0,50;31100:::31030;TREVISO:::ALTIVOLE;TREVISO;VENETO;ITALIA;Adattamento al cambiamento da parte di lavoratori, imprese e imprenditori;30/06/2018
FSE;39001;H99J15002140009;03433980269;NOVALINEA S.P.A.;"Applicare il modello ""Lean"" nell'organizzazione produttiva";"Applicare il modello ""Lean"" nell'organizzazione produttiva";01/09/2015;16/11/2017;33.544,00;0,50;31100:::31040;TREVISO:::CESSALTO;TREVISO;VENETO;ITALIA;Adattamento al cambiamento da parte di lavoratori, imprese e imprenditori;30/06/2018
FSE;39002;H29J15000670009;02090610243;L'INGLESINA BABY SPA;Incrementare il potenziale d'innovazione dell'impresa trasformando il processo di progettazione e sviluppo prodotto in ottica Lean;Incrementare il potenziale d'innovazione dell'impresa trasformando il processo di progettazione e sviluppo prodotto in ottica Lean;03/08/2015;21/02/2017;27.240,00;0,50;36100:::36077;VICENZA:::ALTAVILLA VICENTINA;VICENZA;VENETO;ITALIA;Adattamento al cambiamento da parte di lavoratori, imprese e imprenditori;30/06/2018
FSE;39003;H49J15001020009;03315200265;SERRAMENTI BROMBAL SRL;Il cruscotto di controllo informatizzato per la governance d'azienda;Il cruscotto di controllo informatizzato per la governance d'azienda;28/07/2015;07/07/2017;35.832,00;0,50;31100:::31030;TREVISO:::ALTIVOLE;TREVISO;VENETO;ITALIA;Adattamento al cambiamento da parte di lavoratori, imprese e imprenditori;30/06/2018
FSE;39004;H89J15001970009;02541060261;MOSAICO S.R.L.;Lean Office: il Modello della Produzione Snella per l'ottimizzazione dell'integrazione tra uffici e produzione;Lean Office: il Modello della Produzione Snella per l'ottimizzazione dell'integrazione tra uffici e produzione;27/07/2015;24/11/2017;42.688,00;0,50;30020:::30100;NOVENTA DI PIAVE:::VENEZIA;VENEZIA;VENETO;ITALIA;Adattamento al cambiamento da parte di lavoratori, imprese e imprenditori;30/06/2018
FSE;39005;H79J15001700009;03315350268;EUROMACCHINE SRL;INNOVATION EUROPROCESS;INNOVATION EUROPROCESS;12/08/2015;27/02/2017;23.806,00;0,50;31100:::31047;TREVISO:::PONTE DI PIAVE;TREVISO;VENETO;ITALIA;Adattamento al cambiamento da parte di lavoratori, imprese e imprenditori;30/06/2018
FSE;39006;H19J15000890009;04636360267;T2I - TRASFERIMENTO TECNOLOGICO E INNOVAZIONE SCARL;Strategia, metodo e sviluppo per competere;Strategia, metodo e sviluppo per competere;29/07/2015;15/11/2017;51.862,00;0,50;31100:::31035;TREVISO:::CROCETTA DEL MONTELLO;TREVISO;VENETO;ITALIA;Adattamento al cambiamento da parte di lavoratori, imprese e imprenditori;30/06/2018
FSE;39007;H79J15001860009;92042920287;E.F.A. ENTE DI FORMAZIONE ARTIGIANA;Valorizzazione dell'immagine personale e aziendale e gestione efficace della relazione con il cliente: strumenti per la creazione di un network di professionisti nell'ambito della ristrutturazione e riqualificazione energetica degli edifici;Valorizzazione dell'immagine personale e aziendale e gestione efficace della relazione con il cliente: strumenti per la creazione di un network di professionisti nell'ambito della ristrutturazione e riqualificazione energetica degli edifici;22/07/2015;16/11/2017;15.158,94;0,50;30100:::35100;VENEZIA:::PADOVA;VENEZIA:::PADOVA;VENETO;ITALIA;Adattamento al cambiamento da parte di lavoratori, imprese e imprenditori;30/06/2018
FSE;39008;H59J15001220009;90019220277;FEDERAZIONE CNOS/FAP - VENETO;UNA RETE PER IL TURISMO;UNA RETE PER IL TURISMO;28/07/2015;23/08/2017;26.524,00;0,50;31100:::36100:::36061;TREVISO:::VICENZA:::BASSANO DEL GRAPPA;TREVISO:::VICENZA;VENETO;ITALIA;Adattamento al cambiamento da parte di lavoratori, imprese e imprenditori;30/06/2018
FSE;39009;H59J15001140009;01195160260;LAMPOCAR - COSTRUZIONI CARRELLI RANIERO S.R.L.;La sostenibilit� per unazienda di carrelli elevatori: lesperienza di Lampocar;La sostenibilit� per unazienda di carrelli elevatori: lesperienza di Lampocar;01/09/2015;13/12/2017;27.576,10;0,50;31100:::31010;TREVISO:::FONTE;TREVISO;VENETO;ITALIA;Adattamento al cambiamento da parte di lavoratori, imprese e imprenditori;30/06/2018
FSE;39010;H79J15001790009;03587250261;CYTECH S.R.L.;Riorganizzazione  e nuove tecniche di sviluppo prodotto verso l'innovazione aziendale;Riorganizzazione  e nuove tecniche di sviluppo prodotto verso l'innovazione aziendale;07/09/2015;04/07/2017;27.447,00;0,50;31100:::31020;TREVISO:::SAN VENDEMIANO;TREVISO;VENETO;ITALIA;Adattamento al cambiamento da parte di lavoratori, imprese e imprenditori;30/06/2018
FSE;39011;H99J15002240009;80037180280;IRECOOP VENETO-ISTITUTO REGIONALE PER L'EDUCAZIONE- STUDI COOP. ASS.RICONOSCIUTI;LEAN ORGANIZATION E LEAN PRODUCTION PER L' ILLUMINAZIONE;LEAN ORGANIZATION E LEAN PRODUCTION PER L' ILLUMINAZIONE;31/07/2015;16/11/2017;23.694,00;0,50;35100;PADOVA;PADOVA;VENETO;ITALIA;Adattamento al cambiamento da parte di lavoratori, imprese e imprenditori;30/06/2018
FSE;39012;H99J15002260009;02713940241;LASERWELD SRL;Laserweld e linternazionalizzazione: strategie per conquistare nuovi mercati;Laserweld e linternazionalizzazione: strategie per conquistare nuovi mercati;04/09/2015;23/11/2017;29.644,00;0,50;36100:::36040;VICENZA:::GRUMOLO DELLE ABBADESSE;VICENZA;VENETO;ITALIA;Adattamento al cambiamento da parte di lavoratori, imprese e imprenditori;30/06/2018
FSE;39013;H99J15002330009;03894830276;VENETA ECORECUPERI SAS;Sviluppo di una Green Label per Veneta Ecorecuperi Autodemolizione;Sviluppo di una Green Label per Veneta Ecorecuperi Autodemolizione;25/08/2015;27/10/2017;31.177,00;0,50;30100:::30010;VENEZIA:::CONA;VENEZIA;VENETO;ITALIA;Adattamento al cambiamento da parte di lavoratori, imprese e imprenditori;30/06/2018
FSE;39014;H49J15002430007;07435600155;RICONVERSIDER S.R.L.;Sviluppo di innovazione specifica per macchine per taglio profili ed applicazione film di WPR;Sviluppo di innovazione specifica per macchine per taglio profili ed applicazione film di WPR;05/08/2015;28/02/2017;31.488,00;0,50;31100:::31027;TREVISO:::SPRESIANO;TREVISO;VENETO;ITALIA;Adattamento al cambiamento da parte di lavoratori, imprese e imprenditori;30/06/2018
FSE;39015;H19J15000870009;02320070283;DOMANI DONNA SOCIETA COOPERATIVA IN BREVE 2D FORMAZIONE;Promuovere la competitivit� nel settore della lavorazione dei lapidei attraverso una crescita sostenibile: progetto per la riqualificazione dei lavoratori dellimpresa Bauce Bruno & C. srl;Promuovere la competitivit� nel settore della lavorazione dei lapidei attraverso una crescita sostenibile: progetto per la riqualificazione dei lavoratori dellimpresa Bauce Bruno & C. srl;11/09/2015;02/08/2017;31.120,00;0,50;37100:::37010;VERONA:::SANT'AMBROGIO DI VALPOLICELLA;VERONA;VENETO;ITALIA;Adattamento al cambiamento da parte di lavoratori, imprese e imprenditori;30/06/2018
FSE;39016;H19J15000840009;13063380151;E-WORK SPA;LEAN IN TECNOEDILE SRL;LEAN IN TECNOEDILE SRL;03/08/2015;15/02/2017;17.536,00;0,50;36040;BRENDOLA;VICENZA;VENETO;ITALIA;Adattamento al cambiamento da parte di lavoratori, imprese e imprenditori;30/06/2018
FSE;39017;H59J15001120009;13063380151;E-WORK SPA;LEAN in SECOM;LEAN in SECOM;03/08/2015;16/11/2017;17.536,00;0,50;36100:::36073;VICENZA:::CORNEDO VICENTINO;VICENZA;VENETO;ITALIA;Adattamento al cambiamento da parte di lavoratori, imprese e imprenditori;30/06/2018
FSE;39018;H99J15002150009;04251180289;KRUPPS S.R.L.;Brand Identity, self empowerment e innovazione nella comunicazione aziendale per rafforzare la forza vendita;Brand Identity, self empowerment e innovazione nella comunicazione aziendale per rafforzare la forza vendita;30/07/2015;13/07/2017;31.680,00;0,50;35100;PADOVA;PADOVA;VENETO;ITALIA;Adattamento al cambiamento da parte di lavoratori, imprese e imprenditori;30/06/2018
FSE;39019;H29J15000730009;02301900268;UNINDUSTRIA TREVISO SERVIZI & FORMAZIONE SCARL;STRATEGIE DI INTERNAZIONALIZZAZIONE E PRESENZA NEI MERCATI ESTERI DELLE AZIENDE VENETE;STRATEGIE DI INTERNAZIONALIZZAZIONE E PRESENZA NEI MERCATI ESTERI DELLE AZIENDE VENETE;04/08/2015;28/02/2018;41.264,00;0,50;31100:::30100;TREVISO:::VENEZIA;VENEZIA:::TREVISO;VENETO;ITALIA;Adattamento al cambiamento da parte di lavoratori, imprese e imprenditori;30/06/2018
FSE;39020;H39J15001430009;02260090234;UNIONSERVICES SRL;E-commerce per la filiera alimentare veronese;E-commerce per la filiera alimentare veronese;31/08/2015;12/10/2017;35.200,00;0,50;37100;VERONA;VERONA;VENETO;ITALIA;Adattamento al cambiamento da parte di lavoratori, imprese e imprenditori;30/06/2018
FSE;39021;H69J15001870009;02422020285;FOREMA SRL;Organizzazione aziendale e miglioramento dei processi in Kemitex;Organizzazione aziendale e miglioramento dei processi in Kemitex;04/08/2015;28/02/2017;24.928,00;0,50;35100:::35020;PADOVA:::MASERA' DI PADOVA;PADOVA;VENETO;ITALIA;Adattamento al cambiamento da parte di lavoratori, imprese e imprenditori;30/06/2018
FSE;39022;H19J15000880009;93005260299;CIFIR - CONSORZIO INDUSTRIALIE FORMAZIO-NE E INNOVAZIONE ROVIGO;Realt� aumentata, social media i nuovi strumenti di marketing;Realt� aumentata, social media i nuovi strumenti di marketing;31/08/2015;05/07/2017;32.050,00;0,50;45100;ROVIGO;ROVIGO;VENETO;ITALIA;Adattamento al cambiamento da parte di lavoratori, imprese e imprenditori;30/06/2018
FSE;39023;H19J15001860007;00968410290;ASCOM SERVIZI SRL;DAL MARCHIO AL BRAND: SVILUPPO INNOVATIVO NELLA STRATEGIA DI COMUNICAZIONE IN PADOVANI SRL;DAL MARCHIO AL BRAND: SVILUPPO INNOVATIVO NELLA STRATEGIA DI COMUNICAZIONE IN PADOVANI SRL;06/08/2015;28/08/2017;19.680,00;0,50;45021:::45100;BADIA POLESINE:::ROVIGO;ROVIGO;VENETO;ITALIA;Adattamento al cambiamento da parte di lavoratori, imprese e imprenditori;30/06/2018
FSE;39024;H89J15002010009;03612630248;C.M.C. CHANGE MANAGEMENT CONSULTING S.R.L.;RIORGANIZZARE PER COMPETERE;RIORGANIZZARE PER COMPETERE;28/08/2015;12/07/2017;16.440,00;0,50;36100:::36015;VICENZA:::SCHIO;VICENZA;VENETO;ITALIA;Adattamento al cambiamento da parte di lavoratori, imprese e imprenditori;30/06/2018
FSE;39025;H89J15001890009;03612630248;C.M.C. CHANGE MANAGEMENT CONSULTING S.R.L.;Digitalizzare per competere;Digitalizzare per competere;28/08/2015;11/07/2017;16.955,28;0,50;36100:::36015;VICENZA:::SCHIO;VICENZA;VENETO;ITALIA;Adattamento al cambiamento da parte di lavoratori, imprese e imprenditori;30/06/2018
FSE;39026;H59J15001130009;02495270270;KAIROS S.P.A.;La sartoria di qualit� italiana esplora i mercati del Nord Europa;La sartoria di qualit� italiana esplora i mercati del Nord Europa;04/08/2015;18/08/2017;16.229,00;0,50;30100:::30035;VENEZIA:::MIRANO;VENEZIA;VENETO;ITALIA;Adattamento al cambiamento da parte di lavoratori, imprese e imprenditori;30/06/2018
FSE;39027;H79J15001830009;02760040275;I.N.I.A.P.A. VENETO S. CONSORTILE A R.L.;Soluzioni sostenibili per il trasporto su strada: green economy e contenimento dell'impatto ambientale;Soluzioni sostenibili per il trasporto su strada: green economy e contenimento dell'impatto ambientale;01/09/2015;14/08/2017;48.740,00;0,50;30100;VENEZIA;VENEZIA;VENETO;ITALIA;Adattamento al cambiamento da parte di lavoratori, imprese e imprenditori;30/06/2018
FSE;39028;H29J15000650009;02289210276;ECIPA  SOC. CONS. A.R.L.;IL MIGLIORAMENTO DELLA LEAN PERFORMANCE NEL SETTORE DEI MOTORI ELETTRICI;IL MIGLIORAMENTO DELLA LEAN PERFORMANCE NEL SETTORE DEI MOTORI ELETTRICI;23/07/2015;16/02/2017;13.120,00;0,50;30100:::30030;VENEZIA:::MARTELLAGO;VENEZIA;VENETO;ITALIA;Adattamento al cambiamento da parte di lavoratori, imprese e imprenditori;30/06/2018
FSE;39029;H89J15001980009;03698180266;GIESSEGI S.R.L.;Lean4C - Lean per crescere, cambiare, collaborare, competere;Lean4C - Lean per crescere, cambiare, collaborare, competere;04/09/2015;24/02/2017;35.810,00;0,50;31100:::31039;TREVISO:::RIESE PIO X;TREVISO;VENETO;ITALIA;Adattamento al cambiamento da parte di lavoratori, imprese e imprenditori;30/06/2018
FSE;39030;H59J15001200009;00790870257;CERTOTTICA S.C.A.R.L.;Strategie di marketing e comunicazione per la competitivit� della azienda Gammasport;Strategie di marketing e comunicazione per la competitivit� della azienda Gammasport;04/08/2015;24/02/2017;10.496,00;0,50;31058:::31100;SUSEGANA:::TREVISO;TREVISO;VENETO;ITALIA;Adattamento al cambiamento da parte di lavoratori, imprese e imprenditori;30/06/2018
FSE;39031;H69J15001860009;02094590243;Z.F. S.R.L.;OTTIMIZZAZIONE, RAZIONALIZZAZIONE, INNOVAZIONE E CREATIVITA NELLE ATTIVITA AZIENDALI PER MIGLIORARE LA COMPETITIVITA E VALORIZZARE SOLUZIONI ECO-EFFICIENTI;OTTIMIZZAZIONE, RAZIONALIZZAZIONE, INNOVAZIONE E CREATIVITA NELLE ATTIVITA AZIENDALI PER MIGLIORARE LA COMPETITIVITA E VALORIZZARE SOLUZIONI ECO-EFFICIENTI;11/09/2015;30/10/2017;12.400,00;0,50;36040:::36100;SAREGO:::VICENZA;VICENZA;VENETO;ITALIA;Adattamento al cambiamento da parte di lavoratori, imprese e imprenditori;30/06/2018
FSE;39032;H99J15005270007;04805520287;SIT S.P.A.;Lean Production e Lean Organization: filosofia e strumenti per diventare pi� competitivi;Lean Production e Lean Organization: filosofia e strumenti per diventare pi� competitivi;30/07/2015;09/08/2017;29.520,00;0,50;35100;PADOVA;PADOVA;VENETO;ITALIA;Adattamento al cambiamento da parte di lavoratori, imprese e imprenditori;30/06/2018
FSE;39033;H79J15001720009;00324950286;F.LLI STOCCO SRL;Innovazione di prodotto in ottica di certificazione UL per il mercato americano;Innovazione di prodotto in ottica di certificazione UL per il mercato americano;12/08/2015;18/10/2017;13.164,00;0,50;35010:::35100;SAN GIORGIO IN BOSCO:::PADOVA;PADOVA;VENETO;ITALIA;Adattamento al cambiamento da parte di lavoratori, imprese e imprenditori;30/06/2018
FSE;39034;H39J15004060007;03366690232;BRUNO ELIO S.R.L.;Strategie e strumenti a supporto del processo di internazionalizzazione nel settore ortofrutta;Strategie e strumenti a supporto del processo di internazionalizzazione nel settore ortofrutta;26/08/2015;28/08/2017;25.906,00;0,50;37100;VERONA;VERONA;VENETO;ITALIA;Adattamento al cambiamento da parte di lavoratori, imprese e imprenditori;30/06/2018
FSE;39035;H99J15002280009;01163050261;BORTOLOMIOL SPA;Mercati internazionali: vendere vino, comunicare qualit�, creare esperienze, raccontare la storia;Mercati internazionali: vendere vino, comunicare qualit�, creare esperienze, raccontare la storia;04/08/2015;15/11/2017;41.508,00;0,50;31100:::31049;TREVISO:::VALDOBBIADENE;TREVISO;VENETO;ITALIA;Adattamento al cambiamento da parte di lavoratori, imprese e imprenditori;30/06/2018
FSE;39036;H69J15001850009;03723200246;BLACK TIE SRL;Nuove strategie di brand identity e retail marketing in Black Tie;Nuove strategie di brand identity e retail marketing in Black Tie;30/07/2015;07/03/2017;29.760,00;0,50;36100:::36071;VICENZA:::ARZIGNANO;VICENZA;VENETO;ITALIA;Adattamento al cambiamento da parte di lavoratori, imprese e imprenditori;30/06/2018
FSE;39037;H29J15000710009;02278990268;PALLADIO SRL;LEAN TRASFORMATION IN FUNZIONE DELLA COMPETITIVITA' AZIENDALE;LEAN TRASFORMATION IN FUNZIONE DELLA COMPETITIVITA' AZIENDALE;01/09/2015;16/11/2017;27.203,00;0,50;31100:::31048;TREVISO:::SAN BIAGIO DI CALLALTA;TREVISO;VENETO;ITALIA;Adattamento al cambiamento da parte di lavoratori, imprese e imprenditori;30/06/2018
FSE;39038;H29J15000640009;03360680288;ALIT SRL;I materiali innovativi: strumenti e metodologie;I materiali innovativi: strumenti e metodologie;31/07/2015;24/02/2017;15.184,00;0,50;35100:::35010;PADOVA:::SANTA GIUSTINA IN COLLE;PADOVA;VENETO;ITALIA;Adattamento al cambiamento da parte di lavoratori, imprese e imprenditori;30/06/2018
FSE;39181;H99J15002270009;01883700245;ASIAGO FOOD SPA;Lo sviluppo dei mercati esteri utilizzando web marketing;Lo sviluppo dei mercati esteri utilizzando web marketing;01/09/2015;25/05/2017;37.980,00;0,50;35030:::35100;VEGGIANO:::PADOVA;PADOVA;VENETO;ITALIA;Adattamento al cambiamento da parte di lavoratori, imprese e imprenditori;30/06/2018
FSE;39182;H49J15001300009;03990590261;F.M. INSTALLAZIONI S.R.L.;Nuove competenze per la competitivit� internazionale;Nuove competenze per la competitivit� internazionale;30/07/2015;05/04/2018;22.490,00;0,50;31100:::31030;TREVISO:::CASIER;TREVISO;VENETO;ITALIA;Adattamento al cambiamento da parte di lavoratori, imprese e imprenditori;30/06/2018
FSE;39183;H69J15002000009;01297790287;BALAN SRL;Strategie di internazionalizzazione in Balan Srl;Strategie di internazionalizzazione in Balan Srl;31/08/2015;10/11/2016;20.220,00;0,50;35010:::35100;TREBASELEGHE:::PADOVA;PADOVA;VENETO;ITALIA;Adattamento al cambiamento da parte di lavoratori, imprese e imprenditori;30/06/2018
FSE;39184;H39J15002000009;02503170264;LIANA SRL;Aumento della capacit� occupazionale della piccola azienda attraverso linternazionalizzazione;Aumento della capacit� occupazionale della piccola azienda attraverso linternazionalizzazione;05/08/2015;16/03/2018;35.848,93;0,50;31032:::31100;CASALE SUL SILE:::TREVISO;TREVISO;VENETO;ITALIA;Adattamento al cambiamento da parte di lavoratori, imprese e imprenditori;30/06/2018
FSE;39185;H19J15000970009;01115160267;MAGLIFICIO FERDINANDA DI FIORIN S. & TOMASIN V.;NUOVE SOLUZIONI TECNOLOGICHE E NUOVE COMPETENZE PER INNOVARE I PROCESSI;NUOVE SOLUZIONI TECNOLOGICHE E NUOVE COMPETENZE PER INNOVARE I PROCESSI;01/09/2015;16/12/2016;18.784,00;0,50;31100:::31028;TREVISO:::VAZZOLA;TREVISO;VENETO;ITALIA;Adattamento al cambiamento da parte di lavoratori, imprese e imprenditori;30/06/2018
FSE;39186;H59J15001320009;07676860153;BRAVO INOX SRL;Apprendimento esperienziale delle tecniche di Lean Production in Bravo Inox Srl;Apprendimento esperienziale delle tecniche di Lean Production in Bravo Inox Srl;04/09/2015;23/04/2018;39.204,00;0,50;36100:::36075;VICENZA:::MONTECCHIO MAGGIORE;VICENZA;VENETO;ITALIA;Adattamento al cambiamento da parte di lavoratori, imprese e imprenditori;30/06/2018
FSE;39187;H59J15001330009;02290520242;AUTOMATISMI CAB SRL;Azioni green per rendere il sistema logistico-distributivo di Automatismi Cab srl eco-sostenibile;Azioni green per rendere il sistema logistico-distributivo di Automatismi Cab srl eco-sostenibile;05/08/2015;26/02/2018;26.240,00;0,50;36100:::36010;VICENZA:::VELO D'ASTICO;VICENZA;VENETO;ITALIA;Adattamento al cambiamento da parte di lavoratori, imprese e imprenditori;30/06/2018
FSE;39188;H69J15002010009;02464140264;DALLA COSTA ALIMENTARE S.R.L.;Analisi dei dati per lo sviluppo dei mercati esteri;Analisi dei dati per lo sviluppo dei mercati esteri;31/08/2015;13/07/2017;33.476,00;0,50;31023:::31100;RESANA:::TREVISO;TREVISO;VENETO;ITALIA;Adattamento al cambiamento da parte di lavoratori, imprese e imprenditori;30/06/2018
FSE;39189;H99J15002430009;04774680286;EUROCOM S.R.L.;GESTIONE PER PROCESSI IN EUROCOM SRL;GESTIONE PER PROCESSI IN EUROCOM SRL;05/08/2015;13/07/2017;16.352,00;0,50;35100:::35020;PADOVA:::ARRE;PADOVA;VENETO;ITALIA;Adattamento al cambiamento da parte di lavoratori, imprese e imprenditori;30/06/2018
FSE;39190;H49J15001160009;02051640205;FALCA S.R.L.;Strategie di internazionalizzazione dell'impresa: dall'analisi macroeconomica di settore alla creazione di un piano export;Strategie di internazionalizzazione dell'impresa: dall'analisi macroeconomica di settore alla creazione di un piano export;03/08/2015;01/03/2017;30.424,00;0,50;37100:::37067;VERONA:::VALEGGIO SUL MINCIO;VERONA;VENETO;ITALIA;Adattamento al cambiamento da parte di lavoratori, imprese e imprenditori;30/06/2018
FSE;39191;H69J15001990009;00203050281;POLIROL S.P.A.;Lean Thinking nella piccola impresa;Lean Thinking nella piccola impresa;03/08/2015;24/10/2017;19.070,98;0,50;35015:::35100;GALLIERA VENETA:::PADOVA;PADOVA;VENETO;ITALIA;Adattamento al cambiamento da parte di lavoratori, imprese e imprenditori;30/06/2018
FSE;39192;H89J15002140009;02366010243;A.T. INFORMATICA S.A.S. DI ROBERTO TOGNAZZI & C.;IT E DEMATERIALIZZAZIONE DOCUMENTALE PER UN BUSINESS ECO-SOSTENIBILE;IT E DEMATERIALIZZAZIONE DOCUMENTALE PER UN BUSINESS ECO-SOSTENIBILE;05/08/2015;25/05/2017;12.226,06;0,50;36100:::36015;VICENZA:::SCHIO;VICENZA;VENETO;ITALIA;Adattamento al cambiamento da parte di lavoratori, imprese e imprenditori;30/06/2018
FSE;39193;H99J15002200009;03561140249;T & P GELATI S.R.L.;Gluten free e ottimizzazione dei processi produttivi in T&P Gelati;Gluten free e ottimizzazione dei processi produttivi in T&P Gelati;27/08/2015;28/02/2017;16.006,00;0,50;36100:::36040;VICENZA:::MONTEGALDELLA;VICENZA;VENETO;ITALIA;Adattamento al cambiamento da parte di lavoratori, imprese e imprenditori;30/06/2018
FSE;39194;H49J15001290009;04536650262;JUPITER INTERNATIONAL S.R.L.;Il web marketing per potenziare linternazionalizzazione dellAzienda nel settore dei complementi darredo e del lusso;Il web marketing per potenziare linternazionalizzazione dellAzienda nel settore dei complementi darredo e del lusso;14/09/2015;07/06/2017;21.824,00;0,50;31100:::31055;TREVISO:::QUINTO DI TREVISO;TREVISO;VENETO;ITALIA;Adattamento al cambiamento da parte di lavoratori, imprese e imprenditori;30/06/2018
FSE;39195;H69J15001890009;00860580158;SANTEX S.P.A.;Rilancio competitivo e conquista di nuovi mercati - Miglioramento dei processi produttivi con la metodologia Lean;Rilancio competitivo e conquista di nuovi mercati - Miglioramento dei processi produttivi con la metodologia Lean;31/07/2015;23/03/2018;28.324,11;0,50;36040:::36100;SAREGO:::VICENZA;VICENZA;VENETO;ITALIA;Adattamento al cambiamento da parte di lavoratori, imprese e imprenditori;30/06/2018
FSE;39196;H29J15000860009;01899670242;MECGI S.R.L.;Web Marketing e Vendita Strategica per la competitivit� di MECGI;Web Marketing e Vendita Strategica per la competitivit� di MECGI;14/09/2015;30/10/2017;30.373,00;0,50;36100:::36077;VICENZA:::ALTAVILLA VICENTINA;VICENZA;VENETO;ITALIA;Adattamento al cambiamento da parte di lavoratori, imprese e imprenditori;30/06/2018
FSE;39197;H59J15001180009;83002510267;FONDAZIONE OPERA MONTE GRAPPA;PERCORSO DI INTERNAZIONALIZZAZIONE PER LA DITTA BENACCHIO;PERCORSO DI INTERNAZIONALIZZAZIONE PER LA DITTA BENACCHIO;10/09/2015;05/07/2017;25.680,00;0,50;36100:::36050;VICENZA:::CARTIGLIANO;VICENZA;VENETO;ITALIA;Adattamento al cambiamento da parte di lavoratori, imprese e imprenditori;30/06/2018
FSE;39198;H19J15000860009;02700760248;RISORSE IN CRESCITA S.R.L.;Nuovi strumenti di vendita in Grafiche Tassotti Srl;Nuovi strumenti di vendita in Grafiche Tassotti Srl;04/08/2015;01/03/2017;34.440,00;0,50;36100:::36061;VICENZA:::BASSANO DEL GRAPPA;VICENZA;VENETO;ITALIA;Adattamento al cambiamento da parte di lavoratori, imprese e imprenditori;30/06/2018
FSE;39199;H19J15000830009;00534400254;CENTRO CONSORZI;Gli strumenti di lean organization e lean cost  nelle costruzioni edili a basso impatto ambientale;Gli strumenti di lean organization e lean cost  nelle costruzioni edili a basso impatto ambientale;04/08/2015;24/08/2018;13.700,00;0,50;36100:::36063;VICENZA:::MAROSTICA;VICENZA;VENETO;ITALIA;Adattamento al cambiamento da parte di lavoratori, imprese e imprenditori;30/06/2018
FSE;39200;H39J15001530009;03314980271;POLITECNICO CALZATURIERO SCRL;NUOVE COMPETENZE PER LO SVILUPPO DELL'INNOVAZIONE DEI PROCESSI AZIENDALI;NUOVE COMPETENZE PER LO SVILUPPO DELL'INNOVAZIONE DEI PROCESSI AZIENDALI;03/09/2015;22/08/2017;29.612,00;0,50;35010:::30100:::45100;VIGONZA:::VENEZIA:::ROVIGO;VENEZIA:::ROVIGO:::PADOVA;VENETO;ITALIA;Adattamento al cambiamento da parte di lavoratori, imprese e imprenditori;30/06/2018
FSE;39201;H49J15001190009;02301900268;UNINDUSTRIA TREVISO SERVIZI & FORMAZIONE SCARL;Tecnologie made in green e certificazioni ambientali nelle lavorazioni metalmeccaniche di Roll-Ven spa;Tecnologie made in green e certificazioni ambientali nelle lavorazioni metalmeccaniche di Roll-Ven spa;04/08/2015;28/02/2018;14.182,00;0,50;31100:::31050;TREVISO:::VILLORBA;TREVISO;VENETO;ITALIA;Adattamento al cambiamento da parte di lavoratori, imprese e imprenditori;30/06/2018
FSE;39202;H49J15000990009;03549630964;RANDSTAD HR SOLUTIONS SRL;INNOVARE I PROCESSI INTERNI PER ESSERE PIU' COMPETITIVI: CADORE ARREDAMENTI SRL;INNOVARE I PROCESSI INTERNI PER ESSERE PIU' COMPETITIVI: CADORE ARREDAMENTI SRL;04/08/2015;22/06/2017;27.740,00;0,50;31100:::31030;TREVISO:::ALTIVOLE;TREVISO;VENETO;ITALIA;Adattamento al cambiamento da parte di lavoratori, imprese e imprenditori;30/06/2018
FSE;39203;H39J15001550009;04008340285;JOB SELECT SRL;Nuovi mercati e strategie di internazionalizzazione per Protec Srl;Nuovi mercati e strategie di internazionalizzazione per Protec Srl;04/08/2015;24/08/2018;63.311,00;0,50;36100;VICENZA;VICENZA;VENETO;ITALIA;Adattamento al cambiamento da parte di lavoratori, imprese e imprenditori;30/06/2018
FSE;39204;H79J15001820009;01578660936;TECUM SRL;SVILUPPO DELLA FILIERA CARTA-GRAFICA VENETA VERSO FORME GREEN&BLUE DI BUSINESS;SVILUPPO DELLA FILIERA CARTA-GRAFICA VENETA VERSO FORME GREEN&BLUE DI BUSINESS;04/09/2015;24/11/2017;34.232,93;0,50;31100:::36100:::35100;TREVISO:::VICENZA:::PADOVA;TREVISO:::PADOVA:::VICENZA;VENETO;ITALIA;Adattamento al cambiamento da parte di lavoratori, imprese e imprenditori;30/06/2018
FSE;39205;H89J15001960009;03696920267;EKALAB SRL;Internazionalizzazione d'impresa per EKALAB S.R.L.: destinazione Germania;Internazionalizzazione d'impresa per EKALAB S.R.L.: destinazione Germania;08/09/2015;19/07/2017;29.380,00;0,50;31100:::31050;TREVISO:::PONZANO VENETO;TREVISO;VENETO;ITALIA;Adattamento al cambiamento da parte di lavoratori, imprese e imprenditori;30/06/2018
FSE;39206;H49J15000970009;04602310288;ERGON S.R.L.;Competenze per  la competitivit� globale del manifatturiero veneto;Competenze per  la competitivit� globale del manifatturiero veneto;04/09/2015;16/11/2017;34.888,93;0,50;31100:::35100;TREVISO:::PADOVA;TREVISO:::PADOVA;VENETO;ITALIA;Adattamento al cambiamento da parte di lavoratori, imprese e imprenditori;30/06/2018
FSE;39207;H49J15001200009;01264050236;VI.BE.MAC. SPA;VI.BE.MAC. 2015: Innovazione di prodotto e di ciclo produttivo;VI.BE.MAC. 2015: Innovazione di prodotto e di ciclo produttivo;27/08/2015;21/02/2017;16.408,00;0,50;37057:::37100;SAN GIOVANNI LUPATOTO:::VERONA;VERONA;VENETO;ITALIA;Adattamento al cambiamento da parte di lavoratori, imprese e imprenditori;30/06/2018
FSE;39208;H49J15001110009;00615170263;SILE SPA INDUSTRIE COSTRUZIONI TERMOIDRAULICHE;Pi� internazionali Pi� competitivi;Pi� internazionali Pi� competitivi;04/08/2015;24/08/2018;32.076,00;0,50;31100:::31030;TREVISO:::CASIER;TREVISO;VENETO;ITALIA;Adattamento al cambiamento da parte di lavoratori, imprese e imprenditori;30/06/2018
FSE;39209;H39J15001500009;02779290242;NATURELLO SRL;Lean Enterprise Management: filosofia e strumenti per diventare pi� competitivi;Lean Enterprise Management: filosofia e strumenti per diventare pi� competitivi;04/09/2015;21/02/2017;26.920,00;0,50;36100;VICENZA;VICENZA;VENETO;ITALIA;Adattamento al cambiamento da parte di lavoratori, imprese e imprenditori;30/06/2018
FSE;39210;H99J15002210009;00870070232;LOGIUDICE FORNI SRL;INNOVAZIONE DI COMPETENZE E METODOLOGIA LEAN ORGANIZATION LEVA PER LO SVILUPPO DI LOGIUDICE FORNI;INNOVAZIONE DI COMPETENZE E METODOLOGIA LEAN ORGANIZATION LEVA PER LO SVILUPPO DI LOGIUDICE FORNI;23/09/2015;24/08/2018;28.336,00;0,50;37100:::37040;VERONA:::ARCOLE;VERONA;VENETO;ITALIA;Adattamento al cambiamento da parte di lavoratori, imprese e imprenditori;30/06/2018
FSE;39211;H39J15001420009;00292790243;CARON A & D SRL;CARON PRODUCTION SYSTEM: Progetto Kaizen per l'eccellenza;CARON PRODUCTION SYSTEM: Progetto Kaizen per l'eccellenza;31/08/2015;18/10/2017;23.616,00;0,50;36060:::36100;PIANEZZE:::VICENZA;VICENZA;VENETO;ITALIA;Adattamento al cambiamento da parte di lavoratori, imprese e imprenditori;30/06/2018
FSE;39212;H29J15000660009;03934770268;C.D.M. SRL - SOLUZIONI LOGISTICHE;Il sistema logistico all'estero: competenze strategiche per l'internazionalizzazione in C.D.M.;Il sistema logistico all'estero: competenze strategiche per l'internazionalizzazione in C.D.M.;07/09/2015;23/02/2017;17.000,00;0,50;31100:::31010;TREVISO:::CIMADOLMO;TREVISO;VENETO;ITALIA;Adattamento al cambiamento da parte di lavoratori, imprese e imprenditori;30/06/2018
FSE;39213;H49J15001050009;04684370267;FANTIC MOTOR SRL;La realizzazione di prodotti eco-compatibili in Fantic Motor;La realizzazione di prodotti eco-compatibili in Fantic Motor;04/09/2015;08/03/2017;27.240,00;0,50;31100:::31030;TREVISO:::CASIER;TREVISO;VENETO;ITALIA;Adattamento al cambiamento da parte di lavoratori, imprese e imprenditori;30/06/2018
FSE;39214;H89J15001880009;01000530285;ITALFIL SPA;Adattare competenze di imprenditori e collaboratori in ambito lean cost a seguito di importanti azioni di lean organisation.;Adattare competenze di imprenditori e collaboratori in ambito lean cost a seguito di importanti azioni di lean organisation.;02/09/2015;12/10/2017;13.212,00;0,50;35100:::35010;PADOVA:::GAZZO;PADOVA;VENETO;ITALIA;Adattamento al cambiamento da parte di lavoratori, imprese e imprenditori;30/06/2018
FSE;39215;H39J15001570009;02429800242;FONDAZIONE CENTRO PRODUTTIVITA' VENETO;Processi innovativi nella produzione della ghisa: la ghisa ad alto contenuto di silicio;Processi innovativi nella produzione della ghisa: la ghisa ad alto contenuto di silicio;04/09/2015;30/10/2017;28.304,00;0,50;36100;VICENZA;VICENZA;VENETO;ITALIA;Adattamento al cambiamento da parte di lavoratori, imprese e imprenditori;30/06/2018
FSE;39216;H99J15002310009;02429800242;FONDAZIONE CENTRO PRODUTTIVITA' VENETO;Prototipazione rapida nell'artigianato artistico;Prototipazione rapida nell'artigianato artistico;04/09/2015;28/02/2017;15.240,00;0,50;36100:::36020;VICENZA:::SOLAGNA;VICENZA;VENETO;ITALIA;Adattamento al cambiamento da parte di lavoratori, imprese e imprenditori;30/06/2018
FSE;39217;H89J15002000009;02645700242;FONDAZIONE CUOA - CENTRO UNIVERSITARIO ORGANIZZAZIONE AZIENDALE;PLANNING & INNOVATION - Innovare il processo di pianificazione e controllo a supporto delle decisioni aziendali;PLANNING & INNOVATION - Innovare il processo di pianificazione e controllo a supporto delle decisioni aziendali;04/08/2015;27/02/2017;40.704,00;0,50;32100:::36100:::37100:::36077:::35100;BELLUNO:::VICENZA:::VERONA:::ALTAVILLA VICENTINA:::PADOVA;VERONA:::BELLUNO:::PADOVA:::VICENZA;VENETO;ITALIA;Adattamento al cambiamento da parte di lavoratori, imprese e imprenditori;30/06/2018
FSE;39218;H79J15001750009;03395860103;CFLI - CONSORZIO FORMAZIONE LOGISTICA INTERMODALE;Lean transformation nel settore dei lampadari di lusso;Lean transformation nel settore dei lampadari di lusso;08/09/2015;23/02/2017;15.184,00;0,50;30100;VENEZIA;VENEZIA;VENETO;ITALIA;Adattamento al cambiamento da parte di lavoratori, imprese e imprenditori;30/06/2018
FSE;39219;H99J15002180009;04308510264;DIADORA SPORT S.R.L.;Formazione per l'innovazione di prodotto tramite l'utilizzo di materiali luminescenti;Formazione per l'innovazione di prodotto tramite l'utilizzo di materiali luminescenti;11/09/2015;24/02/2017;18.368,00;0,50;31100:::31031;TREVISO:::CAERANO DI SAN MARCO;TREVISO;VENETO;ITALIA;Adattamento al cambiamento da parte di lavoratori, imprese e imprenditori;30/06/2018
FSE;39220;H49J15001180009;01910030269;I.S.C.O. S.C.;Sviluppo di tecniche di elaborazione dati per la compensazione della CO2 applicate al ciclo dei rifiuti;Sviluppo di tecniche di elaborazione dati per la compensazione della CO2 applicate al ciclo dei rifiuti;04/08/2015;11/05/2017;15.424,88;0,50;35100:::35043;PADOVA:::MONSELICE;PADOVA;VENETO;ITALIA;Adattamento al cambiamento da parte di lavoratori, imprese e imprenditori;30/06/2018
FSE;39282;H61H15000100009;80007580279;REGIONE DEL VENETO GIUNTA REGIONALE;AFFIDAMENTO IN HOUSE PROVIDING A VENETO LAVORO PORTALE CLIC LAVORO - BORSALAVOROVENETO: SISTEMA TELEMATICO INTEGRATO SU ISTRUZIONE, FORMAZIONE E LAVORO ANNI 2015/2017;CLIC-LAVORO Veneto  :Sistema telematico integrato su istruzione, formazione e lavoro: affidamento in house providing a VENETO LAVORO.;14/05/2015;11/06/2018;1.019.583,33;0,50;30172;VENEZIA;VENEZIA:::VERONA:::TREVISO:::ROVIGO:::BELLUNO:::PADOVA:::VICENZA;VENETO;ITALIA;Modernizzazione delle istituzioni del mercato del lavoro, come i servizi di collocamento pubblici e privati e migliore soddisfazione delle esigenze del mercato del lavoro, anche attraverso interventi a favore della mobilit� transnazionale dei lavoratori, nonch� programmi di mobilit� e una migliore cooperazione tra istituzioni e parti interessate;30/06/2018
FSE;39321;H61H15000090009;80007580279;REGIONE DEL VENETO GIUNTA REGIONALE;DGR 788/15 - UNIT� DI CRISI AZIENDALI, TERRITORIALI E SETTORIALI : AFFIDAMENTO IN HOUSE PROVIDING A VENETO LAVORO - ANNI 2015 / 2017;UNITA' DI CRISI  aziendali, settoriali e territoriali  di cui alla dgr 788/2015 affidata a Veneto Lavoro;14/05/2015;15/04/2018;416.666,67;0,50;30172;VENEZIA;VENEZIA:::VERONA:::TREVISO:::ROVIGO:::BELLUNO:::PADOVA:::VICENZA;VENETO;ITALIA;Adattamento al cambiamento da parte di lavoratori, imprese e imprenditori;30/06/2018
FSE;39621;H19J15002040007;01277330286;COOPERATIVA SOCIALE DIEFFE;Percorsi Triennali di IeFP;Percorsi Triennali di IeFP;09/09/2015;07/06/2017;553.320,00;0,50;32100:::35027:::31100:::36100:::37100:::30100:::35100:::45100;BELLUNO:::NOVENTA PADOVANA:::TREVISO:::VICENZA:::VERONA:::VENEZIA:::PADOVA:::ROVIGO;VENEZIA:::VERONA:::TREVISO:::ROVIGO:::BELLUNO:::PADOVA:::VICENZA;VENETO;ITALIA;Riduzione e prevenzione dell'abbandono scolastico prematuro e promozione della parit� di accesso a un'istruzione prescolare, primaria e secondaria di qualit�, inclusi i percorsi di apprendimento di tipo formale, non formale e informale, per il reinserimento nell'istruzione e nella formazione;30/06/2018
FSE;39622;H59J15002500007;01277330286;COOPERATIVA SOCIALE DIEFFE;Percorsi Triennali di IeFP;Percorsi Triennali di IeFP;09/09/2015;15/12/2017;184.440,00;0,50;32100:::36045:::31100:::36100:::37100:::30100:::35100:::45100;BELLUNO:::LONIGO:::TREVISO:::VICENZA:::VERONA:::VENEZIA:::PADOVA:::ROVIGO;VENEZIA:::VERONA:::TREVISO:::ROVIGO:::BELLUNO:::PADOVA:::VICENZA;VENETO;ITALIA;Riduzione e prevenzione dell'abbandono scolastico prematuro e promozione della parit� di accesso a un'istruzione prescolare, primaria e secondaria di qualit�, inclusi i percorsi di apprendimento di tipo formale, non formale e informale, per il reinserimento nell'istruzione e nella formazione;30/06/2018
FSE;39623;H69J15002720007;01277330286;COOPERATIVA SOCIALE DIEFFE;Percorsi Triennali di IeFP;Percorsi Triennali di IeFP;09/09/2015;31/05/2017;184.440,00;0,50;32100:::30038:::31100:::36100:::37100:::30100:::35100:::45100;BELLUNO:::SPINEA:::TREVISO:::VICENZA:::VERONA:::VENEZIA:::PADOVA:::ROVIGO;VENEZIA:::VERONA:::TREVISO:::ROVIGO:::BELLUNO:::PADOVA:::VICENZA;VENETO;ITALIA;Riduzione e prevenzione dell'abbandono scolastico prematuro e promozione della parit� di accesso a un'istruzione prescolare, primaria e secondaria di qualit�, inclusi i percorsi di apprendimento di tipo formale, non formale e informale, per il reinserimento nell'istruzione e nella formazione;30/06/2018
FSE;39624;H89J15002870007;01277330286;COOPERATIVA SOCIALE DIEFFE;Percorsi Triennali di IeFP;Percorsi Triennali di IeFP;09/09/2015;31/05/2017;184.440,00;0,50;32100:::31100:::36100:::37100:::30100:::35100:::45100:::31049;BELLUNO:::TREVISO:::VICENZA:::VERONA:::VENEZIA:::PADOVA:::ROVIGO:::VALDOBBIADENE;VENEZIA:::VERONA:::TREVISO:::ROVIGO:::BELLUNO:::PADOVA:::VICENZA;VENETO;ITALIA;Riduzione e prevenzione dell'abbandono scolastico prematuro e promozione della parit� di accesso a un'istruzione prescolare, primaria e secondaria di qualit�, inclusi i percorsi di apprendimento di tipo formale, non formale e informale, per il reinserimento nell'istruzione e nella formazione;30/06/2018
FSE;39625;H89J15002890007;00534400254;CENTRO CONSORZI;Percorsi triennali di IeFP;Percorsi triennali di IeFP;11/09/2015;22/06/2017;181.615,50;0,50;32100:::32036;BELLUNO:::SEDICO;BELLUNO;VENETO;ITALIA;Riduzione e prevenzione dell'abbandono scolastico prematuro e promozione della parit� di accesso a un'istruzione prescolare, primaria e secondaria di qualit�, inclusi i percorsi di apprendimento di tipo formale, non formale e informale, per il reinserimento nell'istruzione e nella formazione;30/06/2018
FSE;39626;H39J15004420007;02705030233;C.P. PER LA FORMAZIONE LA SICUREZZA ED I SERVIZI AL LAVORO DI VERONA ESEV CPT;PERCORSI TRIENNALI DI IeFP;PERCORSI TRIENNALI DI IeFP;10/09/2015;01/06/2017;61.950,00;0,50;37100;VERONA;VERONA;VENETO;ITALIA;Riduzione e prevenzione dell'abbandono scolastico prematuro e promozione della parit� di accesso a un'istruzione prescolare, primaria e secondaria di qualit�, inclusi i percorsi di apprendimento di tipo formale, non formale e informale, per il reinserimento nell'istruzione e nella formazione;30/06/2018
FSE;39627;H29J15001530007;02548370234;ASSOCIAZIONE SAN GAETANO;FORMAZIONE INIZIALE - 3 anni;FORMAZIONE INIZIALE - 3 anni;09/09/2015;12/06/2017;461.100,00;0,50;37100:::37047;VERONA:::SAN BONIFACIO;VERONA;VENETO;ITALIA;Riduzione e prevenzione dell'abbandono scolastico prematuro e promozione della parit� di accesso a un'istruzione prescolare, primaria e secondaria di qualit�, inclusi i percorsi di apprendimento di tipo formale, non formale e informale, per il reinserimento nell'istruzione e nella formazione;30/06/2018
FSE;39628;H39J15004410007;80014470241;CENTRO FORM PROF.MAESTRANZE EDILI A. PALLADIO;Percorsi Triennali di IeFP;Percorsi Triennali di IeFP;10/09/2015;07/06/2017;63.180,00;0,50;36100;VICENZA;VICENZA;VENETO;ITALIA;Riduzione e prevenzione dell'abbandono scolastico prematuro e promozione della parit� di accesso a un'istruzione prescolare, primaria e secondaria di qualit�, inclusi i percorsi di apprendimento di tipo formale, non formale e informale, per il reinserimento nell'istruzione e nella formazione;30/06/2018
FSE;39629;H39J15004620007;00671830230;PROVINCIA ITALIANA S.CUORE -  CSF STIMMATINI;Percorsi triennali di IeFP;Percorsi triennali di IeFP;10/09/2015;19/06/2017;550.899,00;0,50;37100;VERONA;VERONA;VENETO;ITALIA;Riduzione e prevenzione dell'abbandono scolastico prematuro e promozione della parit� di accesso a un'istruzione prescolare, primaria e secondaria di qualit�, inclusi i percorsi di apprendimento di tipo formale, non formale e informale, per il reinserimento nell'istruzione e nella formazione;30/06/2018
FSE;39630;H39J15001610009;00348120239;SUORE DELLA COMPAGNIA DI MARIA CFP FORTUNATA GRESNER;Percorsi triennali di IeFP;Percorsi triennali di IeFP;11/09/2015;22/06/2017;276.660,00;0,50;37100;VERONA;VERONA;VENETO;ITALIA;Riduzione e prevenzione dell'abbandono scolastico prematuro e promozione della parit� di accesso a un'istruzione prescolare, primaria e secondaria di qualit�, inclusi i percorsi di apprendimento di tipo formale, non formale e informale, per il reinserimento nell'istruzione e nella formazione;30/06/2018
FSE;39631;H89J15002860007;80000170250;CFS CENTRO PER LA FORMAZIONE E LA SICUREZZA DI BELLUNO;Percorsi triennali di IeFP;Percorsi triennali di IeFP;10/09/2015;11/07/2017;63.180,00;0,50;32100:::32036;BELLUNO:::SEDICO;BELLUNO;VENETO;ITALIA;Riduzione e prevenzione dell'abbandono scolastico prematuro e promozione della parit� di accesso a un'istruzione prescolare, primaria e secondaria di qualit�, inclusi i percorsi di apprendimento di tipo formale, non formale e informale, per il reinserimento nell'istruzione e nella formazione;30/06/2018
FSE;39632;H59J15002510007;91010340288;ASSOCIAZIONE PAVONIANA LA FAMIGLIA;Percorsi triennali di IeFP;Percorsi triennali di IeFP;11/09/2015;30/06/2017;184.440,00;0,50;35044:::35100;MONTAGNANA:::PADOVA;PADOVA;VENETO;ITALIA;Riduzione e prevenzione dell'abbandono scolastico prematuro e promozione della parit� di accesso a un'istruzione prescolare, primaria e secondaria di qualit�, inclusi i percorsi di apprendimento di tipo formale, non formale e informale, per il reinserimento nell'istruzione e nella formazione;30/06/2018
FSE;39633;H49J15001230009;02552190247;ENTE DI FORMAZIONE I.RI.GEM. - SOCIETA' COOPERATIVA;Percorsi triennali di IeFP;Percorsi triennali di IeFP;09/09/2015;05/07/2017;276.660,00;0,50;36027:::36100;ROSA':::VICENZA;VICENZA;VENETO;ITALIA;Riduzione e prevenzione dell'abbandono scolastico prematuro e promozione della parit� di accesso a un'istruzione prescolare, primaria e secondaria di qualit�, inclusi i percorsi di apprendimento di tipo formale, non formale e informale, per il reinserimento nell'istruzione e nella formazione;30/06/2018
FSE;39634;H19J15002050007;92005160285;E.N.A.I.P. VENETO;Percorsi triennali IeFP;Percorsi triennali IeFP;10/09/2015;30/05/2017;549.285,00;0,50;45100;ROVIGO;ROVIGO;VENETO;ITALIA;Riduzione e prevenzione dell'abbandono scolastico prematuro e promozione della parit� di accesso a un'istruzione prescolare, primaria e secondaria di qualit�, inclusi i percorsi di apprendimento di tipo formale, non formale e informale, per il reinserimento nell'istruzione e nella formazione;30/06/2018
FSE;39635;H89J15002900007;92005160285;E.N.A.I.P. VENETO;Percorsi triennali di IeFP;Percorsi triennali di IeFP;10/09/2015;07/06/2017;918.165,00;0,50;35013:::35100;CITTADELLA:::PADOVA;PADOVA;VENETO;ITALIA;Riduzione e prevenzione dell'abbandono scolastico prematuro e promozione della parit� di accesso a un'istruzione prescolare, primaria e secondaria di qualit�, inclusi i percorsi di apprendimento di tipo formale, non formale e informale, per il reinserimento nell'istruzione e nella formazione;30/06/2018
FSE;39636;H49J15002650007;92005160285;E.N.A.I.P. VENETO;Percorsi triennali di IeFP;Percorsi triennali di IeFP;10/09/2015;30/05/2017;828.366,00;0,50;31100:::30100:::31015;TREVISO:::VENEZIA:::CONEGLIANO;VENEZIA:::TREVISO;VENETO;ITALIA;Riduzione e prevenzione dell'abbandono scolastico prematuro e promozione della parit� di accesso a un'istruzione prescolare, primaria e secondaria di qualit�, inclusi i percorsi di apprendimento di tipo formale, non formale e informale, per il reinserimento nell'istruzione e nella formazione;30/06/2018
FSE;39637;H39J15004500007;92005160285;E.N.A.I.P. VENETO;Percorsi triennali di IeFP;Percorsi triennali di IeFP;10/09/2015;07/06/2017;826.752,00;0,50;37100;VERONA;VERONA;VENETO;ITALIA;Riduzione e prevenzione dell'abbandono scolastico prematuro e promozione della parit� di accesso a un'istruzione prescolare, primaria e secondaria di qualit�, inclusi i percorsi di apprendimento di tipo formale, non formale e informale, per il reinserimento nell'istruzione e nella formazione;30/06/2018
FSE;39638;H69J15002730007;92005160285;E.N.A.I.P. VENETO;Percorsi triennali di IeFP;Percorsi triennali di IeFP;10/09/2015;07/06/2017;828.366,00;0,50;32100:::36100;BELLUNO:::VICENZA;BELLUNO:::VICENZA;VENETO;ITALIA;Riduzione e prevenzione dell'abbandono scolastico prematuro e promozione della parit� di accesso a un'istruzione prescolare, primaria e secondaria di qualit�, inclusi i percorsi di apprendimento di tipo formale, non formale e informale, per il reinserimento nell'istruzione e nella formazione;30/06/2018
FSE;39639;H99J15005610007;92005160285;E.N.A.I.P. VENETO;Percorsi triennali di IeFP;Percorsi triennali di IeFP;10/09/2015;07/06/2017;826.348,50;0,50;35100;PADOVA;PADOVA;VENETO;ITALIA;Riduzione e prevenzione dell'abbandono scolastico prematuro e promozione della parit� di accesso a un'istruzione prescolare, primaria e secondaria di qualit�, inclusi i percorsi di apprendimento di tipo formale, non formale e informale, per il reinserimento nell'istruzione e nella formazione;30/06/2018
FSE;39640;H99J15002360009;92051890280;CIOFS/ FP - VENETO;Percorsi triennali di IeFP;Percorsi triennali di IeFP;10/09/2015;30/06/2017;368.880,00;0,50;35100;PADOVA;PADOVA;VENETO;ITALIA;Riduzione e prevenzione dell'abbandono scolastico prematuro e promozione della parit� di accesso a un'istruzione prescolare, primaria e secondaria di qualit�, inclusi i percorsi di apprendimento di tipo formale, non formale e informale, per il reinserimento nell'istruzione e nella formazione;30/06/2018
FSE;39641;H69J15001900009;92051890280;CIOFS/ FP - VENETO;Percorsi Triennali di IeFP;Percorsi Triennali di IeFP;10/09/2015;30/06/2017;184.440,00;0,50;31100:::31015;TREVISO:::CONEGLIANO;TREVISO;VENETO;ITALIA;Riduzione e prevenzione dell'abbandono scolastico prematuro e promozione della parit� di accesso a un'istruzione prescolare, primaria e secondaria di qualit�, inclusi i percorsi di apprendimento di tipo formale, non formale e informale, per il reinserimento nell'istruzione e nella formazione;30/06/2018
FSE;39642;H59J15002570007;80012430262;ASSOCIAZIONE LEPIDO ROCCO;PERCORSI TRIENNALI DI IeFP;PERCORSI TRIENNALI DI IeFP;11/09/2015;22/06/2017;461.100,00;0,50;31100:::30100:::31045;TREVISO:::VENEZIA:::MOTTA DI LIVENZA;VENEZIA:::TREVISO;VENETO;ITALIA;Riduzione e prevenzione dell'abbandono scolastico prematuro e promozione della parit� di accesso a un'istruzione prescolare, primaria e secondaria di qualit�, inclusi i percorsi di apprendimento di tipo formale, non formale e informale, per il reinserimento nell'istruzione e nella formazione;30/06/2018
FSE;39643;H89J15002910007;80012430262;ASSOCIAZIONE LEPIDO ROCCO;PERCORSI TRIENNALI DI IeFP;PERCORSI TRIENNALI DI IeFP;11/09/2015;22/06/2017;664.000,00;0,50;30021:::31100:::30100;CAORLE:::TREVISO:::VENEZIA;VENEZIA:::TREVISO;VENETO;ITALIA;Riduzione e prevenzione dell'abbandono scolastico prematuro e promozione della parit� di accesso a un'istruzione prescolare, primaria e secondaria di qualit�, inclusi i percorsi di apprendimento di tipo formale, non formale e informale, per il reinserimento nell'istruzione e nella formazione;30/06/2018
FSE;39644;H79J15001890009;80009400278;C.I.F. ENTE MORALE  OPERE ASSISTENZIALI;3� anno comparti vari;3� anno comparti vari;15/09/2015;30/06/2017;184.440,00;0,50;30100;VENEZIA;VENEZIA;VENETO;ITALIA;Riduzione e prevenzione dell'abbandono scolastico prematuro e promozione della parit� di accesso a un'istruzione prescolare, primaria e secondaria di qualit�, inclusi i percorsi di apprendimento di tipo formale, non formale e informale, per il reinserimento nell'istruzione e nella formazione;30/06/2018
FSE;39645;H39J15004380007;00451530232;CONGREG. PICCOLE FIGLIE DI SAN GIUSEPPE;Percorsi triennali di IeFP;Percorsi triennali di IeFP;10/09/2015;19/06/2017;92.220,00;0,50;37100;VERONA;VERONA;VENETO;ITALIA;Riduzione e prevenzione dell'abbandono scolastico prematuro e promozione della parit� di accesso a un'istruzione prescolare, primaria e secondaria di qualit�, inclusi i percorsi di apprendimento di tipo formale, non formale e informale, per il reinserimento nell'istruzione e nella formazione;30/06/2018
FSE;39646;H99J15005570007;80006850285;CENTRO PROVINCIALE DI ISTRUZIONE PROFESSIONALE EDILE;Percorsi triennali di  IeFP_3� anno;Percorsi triennali di  IeFP_3� anno;10/09/2015;09/08/2017;125.130,00;0,50;35100;PADOVA;PADOVA;VENETO;ITALIA;Riduzione e prevenzione dell'abbandono scolastico prematuro e promozione della parit� di accesso a un'istruzione prescolare, primaria e secondaria di qualit�, inclusi i percorsi di apprendimento di tipo formale, non formale e informale, per il reinserimento nell'istruzione e nella formazione;30/06/2018
FSE;39647;H99J15005560007;01993240280;ISTITUTI RIUNITI PADOVANI DI EDUCAZIONE E ASSISTENZA;FORMAZIONE INIZIALE 3 anni;FORMAZIONE INIZIALE 3 anni;11/09/2015;29/06/2017;276.660,00;0,50;35100;PADOVA;PADOVA;VENETO;ITALIA;Riduzione e prevenzione dell'abbandono scolastico prematuro e promozione della parit� di accesso a un'istruzione prescolare, primaria e secondaria di qualit�, inclusi i percorsi di apprendimento di tipo formale, non formale e informale, per il reinserimento nell'istruzione e nella formazione;30/06/2018
FSE;39648;H39J15004490007;95074720244;ENGIM VENETO;Percorsi triennali di IeFP;Percorsi triennali di IeFP;09/09/2015;21/06/2017;553.320,00;0,50;36100;VICENZA;VICENZA;VENETO;ITALIA;Riduzione e prevenzione dell'abbandono scolastico prematuro e promozione della parit� di accesso a un'istruzione prescolare, primaria e secondaria di qualit�, inclusi i percorsi di apprendimento di tipo formale, non formale e informale, per il reinserimento nell'istruzione e nella formazione;30/06/2018
FSE;39649;H49J15002680007;95074720244;ENGIM VENETO;Percorsi triennali di IeFP;Percorsi triennali di IeFP;09/09/2015;10/07/2017;458.679,00;0,50;36016:::36100;THIENE:::VICENZA;VICENZA;VENETO;ITALIA;Riduzione e prevenzione dell'abbandono scolastico prematuro e promozione della parit� di accesso a un'istruzione prescolare, primaria e secondaria di qualit�, inclusi i percorsi di apprendimento di tipo formale, non formale e informale, per il reinserimento nell'istruzione e nella formazione;30/06/2018
FSE;39650;H59J15002550007;95074720244;ENGIM VENETO;Percorsi triennali di IeFP;Percorsi triennali di IeFP;09/09/2015;19/06/2017;461.100,00;0,50;30100:::30035;VENEZIA:::MIRANO;VENEZIA;VENETO;ITALIA;Riduzione e prevenzione dell'abbandono scolastico prematuro e promozione della parit� di accesso a un'istruzione prescolare, primaria e secondaria di qualit�, inclusi i percorsi di apprendimento di tipo formale, non formale e informale, per il reinserimento nell'istruzione e nella formazione;30/06/2018
FSE;39651;H49J15002700007;95074720244;ENGIM VENETO;Percorsi triennali di IeFP;Percorsi triennali di IeFP;09/09/2015;22/06/2017;737.760,00;0,50;31100;TREVISO;TREVISO;VENETO;ITALIA;Riduzione e prevenzione dell'abbandono scolastico prematuro e promozione della parit� di accesso a un'istruzione prescolare, primaria e secondaria di qualit�, inclusi i percorsi di apprendimento di tipo formale, non formale e informale, per il reinserimento nell'istruzione e nella formazione;30/06/2018
FSE;39652;H79J15003610007;03479340279;FONDAZIONE CAVANIS;PERCORSI TRIENNALI DI IeFP;PERCORSI TRIENNALI DI IeFP;10/09/2015;26/05/2017;183.633,00;0,50;30015:::30100;CHIOGGIA:::VENEZIA;VENEZIA;VENETO;ITALIA;Riduzione e prevenzione dell'abbandono scolastico prematuro e promozione della parit� di accesso a un'istruzione prescolare, primaria e secondaria di qualit�, inclusi i percorsi di apprendimento di tipo formale, non formale e informale, per il reinserimento nell'istruzione e nella formazione;30/06/2018
FSE;39653;H59J15002560007;95074720244;ENGIM VENETO;Percorsi triennali di IeFP;Percorsi triennali di IeFP;09/09/2015;28/06/2017;401.361,50;0,50;36040:::36100;TONEZZA DEL CIMONE:::VICENZA;VICENZA;VENETO;ITALIA;Riduzione e prevenzione dell'abbandono scolastico prematuro e promozione della parit� di accesso a un'istruzione prescolare, primaria e secondaria di qualit�, inclusi i percorsi di apprendimento di tipo formale, non formale e informale, per il reinserimento nell'istruzione e nella formazione;30/06/2018
FSE;39701;H79J15003590007;03158880272;ENDO-FAP MESTRE ISTITUTO BERNA;Percorsi triennali di IeFp;Percorsi triennali di IeFp;10/09/2015;29/06/2017;457.065,00;0,50;30100;VENEZIA;VENEZIA;VENETO;ITALIA;Riduzione e prevenzione dell'abbandono scolastico prematuro e promozione della parit� di accesso a un'istruzione prescolare, primaria e secondaria di qualit�, inclusi i percorsi di apprendimento di tipo formale, non formale e informale, per il reinserimento nell'istruzione e nella formazione;30/06/2018
FSE;39702;H69J15001910009;00307430132;ASSOCIAZIONE LA NOSTRA FAMIGLIA;Percorsi triennali di IeFP Terzi anni;Percorsi triennali di IeFP Terzi anni;18/09/2015;23/11/2017;184.440,00;0,50;31100:::31015;TREVISO:::CONEGLIANO;TREVISO;VENETO;ITALIA;Riduzione e prevenzione dell'abbandono scolastico prematuro e promozione della parit� di accesso a un'istruzione prescolare, primaria e secondaria di qualit�, inclusi i percorsi di apprendimento di tipo formale, non formale e informale, per il reinserimento nell'istruzione e nella formazione;30/06/2018
FSE;39703;B99J15007980008;80008870265;PROVINCIA DI TREVISO;Percorsi triennali di IeFP;Percorsi triennali di IeFP;15/09/2015;05/07/2017;366.055,50;0,50;31100:::31050;TREVISO:::VILLORBA;TREVISO;VENETO;ITALIA;Riduzione e prevenzione dell'abbandono scolastico prematuro e promozione della parit� di accesso a un'istruzione prescolare, primaria e secondaria di qualit�, inclusi i percorsi di apprendimento di tipo formale, non formale e informale, per il reinserimento nell'istruzione e nella formazione;30/06/2018
FSE;39704;H49J15001210009;00517380267;C.F.P. MADONNA DEL GRAPPA FILIALE DI CASA PRIMARIA IN TV DELLE F.D.C. CANOSSIANE;FORMAZIONE INIZIALE - 3 anni;FORMAZIONE INIZIALE - 3 anni;10/09/2015;07/06/2017;184.440,00;0,50;31100;TREVISO;TREVISO;VENETO;ITALIA;Riduzione e prevenzione dell'abbandono scolastico prematuro e promozione della parit� di accesso a un'istruzione prescolare, primaria e secondaria di qualit�, inclusi i percorsi di apprendimento di tipo formale, non formale e informale, per il reinserimento nell'istruzione e nella formazione;30/06/2018
FSE;39705;H59J15001260009;02733800276;ASSOCIAZIONE CFP SAN LUIGI;Percorsi triennali di IeFP;Percorsi triennali di IeFP;09/09/2015;05/06/2017;184.440,00;0,50;30100:::30027;VENEZIA:::SAN DONA' DI PIAVE;VENEZIA;VENETO;ITALIA;Riduzione e prevenzione dell'abbandono scolastico prematuro e promozione della parit� di accesso a un'istruzione prescolare, primaria e secondaria di qualit�, inclusi i percorsi di apprendimento di tipo formale, non formale e informale, per il reinserimento nell'istruzione e nella formazione;30/06/2018
FSE;39706;H99J15002350009;80015470232;ISTITUTO POVERETTE DELLA CASA DI NAZARETH;Percorsi triennali di IeFP;Percorsi triennali di IeFP;09/09/2015;04/07/2017;182.019,00;0,50;37100:::37029;VERONA:::SAN PIETRO IN CARIANO;VERONA;VENETO;ITALIA;Riduzione e prevenzione dell'abbandono scolastico prematuro e promozione della parit� di accesso a un'istruzione prescolare, primaria e secondaria di qualit�, inclusi i percorsi di apprendimento di tipo formale, non formale e informale, per il reinserimento nell'istruzione e nella formazione;30/06/2018
FSE;39707;H59J15001230009;83002510267;FONDAZIONE OPERA MONTE GRAPPA;Formazione Iniziale - 3 anni;Formazione Iniziale - 3 anni;14/09/2015;15/06/2017;553.320,00;0,50;31100:::31010;TREVISO:::FONTE;TREVISO;VENETO;ITALIA;Riduzione e prevenzione dell'abbandono scolastico prematuro e promozione della parit� di accesso a un'istruzione prescolare, primaria e secondaria di qualit�, inclusi i percorsi di apprendimento di tipo formale, non formale e informale, per il reinserimento nell'istruzione e nella formazione;30/06/2018
FSE;39708;H59J15001240009;83002510267;FONDAZIONE OPERA MONTE GRAPPA;Formazione Iniziale - 3 anni;Formazione Iniziale - 3 anni;14/09/2015;15/06/2017;461.099,40;0,50;31100:::31010;TREVISO:::FONTE;TREVISO;VENETO;ITALIA;Riduzione e prevenzione dell'abbandono scolastico prematuro e promozione della parit� di accesso a un'istruzione prescolare, primaria e secondaria di qualit�, inclusi i percorsi di apprendimento di tipo formale, non formale e informale, per il reinserimento nell'istruzione e nella formazione;30/06/2018
FSE;39709;H39J15004510007;00280090234;CONGR. POVERI SERVI DELLA DIV. PROVV. CBF IST.DON CALABRIA CENTRO POLIFUNZIONALE;Percorsi triennali di IeFP;Percorsi triennali di IeFP;14/09/2015;29/06/2017;368.880,00;0,50;37100;VERONA;VERONA;VENETO;ITALIA;Riduzione e prevenzione dell'abbandono scolastico prematuro e promozione della parit� di accesso a un'istruzione prescolare, primaria e secondaria di qualit�, inclusi i percorsi di apprendimento di tipo formale, non formale e informale, per il reinserimento nell'istruzione e nella formazione;30/06/2018
FSE;39710;H39J15004520007;00670330232;C.F.P. ISTITUTO CANOSSIANO  FILIALE CASA MADRE FIGLIE DELLA CARITA';PERCORSI TRIENNALI DI IeFP: Interventi di terzo anno;PERCORSI TRIENNALI DI IeFP: Interventi di terzo anno;10/09/2015;05/07/2017;276.660,00;0,50;37100;VERONA;VERONA;VENETO;ITALIA;Riduzione e prevenzione dell'abbandono scolastico prematuro e promozione della parit� di accesso a un'istruzione prescolare, primaria e secondaria di qualit�, inclusi i percorsi di apprendimento di tipo formale, non formale e informale, per il reinserimento nell'istruzione e nella formazione;30/06/2018
FSE;39711;H49J15002630007;84006010247;CENTRO FORMAZIONE PROFESSIONALE ANNA ROSSI VED.SAUGO;Percorsi triennali IeFP Terzi anni;Percorsi triennali IeFP Terzi anni;10/09/2015;22/06/2017;274.239,00;0,50;36016:::36100;THIENE:::VICENZA;VICENZA;VENETO;ITALIA;Riduzione e prevenzione dell'abbandono scolastico prematuro e promozione della parit� di accesso a un'istruzione prescolare, primaria e secondaria di qualit�, inclusi i percorsi di apprendimento di tipo formale, non formale e informale, per il reinserimento nell'istruzione e nella formazione;30/06/2018
FSE;39712;H49J15002620007;80005900263;ENTE SCUOLA PROFESSIONALE LAVORATORI EDILI ED AFFINI DELLA PROVINCIA DI TREVISO;Percorsi triennali di IeFP;Percorsi triennali di IeFP;10/09/2015;30/05/2017;63.180,00;0,50;31100;TREVISO;TREVISO;VENETO;ITALIA;Riduzione e prevenzione dell'abbandono scolastico prematuro e promozione della parit� di accesso a un'istruzione prescolare, primaria e secondaria di qualit�, inclusi i percorsi di apprendimento di tipo formale, non formale e informale, per il reinserimento nell'istruzione e nella formazione;30/06/2018
FSE;39713;H39J15004400007;80028030247;PIA SOCIETA' SAN GAETANO;Percorsi triennali di IeFP;Percorsi triennali di IeFP;09/09/2015;22/06/2017;737.760,00;0,50;36100;VICENZA;VICENZA;VENETO;ITALIA;Riduzione e prevenzione dell'abbandono scolastico prematuro e promozione della parit� di accesso a un'istruzione prescolare, primaria e secondaria di qualit�, inclusi i percorsi di apprendimento di tipo formale, non formale e informale, per il reinserimento nell'istruzione e nella formazione;30/06/2018
FSE;39714;H39J15004390007;80028030247;PIA SOCIETA' SAN GAETANO;Percorsi triennali di IeFP;Percorsi triennali di IeFP;09/09/2015;27/06/2017;92.220,00;0,50;36100;VICENZA;VICENZA;VENETO;ITALIA;Riduzione e prevenzione dell'abbandono scolastico prematuro e promozione della parit� di accesso a un'istruzione prescolare, primaria e secondaria di qualit�, inclusi i percorsi di apprendimento di tipo formale, non formale e informale, per il reinserimento nell'istruzione e nella formazione;30/06/2018
FSE;39715;H39J15001620009;80007220231;ASSOCIAZIONE CFP CNOS / FAP SAN ZENO;Percorsi triennali di IeFP;Percorsi triennali di IeFP;10/09/2015;30/06/2017;922.200,00;0,50;37100;VERONA;VERONA;VENETO;ITALIA;Riduzione e prevenzione dell'abbandono scolastico prematuro e promozione della parit� di accesso a un'istruzione prescolare, primaria e secondaria di qualit�, inclusi i percorsi di apprendimento di tipo formale, non formale e informale, per il reinserimento nell'istruzione e nella formazione;30/06/2018
FSE;39716;H19J15000920009;80007220231;ASSOCIAZIONE CFP CNOS / FAP SAN ZENO;Percorsi triennali di IeFP;Percorsi triennali di IeFP;10/09/2015;30/06/2017;90.606,00;0,50;37100:::37010;VERONA:::SANT'AMBROGIO DI VALPOLICELLA;VERONA;VENETO;ITALIA;Riduzione e prevenzione dell'abbandono scolastico prematuro e promozione della parit� di accesso a un'istruzione prescolare, primaria e secondaria di qualit�, inclusi i percorsi di apprendimento di tipo formale, non formale e informale, per il reinserimento nell'istruzione e nella formazione;30/06/2018
FSE;39717;H79J15001900009;80014970273;ASSOCIAZIONE CFP CNOS-FAP SAN MARCO;Percorsi triennali di IeFP;Percorsi triennali di IeFP;15/09/2015;03/08/2017;461.100,00;0,50;30100;VENEZIA;VENEZIA;VENETO;ITALIA;Riduzione e prevenzione dell'abbandono scolastico prematuro e promozione della parit� di accesso a un'istruzione prescolare, primaria e secondaria di qualit�, inclusi i percorsi di apprendimento di tipo formale, non formale e informale, per il reinserimento nell'istruzione e nella formazione;30/06/2018
FSE;39718;H59J15001250009;93005640276;C.F.P.  CNOS/FAP   DON BOSCO;Interventi formativi di terzo anno;Interventi formativi di terzo anno;11/09/2015;11/07/2017;460.293,00;0,50;30100:::30027;VENEZIA:::SAN DONA' DI PIAVE;VENEZIA;VENETO;ITALIA;Riduzione e prevenzione dell'abbandono scolastico prematuro e promozione della parit� di accesso a un'istruzione prescolare, primaria e secondaria di qualit�, inclusi i percorsi di apprendimento di tipo formale, non formale e informale, per il reinserimento nell'istruzione e nella formazione;30/06/2018
FSE;39719;H19J15002030007;03961390287;FRANCESCO D'ASSISI SOC. COOP. SOC.;Percorsi triennali di IeFP;Percorsi triennali di IeFP;10/09/2015;19/06/2017;92.220,00;0,50;35010:::35100;CADONEGHE:::PADOVA;PADOVA;VENETO;ITALIA;Riduzione e prevenzione dell'abbandono scolastico prematuro e promozione della parit� di accesso a un'istruzione prescolare, primaria e secondaria di qualit�, inclusi i percorsi di apprendimento di tipo formale, non formale e informale, per il reinserimento nell'istruzione e nella formazione;30/06/2018
FSE;39720;H49J15001220009;91016230285;ASSOCIAZIONE CFP CNOS-FAP MANFREDINI;Percorsi triennali di IeFP;Percorsi triennali di IeFP;14/09/2015;05/07/2017;461.100,00;0,50;35100:::35042;PADOVA:::ESTE;PADOVA;VENETO;ITALIA;Riduzione e prevenzione dell'abbandono scolastico prematuro e promozione della parit� di accesso a un'istruzione prescolare, primaria e secondaria di qualit�, inclusi i percorsi di apprendimento di tipo formale, non formale e informale, per il reinserimento nell'istruzione e nella formazione;30/06/2018
FSE;39721;H99J15005620007;03234820243;FONDAZIONE CASA DELLA GIOVENTU';Percorsi triennali di IeFP;Percorsi triennali di IeFP;10/09/2015;22/06/2017;641.505,00;0,50;36070:::36100;TRISSINO:::VICENZA;VICENZA;VENETO;ITALIA;Riduzione e prevenzione dell'abbandono scolastico prematuro e promozione della parit� di accesso a un'istruzione prescolare, primaria e secondaria di qualit�, inclusi i percorsi di apprendimento di tipo formale, non formale e informale, per il reinserimento nell'istruzione e nella formazione;30/06/2018
FSE;39722;H19J15002020007;93016390291;ASSISTEDIL;FORMAZIONE INIZIALE - 3 anni;FORMAZIONE INIZIALE - 3 anni;11/09/2015;18/09/2017;60.105,00;0,50;45100;ROVIGO;ROVIGO;VENETO;ITALIA;Riduzione e prevenzione dell'abbandono scolastico prematuro e promozione della parit� di accesso a un'istruzione prescolare, primaria e secondaria di qualit�, inclusi i percorsi di apprendimento di tipo formale, non formale e informale, per il reinserimento nell'istruzione e nella formazione;30/06/2018
FSE;39723;H39J15004370007;02633530239;COOPERATIVA SOCIALE CULTURA E VALORI;Percorsi triennali - Terzi anni;Percorsi triennali - Terzi anni;15/09/2015;04/07/2017;92.220,00;0,50;37100;VERONA;VERONA;VENETO;ITALIA;Riduzione e prevenzione dell'abbandono scolastico prematuro e promozione della parit� di accesso a un'istruzione prescolare, primaria e secondaria di qualit�, inclusi i percorsi di apprendimento di tipo formale, non formale e informale, per il reinserimento nell'istruzione e nella formazione;30/06/2018
FSE;39724;H39J15004600007;01069550257;ISTITUTO LEONARDO DA VINCI;Percorsi triennali di IeFp;Percorsi triennali di IeFp;10/09/2015;28/06/2017;91.009,50;0,50;32100;BELLUNO;BELLUNO;VENETO;ITALIA;Riduzione e prevenzione dell'abbandono scolastico prematuro e promozione della parit� di accesso a un'istruzione prescolare, primaria e secondaria di qualit�, inclusi i percorsi di apprendimento di tipo formale, non formale e informale, per il reinserimento nell'istruzione e nella formazione;30/06/2018
FSE;39725;H29J15001540007;90013780235;ASSOCIAZIONE CFP CNOS/FAP TUSINI;FORMAZIONE INIZIALE -3 anni;FORMAZIONE INIZIALE -3 anni;14/09/2015;02/08/2017;276.660,00;0,50;37011:::37100;BARDOLINO:::VERONA;VERONA;VENETO;ITALIA;Riduzione e prevenzione dell'abbandono scolastico prematuro e promozione della parit� di accesso a un'istruzione prescolare, primaria e secondaria di qualit�, inclusi i percorsi di apprendimento di tipo formale, non formale e informale, per il reinserimento nell'istruzione e nella formazione;30/06/2018
FSE;39726;H79J15001910009;09809670012;FONDAZIONE CASA DI CARITA' ARTI E MESTIERI ONLUS;Percorsi triennali di IeFP  3^ anni;Percorsi triennali di IeFP  3^ anni;11/09/2015;29/06/2017;275.853,00;0,50;36100:::36020;VICENZA:::POVE DEL GRAPPA;VICENZA;VENETO;ITALIA;Riduzione e prevenzione dell'abbandono scolastico prematuro e promozione della parit� di accesso a un'istruzione prescolare, primaria e secondaria di qualit�, inclusi i percorsi di apprendimento di tipo formale, non formale e informale, per il reinserimento nell'istruzione e nella formazione;30/06/2018
FSE;39727;H89J15002080009;92016770247;ASSOCIAZIONE CFP CNOS FAP SALESIANI DON BOSCO;Percorsi triennali di IeFP;Percorsi triennali di IeFP;11/09/2015;05/07/2017;276.660,00;0,50;36100:::36015;VICENZA:::SCHIO;VICENZA;VENETO;ITALIA;Riduzione e prevenzione dell'abbandono scolastico prematuro e promozione della parit� di accesso a un'istruzione prescolare, primaria e secondaria di qualit�, inclusi i percorsi di apprendimento di tipo formale, non formale e informale, per il reinserimento nell'istruzione e nella formazione;30/06/2018
FSE;39728;H39J15004430007;04047560232;SCALIGERA FORMAZIONE SOC. CONSORTILE A RL;Percorsi triennali di IeFP;Percorsi triennali di IeFP;11/09/2015;19/06/2017;820.699,50;0,50;37100;VERONA;VERONA;VENETO;ITALIA;Riduzione e prevenzione dell'abbandono scolastico prematuro e promozione della parit� di accesso a un'istruzione prescolare, primaria e secondaria di qualit�, inclusi i percorsi di apprendimento di tipo formale, non formale e informale, per il reinserimento nell'istruzione e nella formazione;30/06/2018
FSE;39729;H19J15002010007;02552190247;ENTE DI FORMAZIONE I.RI.GEM. - SOCIETA' COOPERATIVA;Percorsi triennali di IeFP;Percorsi triennali di IeFP;09/09/2015;05/07/2017;171.930,00;0,50;36100:::36061;VICENZA:::BASSANO DEL GRAPPA;VICENZA;VENETO;ITALIA;Riduzione e prevenzione dell'abbandono scolastico prematuro e promozione della parit� di accesso a un'istruzione prescolare, primaria e secondaria di qualit�, inclusi i percorsi di apprendimento di tipo formale, non formale e informale, per il reinserimento nell'istruzione e nella formazione;30/06/2018
FSE;39730;H99J15005540007;92005160285;E.N.A.I.P. VENETO;Percorsi triennali di IeFP;Percorsi triennali di IeFP;10/09/2015;07/06/2017;687.720,00;0,50;32100:::31100:::36100:::37100:::30100:::35100:::45100;BELLUNO:::TREVISO:::VICENZA:::VERONA:::VENEZIA:::PADOVA:::ROVIGO;VENEZIA:::VERONA:::TREVISO:::ROVIGO:::BELLUNO:::PADOVA:::VICENZA;VENETO;ITALIA;Riduzione e prevenzione dell'abbandono scolastico prematuro e promozione della parit� di accesso a un'istruzione prescolare, primaria e secondaria di qualit�, inclusi i percorsi di apprendimento di tipo formale, non formale e informale, per il reinserimento nell'istruzione e nella formazione;30/06/2018
FSE;39731;H69J15002750007;80012430262;ASSOCIAZIONE LEPIDO ROCCO;PERCORSO TRIENNALI DI IeFP;PERCORSO TRIENNALI DI IeFP;11/09/2015;22/06/2017;85.965,00;0,50;31100:::31033;TREVISO:::CASTELFRANCO VENETO;TREVISO;VENETO;ITALIA;Riduzione e prevenzione dell'abbandono scolastico prematuro e promozione della parit� di accesso a un'istruzione prescolare, primaria e secondaria di qualit�, inclusi i percorsi di apprendimento di tipo formale, non formale e informale, per il reinserimento nell'istruzione e nella formazione;30/06/2018
FSE;39732;H89J15002880007;00534400254;CENTRO CONSORZI;Percorsi triennali di IeFP;Percorsi triennali di IeFP;14/09/2015;23/06/2017;85.503,00;0,50;32100:::32036;BELLUNO:::SEDICO;BELLUNO;VENETO;ITALIA;Riduzione e prevenzione dell'abbandono scolastico prematuro e promozione della parit� di accesso a un'istruzione prescolare, primaria e secondaria di qualit�, inclusi i percorsi di apprendimento di tipo formale, non formale e informale, per il reinserimento nell'istruzione e nella formazione;30/06/2018
FSE;39733;H79J15001880009;80009400278;C.I.F. ENTE MORALE  OPERE ASSISTENZIALI;3^ anno servizi del benessere;3^ anno servizi del benessere;15/09/2015;30/06/2017;85.965,00;0,50;30100;VENEZIA;VENEZIA;VENETO;ITALIA;Riduzione e prevenzione dell'abbandono scolastico prematuro e promozione della parit� di accesso a un'istruzione prescolare, primaria e secondaria di qualit�, inclusi i percorsi di apprendimento di tipo formale, non formale e informale, per il reinserimento nell'istruzione e nella formazione;30/06/2018
FSE;39734;H49J15002660007;95074720244;ENGIM VENETO;Percorsi triennali di IeFP;Percorsi triennali di IeFP;09/09/2015;18/07/2017;85.965,00;0,50;36016:::36100;THIENE:::VICENZA;VICENZA;VENETO;ITALIA;Riduzione e prevenzione dell'abbandono scolastico prematuro e promozione della parit� di accesso a un'istruzione prescolare, primaria e secondaria di qualit�, inclusi i percorsi di apprendimento di tipo formale, non formale e informale, per il reinserimento nell'istruzione e nella formazione;30/06/2018
FSE;39735;H59J15002530007;95074720244;ENGIM VENETO;Percorsi triennali di IeFP;Percorsi triennali di IeFP;09/09/2015;19/06/2017;85.965,00;0,50;30100:::30035;VENEZIA:::MIRANO;VENEZIA;VENETO;ITALIA;Riduzione e prevenzione dell'abbandono scolastico prematuro e promozione della parit� di accesso a un'istruzione prescolare, primaria e secondaria di qualit�, inclusi i percorsi di apprendimento di tipo formale, non formale e informale, per il reinserimento nell'istruzione e nella formazione;30/06/2018
FSE;39736;H49J15002670007;95074720244;ENGIM VENETO;Percorsi triennali di IeFP;Percorsi triennali di IeFP;09/09/2015;29/06/2017;257.895,00;0,50;31100;TREVISO;TREVISO;VENETO;ITALIA;Riduzione e prevenzione dell'abbandono scolastico prematuro e promozione della parit� di accesso a un'istruzione prescolare, primaria e secondaria di qualit�, inclusi i percorsi di apprendimento di tipo formale, non formale e informale, per il reinserimento nell'istruzione e nella formazione;30/06/2018
FSE;39737;H79J15003690007;03479340279;FONDAZIONE CAVANIS;PERCORSI TRIENNALI DI IeFP;PERCORSI TRIENNALI DI IeFP;10/09/2015;23/06/2017;257.895,00;0,50;30015:::30100;CHIOGGIA:::VENEZIA;VENEZIA;VENETO;ITALIA;Riduzione e prevenzione dell'abbandono scolastico prematuro e promozione della parit� di accesso a un'istruzione prescolare, primaria e secondaria di qualit�, inclusi i percorsi di apprendimento di tipo formale, non formale e informale, per il reinserimento nell'istruzione e nella formazione;30/06/2018
FSE;39738;H79J15003600007;03158880272;ENDO-FAP MESTRE ISTITUTO BERNA;Percorsi triennali di IeFp;Percorsi triennali di IeFp;10/09/2015;29/06/2017;85.965,00;0,50;30100;VENEZIA;VENEZIA;VENETO;ITALIA;Riduzione e prevenzione dell'abbandono scolastico prematuro e promozione della parit� di accesso a un'istruzione prescolare, primaria e secondaria di qualit�, inclusi i percorsi di apprendimento di tipo formale, non formale e informale, per il reinserimento nell'istruzione e nella formazione;30/06/2018
FSE;39739;B99J15007990008;80008870265;PROVINCIA DI TREVISO;Percorsi triennali di IeFP;Percorsi triennali di IeFP;15/09/2015;05/07/2017;171.468,00;0,50;31100:::31050;TREVISO:::VILLORBA;TREVISO;VENETO;ITALIA;Riduzione e prevenzione dell'abbandono scolastico prematuro e promozione della parit� di accesso a un'istruzione prescolare, primaria e secondaria di qualit�, inclusi i percorsi di apprendimento di tipo formale, non formale e informale, per il reinserimento nell'istruzione e nella formazione;30/06/2018
FSE;39740;H59J15001270009;02733800276;ASSOCIAZIONE CFP SAN LUIGI;Percorsi triennali di IeFP;Percorsi triennali di IeFP;09/09/2015;07/06/2017;85.965,00;0,50;30100:::30027;VENEZIA:::SAN DONA' DI PIAVE;VENEZIA;VENETO;ITALIA;Riduzione e prevenzione dell'abbandono scolastico prematuro e promozione della parit� di accesso a un'istruzione prescolare, primaria e secondaria di qualit�, inclusi i percorsi di apprendimento di tipo formale, non formale e informale, per il reinserimento nell'istruzione e nella formazione;30/06/2018
FSE;39741;H49J15002640007;84006010247;CENTRO FORMAZIONE PROFESSIONALE ANNA ROSSI VED.SAUGO;Percorsi triennali di IeFP Terzo anno;Percorsi triennali di IeFP Terzo anno;10/09/2015;22/06/2017;85.965,00;0,50;36016:::36100;THIENE:::VICENZA;VICENZA;VENETO;ITALIA;Riduzione e prevenzione dell'abbandono scolastico prematuro e promozione della parit� di accesso a un'istruzione prescolare, primaria e secondaria di qualit�, inclusi i percorsi di apprendimento di tipo formale, non formale e informale, per il reinserimento nell'istruzione e nella formazione;30/06/2018
FSE;39742;H59J15002520007;91010340288;ASSOCIAZIONE PAVONIANA LA FAMIGLIA;Percorsi triennali di IeFP;Percorsi triennali di IeFP;11/09/2015;29/06/2017;171.930,00;0,50;35044:::35100;MONTAGNANA:::PADOVA;PADOVA;VENETO;ITALIA;Riduzione e prevenzione dell'abbandono scolastico prematuro e promozione della parit� di accesso a un'istruzione prescolare, primaria e secondaria di qualit�, inclusi i percorsi di apprendimento di tipo formale, non formale e informale, per il reinserimento nell'istruzione e nella formazione;30/06/2018
FSE;39743;H49J15002690007;01863370266;A.F.L. ACCADEMIA FORMAZIONE LAVORO;FORMAZIONE INIZIALE - 3 anni;FORMAZIONE INIZIALE - 3 anni;25/09/2015;25/10/2017;84.579,00;0,50;31100;TREVISO;TREVISO;VENETO;ITALIA;Riduzione e prevenzione dell'abbandono scolastico prematuro e promozione della parit� di accesso a un'istruzione prescolare, primaria e secondaria di qualit�, inclusi i percorsi di apprendimento di tipo formale, non formale e informale, per il reinserimento nell'istruzione e nella formazione;30/06/2018
FSE;39744;H69J15002740007;02021200262;S.E.G.R.A. SCUOLA PROFESSIONALE DI ESTETICA;Percorsi triennali di IeFP;Percorsi triennali di IeFP;11/09/2015;26/05/2017;171.930,00;0,50;31100:::31033;TREVISO:::CASTELFRANCO VENETO;TREVISO;VENETO;ITALIA;Riduzione e prevenzione dell'abbandono scolastico prematuro e promozione della parit� di accesso a un'istruzione prescolare, primaria e secondaria di qualit�, inclusi i percorsi di apprendimento di tipo formale, non formale e informale, per il reinserimento nell'istruzione e nella formazione;30/06/2018
FSE;39745;H39J15004460007;00239360233;LUNIKLEF;Percorsi triennali di IeFP;Percorsi triennali di IeFP;11/09/2015;01/06/2017;427.977,00;0,50;37100;VERONA;VERONA;VENETO;ITALIA;Riduzione e prevenzione dell'abbandono scolastico prematuro e promozione della parit� di accesso a un'istruzione prescolare, primaria e secondaria di qualit�, inclusi i percorsi di apprendimento di tipo formale, non formale e informale, per il reinserimento nell'istruzione e nella formazione;30/06/2018
FSE;39746;H59J15002540007;00239360233;LUNIKLEF;Terzi anni 'Operatore del benessere' - San Don� di Piave;Terzi anni 'Operatore del benessere' - San Don� di Piave;11/09/2015;01/06/2017;171.930,00;0,50;30100:::30027;VENEZIA:::SAN DONA' DI PIAVE;VENEZIA;VENETO;ITALIA;Riduzione e prevenzione dell'abbandono scolastico prematuro e promozione della parit� di accesso a un'istruzione prescolare, primaria e secondaria di qualit�, inclusi i percorsi di apprendimento di tipo formale, non formale e informale, per il reinserimento nell'istruzione e nella formazione;30/06/2018
FSE;39747;H99J15005590007;03234820243;FONDAZIONE CASA DELLA GIOVENTU';Percorsi triennali di IeFP;Percorsi triennali di IeFP;10/09/2015;28/06/2017;85.041,00;0,50;36070:::36100;TRISSINO:::VICENZA;VICENZA;VENETO;ITALIA;Riduzione e prevenzione dell'abbandono scolastico prematuro e promozione della parit� di accesso a un'istruzione prescolare, primaria e secondaria di qualit�, inclusi i percorsi di apprendimento di tipo formale, non formale e informale, per il reinserimento nell'istruzione e nella formazione;30/06/2018
FSE;39748;H39J15004610007;03698770231;SCUOLA STYLE ITALIANO SOCIETA' COOPERATIVA;Percorsi triennali di IeFP;Percorsi triennali di IeFP;10/09/2015;05/07/2017;85.965,00;0,50;37100;VERONA;VERONA;VENETO;ITALIA;Riduzione e prevenzione dell'abbandono scolastico prematuro e promozione della parit� di accesso a un'istruzione prescolare, primaria e secondaria di qualit�, inclusi i percorsi di apprendimento di tipo formale, non formale e informale, per il reinserimento nell'istruzione e nella formazione;30/06/2018
FSE;39749;H99J15005600007;92209150280;ASSOCIAZIONE SCUOLA PRIMIA;Percorsi triennali di IeFP;Percorsi triennali di IeFP;11/09/2015;04/07/2017;171.930,00;0,50;35100;PADOVA;PADOVA;VENETO;ITALIA;Riduzione e prevenzione dell'abbandono scolastico prematuro e promozione della parit� di accesso a un'istruzione prescolare, primaria e secondaria di qualit�, inclusi i percorsi di apprendimento di tipo formale, non formale e informale, per il reinserimento nell'istruzione e nella formazione;30/06/2018
FSE;39750;H39J15004470007;03790170231;ASSESTETICA  ANTOS;Percorsi triennali di IeFP;Percorsi triennali di IeFP;10/09/2015;02/08/2017;85.965,00;0,50;37100;VERONA;VERONA;VENETO;ITALIA;Riduzione e prevenzione dell'abbandono scolastico prematuro e promozione della parit� di accesso a un'istruzione prescolare, primaria e secondaria di qualit�, inclusi i percorsi di apprendimento di tipo formale, non formale e informale, per il reinserimento nell'istruzione e nella formazione;30/06/2018
FSE;39751;H39J15004440007;03482600248;VICTORY TNG;Percorsi triennali di IeFP;Percorsi triennali di IeFP;10/09/2015;07/08/2017;429.825,00;0,50;36100:::35100;VICENZA:::PADOVA;PADOVA:::VICENZA;VENETO;ITALIA;Riduzione e prevenzione dell'abbandono scolastico prematuro e promozione della parit� di accesso a un'istruzione prescolare, primaria e secondaria di qualit�, inclusi i percorsi di apprendimento di tipo formale, non formale e informale, per il reinserimento nell'istruzione e nella formazione;30/06/2018
FSE;39752;H79J15003680007;01069550257;ISTITUTO LEONARDO DA VINCI;Percorsi triennali di IeFp;Percorsi triennali di IeFp;10/09/2015;28/06/2017;170.082,00;0,50;32100:::31100;BELLUNO:::TREVISO;TREVISO:::BELLUNO;VENETO;ITALIA;Riduzione e prevenzione dell'abbandono scolastico prematuro e promozione della parit� di accesso a un'istruzione prescolare, primaria e secondaria di qualit�, inclusi i percorsi di apprendimento di tipo formale, non formale e informale, per il reinserimento nell'istruzione e nella formazione;30/06/2018
FSE;39753;H39J15004480007;03791800232;CENTRO DI FORMAZIONE PROFESSIONALE SCUOLA TRENTO;Percorsi triennali di IeFP;Percorsi triennali di IeFP;10/09/2015;15/06/2017;256.509,00;0,50;37100;VERONA;VERONA;VENETO;ITALIA;Riduzione e prevenzione dell'abbandono scolastico prematuro e promozione della parit� di accesso a un'istruzione prescolare, primaria e secondaria di qualit�, inclusi i percorsi di apprendimento di tipo formale, non formale e informale, per il reinserimento nell'istruzione e nella formazione;30/06/2018
FSE;39763;H79D15000680009;80007580279;REGIONE DEL VENETO GIUNTA REGIONALE;VENETO LAVORO SERVIZIO DI ASSISTENZA TECNICA ANNI 2015 - 2018;VENETO LAVORO SERVIZIO DI ASSISTENZA TECNICA ANNI 2015 - 2018;14/09/2015;30/06/2019;5.250.000,00;0,50;30121;VENEZIA;VENEZIA;VENETO;ITALIA;Preparazione, attuazione, sorveglianza e ispezioni;30/06/2018
FSE;39801;H99J15005580007;02021200262;S.E.G.R.A. SCUOLA PROFESSIONALE DI ESTETICA;"Terzi anni ""Operatore al benessere"" - Padova";"Terzi anni ""Operatore al benessere"" - Padova";11/09/2015;30/05/2017;297.363,00;0,50;35100;PADOVA;PADOVA;VENETO;ITALIA;Riduzione e prevenzione dell'abbandono scolastico prematuro e promozione della parit� di accesso a un'istruzione prescolare, primaria e secondaria di qualit�, inclusi i percorsi di apprendimento di tipo formale, non formale e informale, per il reinserimento nell'istruzione e nella formazione;30/06/2018
FSE;39881;H49J15001280009;03209010267;IN.PRINCIPIO SRL;Percorsi di outplacement nell'Alto Trevigiano;Percorsi di outplacement nell'Alto Trevigiano;21/09/2015;11/11/2016;135.824,00;0,50;31100;TREVISO;TREVISO;VENETO;ITALIA;Adattamento al cambiamento da parte di lavoratori, imprese e imprenditori;30/06/2018
FSE;39882;H39J15001970009;02449180237;E.NA.C. ENTE NAZIONALE  CANOSSIANO;Percorsi di outplacement per lavoratori dellazienda ELCOGRAF SPA;Percorsi di outplacement per lavoratori dellazienda ELCOGRAF SPA;15/09/2015;01/09/2017;37.648,00;0,50;37100;VERONA;VERONA;VENETO;ITALIA;Adattamento al cambiamento da parte di lavoratori, imprese e imprenditori;30/06/2018
FSE;39883;H79J15001970009;03266230279;APINDUSTRIA SERVIZI SRL;PROGETTO DI RIQUALIFICAZIONE PER L'AZIENDA KALLISTE';PROGETTO DI RIQUALIFICAZIONE PER L'AZIENDA KALLISTE';15/09/2015;12/09/2017;84.840,00;0,50;30100:::30030;VENEZIA:::FOSSO';VENEZIA;VENETO;ITALIA;Adattamento al cambiamento da parte di lavoratori, imprese e imprenditori;30/06/2018
FSE;39884;H39J15001980009;02429800242;FONDAZIONE CENTRO PRODUTTIVITA' VENETO;Percorsi di riqualificazione sullinternazionalizzazione dimpresa;Percorsi di riqualificazione sullinternazionalizzazione dimpresa;15/09/2015;11/05/2018;32.952,00;0,50;36100;VICENZA;VICENZA;VENETO;ITALIA;Adattamento al cambiamento da parte di lavoratori, imprese e imprenditori;30/06/2018
FSE;39885;H89J15002110009;92005160285;E.N.A.I.P. VENETO;PROGETTO DI RICOLLOCAZIONE PROFESSIONALE PER IL PERSONALE DI BERTI SNC;PROGETTO DI RICOLLOCAZIONE PROFESSIONALE PER IL PERSONALE DI BERTI SNC;21/09/2015;11/11/2016;34.080,00;0,50;35013:::35100;CITTADELLA:::PADOVA;PADOVA;VENETO;ITALIA;Adattamento al cambiamento da parte di lavoratori, imprese e imprenditori;30/06/2018
FSE;39886;H89J15002120009;01742990243;ISTITUTO DI PROGRAMMAZIONE E ORGANIZZAZIONE DELLO SVILUPPO TERRITORIALE - POSTER;Percorso di riqualificazione per operatori di logistica evoluti in Cedi Sisa Centro Nord S.p.A.;Percorso di riqualificazione per operatori di logistica evoluti in Cedi Sisa Centro Nord S.p.A.;25/09/2015;31/08/2017;75.712,00;0,50;36100:::36040;VICENZA:::GRISIGNANO DI ZOCCO;VICENZA;VENETO;ITALIA;Adattamento al cambiamento da parte di lavoratori, imprese e imprenditori;30/06/2018
FSE;39887;H19J15000960009;01742990243;ISTITUTO DI PROGRAMMAZIONE E ORGANIZZAZIONE DELLO SVILUPPO TERRITORIALE - POSTER;Percorso di riqualificazione per i lavoratori di BUSSANDRI OSCAR S.R.L.;Percorso di riqualificazione per i lavoratori di BUSSANDRI OSCAR S.R.L.;25/09/2015;14/09/2017;48.752,00;0,50;36100:::36061;VICENZA:::BASSANO DEL GRAPPA;VICENZA;VENETO;ITALIA;Adattamento al cambiamento da parte di lavoratori, imprese e imprenditori;30/06/2018
FSE;39888;H79J15001980009;04008340285;JOB SELECT SRL;La riqualificazione Professionale e il Reimpiego dei lavoratori Cedi Sisa Centro Nord in Cassa Integrazione Straordinaria;La riqualificazione Professionale e il Reimpiego dei lavoratori Cedi Sisa Centro Nord in Cassa Integrazione Straordinaria;16/09/2015;21/07/2017;74.864,00;0,50;35010:::35100;VILLAFRANCA PADOVANA:::PADOVA;PADOVA;VENETO;ITALIA;Adattamento al cambiamento da parte di lavoratori, imprese e imprenditori;30/06/2018
FSE;39889;H29J15000850009;03824150282;EDUFORMA SRL;Progetto di riqualificazione professionale dei lavoratori in CIGS di Bertucco Srl;Progetto di riqualificazione professionale dei lavoratori in CIGS di Bertucco Srl;22/09/2015;27/04/2018;31.264,00;0,50;37100:::37069;VERONA:::VILLAFRANCA DI VERONA;VERONA;VENETO;ITALIA;Adattamento al cambiamento da parte di lavoratori, imprese e imprenditori;30/06/2018
FSE;39890;H39J15001990009;02263920262;FORCOOP CORA VENEZIA SC;NUOVE CHANCE DA COLTIVARE;NUOVE CHANCE DA COLTIVARE;22/09/2015;22/09/2017;24.735,00;0,50;32100;BELLUNO;BELLUNO;VENETO;ITALIA;Adattamento al cambiamento da parte di lavoratori, imprese e imprenditori;30/06/2018
FSE;39891;H79J15001960009;13081080155;ADECCO FORMAZIONE SRL;Percorso di riqualificazione e outplacement per lavoratori della Demont Ambiente srl;Percorso di riqualificazione e outplacement per lavoratori della Demont Ambiente srl;15/09/2015;19/12/2017;29.240,00;0,50;30100;VENEZIA;VENEZIA;VENETO;ITALIA;Adattamento al cambiamento da parte di lavoratori, imprese e imprenditori;30/06/2018
FSE;39981;H39J15002060007;02429800242;FONDAZIONE CENTRO PRODUTTIVITA' VENETO;Addetti alla manutenzione di cicloveicoli e di componenti per la pedalata assistita;Addetti alla manutenzione di cicloveicoli e di componenti per la pedalata assistita;28/09/2015;08/05/2018;54.576,00;0,50;36100;VICENZA;VICENZA;VENETO;ITALIA;Inclusione attiva, anche al fine di promuovere le pari opportunit�, e partecipazione attiva, nonch� migliore occupabilit�;30/06/2018
FSE;39982;H39J15002070007;03636740239;LAVORO & SOCIETA' S.C.A.R.L.;Facilitatore delle funzioni d'ufficio;Facilitatore delle funzioni d'ufficio;21/09/2015;20/09/2017;66.414,00;0,50;37100;VERONA;VERONA;VENETO;ITALIA;Inclusione attiva, anche al fine di promuovere le pari opportunit�, e partecipazione attiva, nonch� migliore occupabilit�;30/06/2018
FSE;39983;H79J15002070007;92005160285;E.N.A.I.P. VENETO;PERCORSI PER L' OCCUPABILITA' E LA RICOLLOCAZIONE DI PERSONE DISOCCUPATE;PERCORSI PER L' OCCUPABILITA' E LA RICOLLOCAZIONE DI PERSONE DISOCCUPATE;21/09/2015;09/06/2017;155.890,00;0,50;36100:::37100:::35100:::45100;VICENZA:::VERONA:::PADOVA:::ROVIGO;VERONA:::ROVIGO:::PADOVA:::VICENZA;VENETO;ITALIA;Inclusione attiva, anche al fine di promuovere le pari opportunit�, e partecipazione attiva, nonch� migliore occupabilit�;30/06/2018
FSE;39984;H49J15001320007;02301900268;UNINDUSTRIA TREVISO SERVIZI & FORMAZIONE SCARL;Strategia S.E.O. per disoccupati: Self marketing, Empowerment, Outplacement;Strategia S.E.O. per disoccupati: Self marketing, Empowerment, Outplacement;18/09/2015;03/10/2017;101.252,00;0,50;31100;TREVISO;TREVISO;VENETO;ITALIA;Inclusione attiva, anche al fine di promuovere le pari opportunit�, e partecipazione attiva, nonch� migliore occupabilit�;30/06/2018
FSE;39985;H19J15001050007;12730090151;RANDSTAD ITALIA SPA;PICK AND PACK: OBIETTIVO OCCUPAZIONE;PICK AND PACK: OBIETTIVO OCCUPAZIONE;28/09/2015;09/06/2017;400.120,00;0,50;31100:::36100:::37100:::35100;TREVISO:::VICENZA:::VERONA:::PADOVA;VERONA:::TREVISO:::PADOVA:::VICENZA;VENETO;ITALIA;Inclusione attiva, anche al fine di promuovere le pari opportunit�, e partecipazione attiva, nonch� migliore occupabilit�;30/06/2018
FSE;39986;H99J15002480007;03824150282;EDUFORMA SRL;Progettista in modellazione e rendering specialista in Building Information Modeling;Progettista in modellazione e rendering specialista in Building Information Modeling;22/09/2015;24/11/2017;57.900,00;0,50;35100;PADOVA;PADOVA;VENETO;ITALIA;Inclusione attiva, anche al fine di promuovere le pari opportunit�, e partecipazione attiva, nonch� migliore occupabilit�;30/06/2018
FSE;39987;H99J15002490007;00453310351;IFOA - ISTITUTO FORMAZIONE OPERATORI AZIENDALI;ADDETTO AMMINISTRATIVO E SEGRETARIALE: SVILUPPO DI NUOVE COMPETENZE;ADDETTO AMMINISTRATIVO E SEGRETARIALE: SVILUPPO DI NUOVE COMPETENZE;25/09/2015;17/04/2018;48.728,00;0,50;35100;PADOVA;PADOVA;VENETO;ITALIA;Inclusione attiva, anche al fine di promuovere le pari opportunit�, e partecipazione attiva, nonch� migliore occupabilit�;30/06/2018
FSE;39988;H39J15002080007;93197400232;UN.I.COOP. - UNIONE REGIONALE VENETO;Addetto alla Gestione del Magazzino in Impianto Logistico;Addetto alla Gestione del Magazzino in Impianto Logistico;22/09/2015;27/03/2018;59.610,00;0,50;37100;VERONA;VERONA;VENETO;ITALIA;Inclusione attiva, anche al fine di promuovere le pari opportunit�, e partecipazione attiva, nonch� migliore occupabilit�;30/06/2018
FSE;39989;H99J15002450009;02422020285;FOREMA SRL;SUPER - Supporto e Riqualificazione;SUPER - Supporto e Riqualificazione;23/09/2015;11/10/2017;248.561,20;0,50;35100;PADOVA;PADOVA;VENETO;ITALIA;Inclusione attiva, anche al fine di promuovere le pari opportunit�, e partecipazione attiva, nonch� migliore occupabilit�;30/06/2018
FSE;39990;H39J15002090007;93053120239;AGORA' ASSOCIAZIONE PER LO SVILUPPO DELLA FORMAZIONE;Addetto amministrativo contabile;Addetto amministrativo contabile;22/09/2015;14/03/2018;64.374,00;0,50;37100;VERONA;VERONA;VENETO;ITALIA;Inclusione attiva, anche al fine di promuovere le pari opportunit�, e partecipazione attiva, nonch� migliore occupabilit�;30/06/2018
FSE;39991;H89J15002190007;04491010288;ATTIVAMENTE SRL;AIUTO CUOCO NELLA RISTORAZIONE;AIUTO CUOCO NELLA RISTORAZIONE;21/09/2015;09/06/2017;87.016,00;0,50;35013:::35100;CITTADELLA:::PADOVA;PADOVA;VENETO;ITALIA;Inclusione attiva, anche al fine di promuovere le pari opportunit�, e partecipazione attiva, nonch� migliore occupabilit�;30/06/2018
FSE;40001;H19J15000980009;93005260299;CIFIR - CONSORZIO INDUSTRIALIE FORMAZIO-NE E INNOVAZIONE ROVIGO;FUTOUR: progetto di formazione continua: il turismo del futuro tra tecnologia, comunicazione e ospitalit�;FUTOUR: progetto di formazione continua: il turismo del futuro tra tecnologia, comunicazione e ospitalit�;29/09/2015;25/07/2018;254.009,60;0,50;45100;ROVIGO;ROVIGO;VENETO;ITALIA;Adattamento al cambiamento da parte di lavoratori, imprese e imprenditori;30/06/2018
FSE;40002;H39J15002020009;03395860103;CFLI - CONSORZIO FORMAZIONE LOGISTICA INTERMODALE;Truck business School;Truck business School;29/09/2015;25/07/2018;107.816,00;0,50;37100;VERONA;VERONA;VENETO;ITALIA;Adattamento al cambiamento da parte di lavoratori, imprese e imprenditori;30/06/2018
FSE;40003;H39J15002010009;04602310288;ERGON S.R.L.;Promuovere leccellenza veneta dellindustria alimentare: linnovazione in rete;Promuovere leccellenza veneta dellindustria alimentare: linnovazione in rete;29/09/2015;25/07/2018;115.423,50;0,50;32100:::31100:::36100:::37100:::30100:::35100:::45100;BELLUNO:::TREVISO:::VICENZA:::VERONA:::VENEZIA:::PADOVA:::ROVIGO;VENEZIA:::VERONA:::TREVISO:::ROVIGO:::BELLUNO:::PADOVA:::VICENZA;VENETO;ITALIA;Adattamento al cambiamento da parte di lavoratori, imprese e imprenditori;30/06/2018
FSE;40004;H89J15002160009;01659800278;CONFINDUSTRIA VENETO SIAV S.P.A.;RETI DELLA CONOSCENZA OPEN INNOVATION per la Meccanica meccatronica e industrie creative;RETI DELLA CONOSCENZA OPEN INNOVATION per la Meccanica meccatronica e industrie creative;25/09/2015;09/04/2018;149.876,00;0,50;31100:::36100:::37100:::30100:::35100;TREVISO:::VICENZA:::VERONA:::VENEZIA:::PADOVA;VENEZIA:::VERONA:::TREVISO:::PADOVA:::VICENZA;VENETO;ITALIA;Adattamento al cambiamento da parte di lavoratori, imprese e imprenditori;30/06/2018
FSE;40005;H69J15002540007;02700760248;RISORSE IN CRESCITA S.R.L.;STREAM - Strumenti di E-business e nuovi Approcci al Mercato per accrescere la competitivit� aziendale;STREAM - Strumenti di E-business e nuovi Approcci al Mercato per accrescere la competitivit� aziendale;23/09/2015;25/07/2018;299.771,50;0,50;31100:::36100:::36077:::35100;TREVISO:::VICENZA:::ALTAVILLA VICENTINA:::PADOVA;TREVISO:::PADOVA:::VICENZA;VENETO;ITALIA;Adattamento al cambiamento da parte di lavoratori, imprese e imprenditori;30/06/2018
FSE;40006;H59J15001340009;03489380265;IMPRESA VERDE TREVISO-BELLUNO SRL;Reti non tradizionali per un'agricoltura che innova;Reti non tradizionali per un'agricoltura che innova;01/10/2015;25/07/2018;298.864,91;0,50;32100:::31038:::31100:::30100:::35100;BELLUNO:::PAESE:::TREVISO:::VENEZIA:::PADOVA;VENEZIA:::TREVISO:::BELLUNO:::PADOVA;VENETO;ITALIA;Adattamento al cambiamento da parte di lavoratori, imprese e imprenditori;30/06/2018
FSE;40007;H19J15001020009;03314980271;POLITECNICO CALZATURIERO SCRL;Digital Industry 4.0: Aziende in rete per l'innovazione nel settore moda/calzatura;Digital Industry 4.0: Aziende in rete per l'innovazione nel settore moda/calzatura;25/09/2015;25/07/2018;254.260,00;0,50;31100:::36100:::35010:::30100:::35100:::45100;TREVISO:::VICENZA:::VIGONZA:::VENEZIA:::PADOVA:::ROVIGO;VENEZIA:::TREVISO:::ROVIGO:::PADOVA:::VICENZA;VENETO;ITALIA;Adattamento al cambiamento da parte di lavoratori, imprese e imprenditori;30/06/2018
FSE;40008;H79J15002000009;03387580271;FONDAZIONE UNIVERSITA' CA' FOSCARI VENEZIA;Alta Gamma: sinergie tra ospitalit� alberghiera, cultura e industria creativa nella citta darte;Alta Gamma: sinergie tra ospitalit� alberghiera, cultura e industria creativa nella citta darte;16/09/2015;22/06/2018;79.026,00;0,50;30100;VENEZIA;VENEZIA;VENETO;ITALIA;Adattamento al cambiamento da parte di lavoratori, imprese e imprenditori;30/06/2018
FSE;40009;H79J15001990009;02506720271;ASCOM SERVIZI DEL MANDAMENTO DI S. DONA' DI PIAVE SRL;AZIENDE COMMERCIALI IN RETE PER INNOVARE IL PROCESSO DI VENDITA;AZIENDE COMMERCIALI IN RETE PER INNOVARE IL PROCESSO DI VENDITA;23/09/2015;25/07/2018;94.820,00;0,50;30100;VENEZIA;VENEZIA;VENETO;ITALIA;Adattamento al cambiamento da parte di lavoratori, imprese e imprenditori;30/06/2018
FSE;40010;H39J15004040009;04008340285;JOB SELECT SRL;Innovazione e formazione per imprese della metallurgia pesante;Innovazione e formazione per imprese della metallurgia pesante;23/09/2015;25/07/2018;273.426,00;0,50;36100;VICENZA;VICENZA;VENETO;ITALIA;Adattamento al cambiamento da parte di lavoratori, imprese e imprenditori;30/06/2018
FSE;40011;H29J15000900009;01578660936;TECUM SRL;Innovazione, collaborazione e nuovi modelli di business nella meccanica veneta;Innovazione, collaborazione e nuovi modelli di business nella meccanica veneta;01/10/2015;16/11/2017;159.471,00;0,50;32100:::31100:::36100:::37100:::30100:::35100;BELLUNO:::TREVISO:::VICENZA:::VERONA:::VENEZIA:::PADOVA;VENEZIA:::VERONA:::TREVISO:::BELLUNO:::PADOVA:::VICENZA;VENETO;ITALIA;Adattamento al cambiamento da parte di lavoratori, imprese e imprenditori;30/06/2018
FSE;40012;H29J15000890009;02645700242;FONDAZIONE CUOA - CENTRO UNIVERSITARIO ORGANIZZAZIONE AZIENDALE;SVILUPPO DIMENSIONALE E CRESCITA PER LINEE ESTERNE: Percorso Executive in Strategia & Finanza;SVILUPPO DIMENSIONALE E CRESCITA PER LINEE ESTERNE: Percorso Executive in Strategia & Finanza;23/09/2015;08/03/2018;159.798,00;0,50;32100:::31100:::36100:::37100:::30100:::36077:::35100:::45100;BELLUNO:::TREVISO:::VICENZA:::VERONA:::VENEZIA:::ALTAVILLA VICENTINA:::PADOVA:::ROVIGO;VENEZIA:::VERONA:::TREVISO:::ROVIGO:::BELLUNO:::PADOVA:::VICENZA;VENETO;ITALIA;Adattamento al cambiamento da parte di lavoratori, imprese e imprenditori;30/06/2018
FSE;40013;H99J15002440009;13063380151;E-WORK SPA;INNOVAZIONI DEI MATERIALI E DELLE TECNOLOGIE IMPIANTISTICHE;INNOVAZIONI DEI MATERIALI E DELLE TECNOLOGIE IMPIANTISTICHE;06/10/2015;06/03/2018;104.768,00;0,50;35100;PADOVA;PADOVA;VENETO;ITALIA;Adattamento al cambiamento da parte di lavoratori, imprese e imprenditori;30/06/2018
FSE;40014;H89J15002150009;02289210276;ECIPA  SOC. CONS. A.R.L.;La via della seta;La via della seta;23/09/2015;25/07/2018;144.232,00;0,50;31100:::36100:::37100:::30100:::35100;TREVISO:::VICENZA:::VERONA:::VENEZIA:::PADOVA;VENEZIA:::VERONA:::TREVISO:::PADOVA:::VICENZA;VENETO;ITALIA;Adattamento al cambiamento da parte di lavoratori, imprese e imprenditori;30/06/2018
FSE;40015;H29J15000880009;02645700242;FONDAZIONE CUOA - CENTRO UNIVERSITARIO ORGANIZZAZIONE AZIENDALE;RETI CREATIVE - Imprese creative e del turismo per lo sviluppo e la valorizzazione del territorio veneto;RETI CREATIVE - Imprese creative e del turismo per lo sviluppo e la valorizzazione del territorio veneto;23/09/2015;25/07/2018;220.634,00;0,50;32100:::31100:::36100:::37100:::30100:::36077:::35100:::45100;BELLUNO:::TREVISO:::VICENZA:::VERONA:::VENEZIA:::ALTAVILLA VICENTINA:::PADOVA:::ROVIGO;VENEZIA:::VERONA:::TREVISO:::ROVIGO:::BELLUNO:::PADOVA:::VICENZA;VENETO;ITALIA;Adattamento al cambiamento da parte di lavoratori, imprese e imprenditori;30/06/2018
FSE;40016;H19J15001010009;90019220277;FEDERAZIONE CNOS/FAP - VENETO;3 E 4 D: SVILUPPO E INNOVAZIONE NELLA TERZA E QUARTA DIMENSIONE;3 E 4 D: SVILUPPO E INNOVAZIONE NELLA TERZA E QUARTA DIMENSIONE;09/10/2015;23/08/2017;160.840,00;0,50;37100:::30100;VERONA:::VENEZIA;VENEZIA:::VERONA;VENETO;ITALIA;Adattamento al cambiamento da parte di lavoratori, imprese e imprenditori;30/06/2018
FSE;40017;H89J15002170009;00534400254;CENTRO CONSORZI;In rete per la bioedilizia: occupazione,  risparmio energetico e valorizzazione dell'ambiente;In rete per la bioedilizia: occupazione,  risparmio energetico e valorizzazione dell'ambiente;23/09/2015;25/07/2018;127.664,00;0,50;32100:::32036;BELLUNO:::SEDICO;BELLUNO;VENETO;ITALIA;Adattamento al cambiamento da parte di lavoratori, imprese e imprenditori;30/06/2018
FSE;40061;H99J15002420009;01957750647;CONFORM - CONSULENZA FORMAZIONE E MANAGEMENT SCARL;Percorsi di riqualificazione professionale per i lavoratori di Arteka srl;Percorsi di riqualificazione professionale per i lavoratori di Arteka srl;25/09/2015;26/09/2017;95.072,00;0,50;36100:::36040;VICENZA:::GRUMOLO DELLE ABBADESSE;VICENZA;VENETO;ITALIA;Adattamento al cambiamento da parte di lavoratori, imprese e imprenditori;30/06/2018
FSE;40081;H39J15002200007;02439600988;ATENA S.P.A.;Nuove opportunit� lavorative nel settore logistico per i disoccupati veneti.;Nuove opportunit� lavorative nel settore logistico per i disoccupati veneti.;05/10/2015;27/07/2017;32.052,00;0,50;36100:::35100;VICENZA:::PADOVA;PADOVA:::VICENZA;VENETO;ITALIA;Inclusione attiva, anche al fine di promuovere le pari opportunit�, e partecipazione attiva, nonch� migliore occupabilit�;30/06/2018
FSE;40082;H29J15000940007;02289210276;ECIPA  SOC. CONS. A.R.L.;Le risorse del nostro territorio come opportunit� di riqualificazione e ricollocazione professionale;Le risorse del nostro territorio come opportunit� di riqualificazione e ricollocazione professionale;02/10/2015;26/07/2017;134.188,80;0,50;31100:::30100;TREVISO:::VENEZIA;VENEZIA:::TREVISO;VENETO;ITALIA;Inclusione attiva, anche al fine di promuovere le pari opportunit�, e partecipazione attiva, nonch� migliore occupabilit�;30/06/2018
FSE;40083;H39J15002120007;00670330232;C.F.P. ISTITUTO CANOSSIANO  FILIALE CASA MADRE FIGLIE DELLA CARITA';Marketing e vendita green per il reinserimento lavorativo;Marketing e vendita green per il reinserimento lavorativo;12/10/2015;22/12/2017;102.392,00;0,50;37100;VERONA;VERONA;VENETO;ITALIA;Inclusione attiva, anche al fine di promuovere le pari opportunit�, e partecipazione attiva, nonch� migliore occupabilit�;30/06/2018
FSE;40084;H79J15002100007;04489420234;FONDAZIONE ENAC VENETO CFP CANOSSIANO;Interventi integrati di politica attiva per l'occupazione e l'inclusione;Interventi integrati di politica attiva per l'occupazione e l'inclusione;08/10/2015;24/06/2017;127.390,40;0,50;32100:::31100;BELLUNO:::TREVISO;TREVISO:::BELLUNO;VENETO;ITALIA;Inclusione attiva, anche al fine di promuovere le pari opportunit�, e partecipazione attiva, nonch� migliore occupabilit�;30/06/2018
FSE;40085;H39J15002130007;02809540236;CENTRO SERVIZI CISL SRL;Empowerment e riqualificazione nell'elaborazione delle buste paga per il reinserimento occupazionale;Empowerment e riqualificazione nell'elaborazione delle buste paga per il reinserimento occupazionale;07/10/2015;20/09/2017;61.564,00;0,50;37100;VERONA;VERONA;VENETO;ITALIA;Inclusione attiva, anche al fine di promuovere le pari opportunit�, e partecipazione attiva, nonch� migliore occupabilit�;30/06/2018
FSE;40086;H89J15002210007;02449180237;E.NA.C. ENTE NAZIONALE  CANOSSIANO;Percorsi di reinserimento al lavoro: Buyers: gestione ufficio acquisti e Gestione macchine utensili a controllo numerico-CNC;Percorsi di reinserimento al lavoro: Buyers: gestione ufficio acquisti e Gestione macchine utensili a controllo numerico-CNC;08/10/2015;26/07/2017;113.176,00;0,50;36100:::36015;VICENZA:::SCHIO;VICENZA;VENETO;ITALIA;Inclusione attiva, anche al fine di promuovere le pari opportunit�, e partecipazione attiva, nonch� migliore occupabilit�;30/06/2018
FSE;40087;H79J15002110007;02912990245;EQUASOFT SRL;AIUTO PASTICCERE CON MANSIONI DI SERVIZIO AL BANCO;AIUTO PASTICCERE CON MANSIONI DI SERVIZIO AL BANCO;14/10/2015;06/07/2017;116.104,40;0,50;31100:::36100:::35100;TREVISO:::VICENZA:::PADOVA;TREVISO:::PADOVA:::VICENZA;VENETO;ITALIA;Inclusione attiva, anche al fine di promuovere le pari opportunit�, e partecipazione attiva, nonch� migliore occupabilit�;30/06/2018
FSE;40088;H49J15001330007;92005160285;E.N.A.I.P. VENETO;SVILUPPARE COMPETENZE IN UN MERCATO DEL LAVORO CHE CAMBIA: PERCORSI DI POLITICA ATTIVA PER DISOCCUPATI;SVILUPPARE COMPETENZE IN UN MERCATO DEL LAVORO CHE CAMBIA: PERCORSI DI POLITICA ATTIVA PER DISOCCUPATI;30/09/2015;24/06/2017;141.978,00;0,50;36100:::35100:::45100;VICENZA:::PADOVA:::ROVIGO;ROVIGO:::PADOVA:::VICENZA;VENETO;ITALIA;Inclusione attiva, anche al fine di promuovere le pari opportunit�, e partecipazione attiva, nonch� migliore occupabilit�;30/06/2018
FSE;40089;H39J15002140007;03784010237;ENERGIE SOCIALI COOPERATIVA SOCIALE ONLUS;ADDETTO CONTABILITA' AZIENDALE;ADDETTO CONTABILITA' AZIENDALE;08/10/2015;12/10/2017;61.986,00;0,50;37100;VERONA;VERONA;VENETO;ITALIA;Inclusione attiva, anche al fine di promuovere le pari opportunit�, e partecipazione attiva, nonch� migliore occupabilit�;30/06/2018
FSE;40090;H19J15001090007;03674660273;BOSCOLO SRL;Web Social Media Marketing 3.0;Web Social Media Marketing 3.0;06/10/2015;28/03/2018;201.828,00;0,50;31100:::35028:::36100:::30100:::35100;TREVISO:::PIOVE DI SACCO:::VICENZA:::VENEZIA:::PADOVA;VENEZIA:::TREVISO:::PADOVA:::VICENZA;VENETO;ITALIA;Inclusione attiva, anche al fine di promuovere le pari opportunit�, e partecipazione attiva, nonch� migliore occupabilit�;30/06/2018
FSE;40091;H59J15001370007;07704310015;SYNERGIE ITALIA SPA;Riattivarsi On The Job: nuove sinergie per nuove opportunit� occupazionali.;Riattivarsi On The Job: nuove sinergie per nuove opportunit� occupazionali.;08/10/2015;24/06/2017;64.064,00;0,50;31100:::37100:::30100:::35100;TREVISO:::VERONA:::VENEZIA:::PADOVA;VENEZIA:::VERONA:::TREVISO:::PADOVA;VENETO;ITALIA;Inclusione attiva, anche al fine di promuovere le pari opportunit�, e partecipazione attiva, nonch� migliore occupabilit�;30/06/2018
FSE;40092;H59J15001380007;02701760288;COOP. SERVICES SOCIETA' COOPERATIVA;Impiegati addetti alla gestione economica, contabile e finanziaria;Impiegati addetti alla gestione economica, contabile e finanziaria;05/10/2015;17/10/2017;47.174,00;0,50;35100:::45100:::35042;PADOVA:::ROVIGO:::ESTE;ROVIGO:::PADOVA;VENETO;ITALIA;Inclusione attiva, anche al fine di promuovere le pari opportunit�, e partecipazione attiva, nonch� migliore occupabilit�;30/06/2018
FSE;40093;H49J15001350007;03612280267;PIANETA FORMAZIONE SRL SOCIETA' UNIPERSONALE;PERCORSO DI RIQUALIFICAZIONE PER ADDETTI AL SETTORE AMMINISTRATIVO-CONTABILE;PERCORSO DI RIQUALIFICAZIONE PER ADDETTI AL SETTORE AMMINISTRATIVO-CONTABILE;05/10/2015;08/08/2017;52.990,00;0,50;31100:::31050;TREVISO:::VILLORBA;TREVISO;VENETO;ITALIA;Inclusione attiva, anche al fine di promuovere le pari opportunit�, e partecipazione attiva, nonch� migliore occupabilit�;30/06/2018
FSE;40094;H39J15002150007;00280090234;CONGR. POVERI SERVI DELLA DIV. PROVV. CBF IST.DON CALABRIA CENTRO POLIFUNZIONALE;Operatore di Saldocarpenteria;Operatore di Saldocarpenteria;09/10/2015;03/04/2018;58.522,00;0,50;37100;VERONA;VERONA;VENETO;ITALIA;Inclusione attiva, anche al fine di promuovere le pari opportunit�, e partecipazione attiva, nonch� migliore occupabilit�;30/06/2018
FSE;40095;H49J15001340007;02157480266;LA ESSE SOCIET� COOPERATIVA SOCIALE;Rimettere in gioco le competenze: percorsi di reinserimento lavorativo attraverso tirocinio e accompagnamento al lavoro;Rimettere in gioco le competenze: percorsi di reinserimento lavorativo attraverso tirocinio e accompagnamento al lavoro;05/10/2015;18/06/2018;41.985,20;0,50;31100;TREVISO;TREVISO;VENETO;ITALIA;Inclusione attiva, anche al fine di promuovere le pari opportunit�, e partecipazione attiva, nonch� migliore occupabilit�;30/06/2018
FSE;40096;H39J15002160007;04047560232;SCALIGERA FORMAZIONE SOC. CONSORTILE A RL;ADDETTO ALLA GESTIONE DEL MAGAZZINO;ADDETTO ALLA GESTIONE DEL MAGAZZINO;06/10/2015;24/06/2017;57.161,00;0,50;37100;VERONA;VERONA;VENETO;ITALIA;Inclusione attiva, anche al fine di promuovere le pari opportunit�, e partecipazione attiva, nonch� migliore occupabilit�;30/06/2018
FSE;40097;H99J15002530007;03541060269;G.I.F. SCARL GRUPPO INSEGNANTI FORMATORI;Impiegato amministrativo con competenze in contrattualistica internazionale;Impiegato amministrativo con competenze in contrattualistica internazionale;02/10/2015;24/06/2017;59.780,00;0,50;31046:::31100;ODERZO:::TREVISO;TREVISO;VENETO;ITALIA;Inclusione attiva, anche al fine di promuovere le pari opportunit�, e partecipazione attiva, nonch� migliore occupabilit�;30/06/2018
FSE;40098;H99J15002570009;03824150282;EDUFORMA SRL;Percorso di reinserimento lavorativo come consulente in web marketing;Percorso di reinserimento lavorativo come consulente in web marketing;30/09/2015;24/11/2017;45.932,00;0,50;35100;PADOVA;PADOVA;VENETO;ITALIA;Inclusione attiva, anche al fine di promuovere le pari opportunit�, e partecipazione attiva, nonch� migliore occupabilit�;30/06/2018
FSE;40099;H39J15002210007;00453310351;IFOA - ISTITUTO FORMAZIONE OPERATORI AZIENDALI;Sviluppo delle competenze dell'operatore per l'assistenza commerciale dei clienti;Sviluppo delle competenze dell'operatore per l'assistenza commerciale dei clienti;30/09/2015;17/04/2018;50.964,80;0,50;36100:::35100;VICENZA:::PADOVA;PADOVA:::VICENZA;VENETO;ITALIA;Inclusione attiva, anche al fine di promuovere le pari opportunit�, e partecipazione attiva, nonch� migliore occupabilit�;30/06/2018
FSE;40100;H79J15002120007;02793590270;CO.GE.S.  DON LORENZO MILANI SOCIETA' COOPERATIVA SOCIALE;Operatore della ristorazione: aiuto cuoco;Operatore della ristorazione: aiuto cuoco;07/10/2015;13/04/2018;71.419,60;0,50;30100;VENEZIA;VENEZIA;VENETO;ITALIA;Inclusione attiva, anche al fine di promuovere le pari opportunit�, e partecipazione attiva, nonch� migliore occupabilit�;30/06/2018
FSE;40101;H39J15002170007;08437170015;ATEMPO SPA;Riqualificarsi come montatore meccanico per aumentare le opportunit� di impiego;Riqualificarsi come montatore meccanico per aumentare le opportunit� di impiego;05/10/2015;21/12/2017;46.994,00;0,50;37100;VERONA;VERONA;VENETO;ITALIA;Inclusione attiva, anche al fine di promuovere le pari opportunit�, e partecipazione attiva, nonch� migliore occupabilit�;30/06/2018
FSE;40102;H39J15002180009;10577360158;PERFORMA S.R.L.;Tecnico per la gestione dei sistemi Qualit�, Ambiente e Sicurezza;Tecnico per la gestione dei sistemi Qualit�, Ambiente e Sicurezza;05/10/2015;22/09/2017;49.287,00;0,50;37100;VERONA;VERONA;VENETO;ITALIA;Inclusione attiva, anche al fine di promuovere le pari opportunit�, e partecipazione attiva, nonch� migliore occupabilit�;30/06/2018
FSE;40103;H99J15002540009;02422020285;FOREMA SRL;FABER - Formazione e accompagnamento per il reinserimento lavorativo;FABER - Formazione e accompagnamento per il reinserimento lavorativo;30/09/2015;11/10/2017;182.726,00;0,50;35100;PADOVA;PADOVA;VENETO;ITALIA;Inclusione attiva, anche al fine di promuovere le pari opportunit�, e partecipazione attiva, nonch� migliore occupabilit�;30/06/2018
FSE;40104;H19J15001100007;03454010244;ACROSS  SRL;Competenze per la Gestione web marketing di una vetrina on-line;Competenze per la Gestione web marketing di una vetrina on-line;07/10/2015;24/06/2017;44.178,40;0,50;36100:::36061;VICENZA:::BASSANO DEL GRAPPA;VICENZA;VENETO;ITALIA;Inclusione attiva, anche al fine di promuovere le pari opportunit�, e partecipazione attiva, nonch� migliore occupabilit�;30/06/2018
FSE;40105;H29J15000960007;03266230279;APINDUSTRIA SERVIZI SRL;Percorso reinserimento lavorativo per profilo Front Back Office - competenze amministrative;Percorso reinserimento lavorativo per profilo Front Back Office - competenze amministrative;05/10/2015;30/03/2018;151.488,00;0,50;30100:::45100:::45014;VENEZIA:::ROVIGO:::PORTO VIRO;VENEZIA:::ROVIGO;VENETO;ITALIA;Inclusione attiva, anche al fine di promuovere le pari opportunit�, e partecipazione attiva, nonch� migliore occupabilit�;30/06/2018
FSE;40106;H39J15002220006;02422720249;PRISMA SOCIETA' COOPERATIVA SOCIALE CONSORTILE;WORK;WORK;05/10/2015;11/09/2017;57.392,00;0,50;36030:::36100;COSTABISSARA:::VICENZA;VICENZA;VENETO;ITALIA;Inclusione attiva, anche al fine di promuovere le pari opportunit�, e partecipazione attiva, nonch� migliore occupabilit�;30/06/2018
FSE;40107;H19J15001140005;04327550275;ITS MARCO POLO - FONDAZIONE PER LA MOBILITA' SOSTENIBILE NEL SISTEMA PORTUALE E;Tecnico Superiore per la mobilit� delle persone e delle merci in ambito portuale-marittimo;Tecnico Superiore per la mobilit� delle persone e delle merci in ambito portuale-marittimo;02/12/2015;24/06/2019;151.930,60;0,50;30100;VENEZIA;VENEZIA;VENETO;ITALIA;Adozione di sistemi di istruzione e di formazione maggiormente rilevanti per il mercato del lavoro, facilitando la transizione dall'istruzione al lavoro e potenziando i sistemi di istruzione e formazione professionale e la loro qualit�, anche attraverso meccanismi per l'anticipazione delle capacit�, l'adeguamento dei piani di studio e l'introduzione e lo sviluppo di programmi di apprendimento basati sul lavoro, inclusi i sistemi di apprendimento duale e di apprendistato;30/06/2018
FSE;40108;H99J15002580005;91035160265;"FONDAZIONE I.T.S."" NUOVE TECNOLOGIE PER IL MADE IN ITALY"" COMPARTO AGRO-ALIMENTA";Area 4 Ambito 4.1.2 Tecnico Superiore per il controllo, la valorizzazione e il marketing delle produzioni agrarie, agroalimentari e agroindustriali - Sede di Conegliano;Area 4 Ambito 4.1.2 Tecnico Superiore per il controllo, la valorizzazione e il marketing delle produzioni agrarie, agroalimentari e agroindustriali - Sede di Conegliano;26/10/2015;24/06/2019;23.828,59;0,50;31100:::31015;TREVISO:::CONEGLIANO;TREVISO;VENETO;ITALIA;Adozione di sistemi di istruzione e di formazione maggiormente rilevanti per il mercato del lavoro, facilitando la transizione dall'istruzione al lavoro e potenziando i sistemi di istruzione e formazione professionale e la loro qualit�, anche attraverso meccanismi per l'anticipazione delle capacit�, l'adeguamento dei piani di studio e l'introduzione e lo sviluppo di programmi di apprendimento basati sul lavoro, inclusi i sistemi di apprendimento duale e di apprendistato;30/06/2018
FSE;40109;H69J15002080005;91035160265;"FONDAZIONE I.T.S."" NUOVE TECNOLOGIE PER IL MADE IN ITALY"" COMPARTO AGRO-ALIMENTA";Area 4 Ambito 4.1.2 Tecnico Superiore per il controllo, la valorizzazione e il marketing delle produzioni agrarie, agroalimentari e agroindustriali - Sede di Verona;Area 4 Ambito 4.1.2 Tecnico Superiore per il controllo, la valorizzazione e il marketing delle produzioni agrarie, agroalimentari e agroindustriali - Sede di Verona;26/10/2015;24/06/2019;23.828,59;0,50;37100;VERONA;VERONA;VENETO;ITALIA;Adozione di sistemi di istruzione e di formazione maggiormente rilevanti per il mercato del lavoro, facilitando la transizione dall'istruzione al lavoro e potenziando i sistemi di istruzione e formazione professionale e la loro qualit�, anche attraverso meccanismi per l'anticipazione delle capacit�, l'adeguamento dei piani di studio e l'introduzione e lo sviluppo di programmi di apprendimento basati sul lavoro, inclusi i sistemi di apprendimento duale e di apprendistato;30/06/2018
FSE;40110;H19J15001150005;93037690273;ISTITUTO TECNICO SUPERIORE PER IL TURISMO;Tecnico Superiore per la gestione di strutture e servizi turistici - Jesolo (VE) - Area Tecnologica  n. 5 Tecnologie innovative per i beni e le attivit� culturali - Turismo  Ambito n. 5.1 Turismo e attivit� culturali;Tecnico Superiore per la gestione di strutture e servizi turistici - Jesolo (VE) - Area Tecnologica  n. 5 Tecnologie innovative per i beni e le attivit� culturali - Turismo  Ambito n. 5.1 Turismo e attivit� culturali;12/10/2015;24/06/2019;23.828,59;0,50;30016:::30100;JESOLO:::VENEZIA;VENEZIA;VENETO;ITALIA;Adozione di sistemi di istruzione e di formazione maggiormente rilevanti per il mercato del lavoro, facilitando la transizione dall'istruzione al lavoro e potenziando i sistemi di istruzione e formazione professionale e la loro qualit�, anche attraverso meccanismi per l'anticipazione delle capacit�, l'adeguamento dei piani di studio e l'introduzione e lo sviluppo di programmi di apprendimento basati sul lavoro, inclusi i sistemi di apprendimento duale e di apprendistato;30/06/2018
FSE;40111;H69J15002090005;93037690273;ISTITUTO TECNICO SUPERIORE PER IL TURISMO;Tecnico Superiore per la gestione di strutture e servizi turistici - Bardolino (VR) - Area Tecnologica  n. 5 Tecnologie innovative per i beni e le attivit� culturali - Turismo  Ambito n. 5.1 Turismo e attivit� culturali;Tecnico Superiore per la gestione di strutture e servizi turistici - Bardolino (VR) - Area Tecnologica  n. 5 Tecnologie innovative per i beni e le attivit� culturali - Turismo  Ambito n. 5.1 Turismo e attivit� culturali;12/10/2015;24/06/2019;23.828,59;0,50;37011:::37100;BARDOLINO:::VERONA;VERONA;VENETO;ITALIA;Adozione di sistemi di istruzione e di formazione maggiormente rilevanti per il mercato del lavoro, facilitando la transizione dall'istruzione al lavoro e potenziando i sistemi di istruzione e formazione professionale e la loro qualit�, anche attraverso meccanismi per l'anticipazione delle capacit�, l'adeguamento dei piani di studio e l'introduzione e lo sviluppo di programmi di apprendimento basati sul lavoro, inclusi i sistemi di apprendimento duale e di apprendistato;30/06/2018
FSE;40112;H29J15001000005;92231080281;FONDAZIONE I.T.S.-AREA TECNOLOGICA DELL'EFFICIENZA ENERGETICA - RISPARMIO ENERG;Tecnico Superiore per il risparmio energetico nell'edilizia sostenibile - Padova corso E PD- Area tecnologica 1: Efficienza energetica - Ambito 1.2 Processi e impianti a elevata efficienza e a risparmio energetico - Figura Nazionale 1.2.2;Tecnico Superiore per il risparmio energetico nell'edilizia sostenibile - Padova corso E PD- Area tecnologica 1: Efficienza energetica - Ambito 1.2 Processi e impianti a elevata efficienza e a risparmio energetico - Figura Nazionale 1.2.2;30/09/2015;24/06/2019;23.828,59;0,50;35100;PADOVA;PADOVA;VENETO;ITALIA;Adozione di sistemi di istruzione e di formazione maggiormente rilevanti per il mercato del lavoro, facilitando la transizione dall'istruzione al lavoro e potenziando i sistemi di istruzione e formazione professionale e la loro qualit�, anche attraverso meccanismi per l'anticipazione delle capacit�, l'adeguamento dei piani di studio e l'introduzione e lo sviluppo di programmi di apprendimento basati sul lavoro, inclusi i sistemi di apprendimento duale e di apprendistato;30/06/2018
FSE;40113;H69J15002100005;92231080281;FONDAZIONE I.T.S.-AREA TECNOLOGICA DELL'EFFICIENZA ENERGETICA - RISPARMIO ENERG;Tecnico Superiore per il risparmio energetico nell'edilizia sostenibile - Padova corso C VR- Area tecnologica 1: Efficienza energetica - Ambito 1.2 Processi e impianti a elevata efficienza e a risparmio energetico - Figura Nazionale 1.2.2;Tecnico Superiore per il risparmio energetico nell'edilizia sostenibile - Padova corso C VR- Area tecnologica 1: Efficienza energetica - Ambito 1.2 Processi e impianti a elevata efficienza e a risparmio energetico - Figura Nazionale 1.2.2;30/09/2015;24/06/2019;23.828,59;0,50;37100;VERONA;VERONA;VENETO;ITALIA;Adozione di sistemi di istruzione e di formazione maggiormente rilevanti per il mercato del lavoro, facilitando la transizione dall'istruzione al lavoro e potenziando i sistemi di istruzione e formazione professionale e la loro qualit�, anche attraverso meccanismi per l'anticipazione delle capacit�, l'adeguamento dei piani di studio e l'introduzione e lo sviluppo di programmi di apprendimento basati sul lavoro, inclusi i sistemi di apprendimento duale e di apprendistato;30/06/2018
FSE;40114;H19J15001160005;92231080281;FONDAZIONE I.T.S.-AREA TECNOLOGICA DELL'EFFICIENZA ENERGETICA - RISPARMIO ENERG;Tecnico Superiore per il risparmio energetico nell'edilizia sostenibile - Padova corso B SD- Area tecnologica 1: Efficienza energetica - Ambito 1.2 Processi e impianti a elevata efficienza e a risparmio energetico - Figura Nazionale 1.2.2;Tecnico Superiore per il risparmio energetico nell'edilizia sostenibile - Padova corso B SD- Area tecnologica 1: Efficienza energetica - Ambito 1.2 Processi e impianti a elevata efficienza e a risparmio energetico - Figura Nazionale 1.2.2;30/09/2015;24/06/2019;23.828,59;0,50;30100:::30027;VENEZIA:::SAN DONA' DI PIAVE;VENEZIA;VENETO;ITALIA;Adozione di sistemi di istruzione e di formazione maggiormente rilevanti per il mercato del lavoro, facilitando la transizione dall'istruzione al lavoro e potenziando i sistemi di istruzione e formazione professionale e la loro qualit�, anche attraverso meccanismi per l'anticipazione delle capacit�, l'adeguamento dei piani di studio e l'introduzione e lo sviluppo di programmi di apprendimento basati sul lavoro, inclusi i sistemi di apprendimento duale e di apprendistato;30/06/2018
FSE;40115;H29J15001010005;95107470247;FONDAZIONE ITS NUOVE TECNOLOGIE PER IL MADE IN ITALY - COMPARTO MECCATRONICO;Tecnico superiore per l'automazione ed i sistemi meccatronici/PD;Tecnico superiore per l'automazione ed i sistemi meccatronici/PD;05/10/2015;24/06/2019;23.828,60;0,50;35100;PADOVA;PADOVA;VENETO;ITALIA;Adozione di sistemi di istruzione e di formazione maggiormente rilevanti per il mercato del lavoro, facilitando la transizione dall'istruzione al lavoro e potenziando i sistemi di istruzione e formazione professionale e la loro qualit�, anche attraverso meccanismi per l'anticipazione delle capacit�, l'adeguamento dei piani di studio e l'introduzione e lo sviluppo di programmi di apprendimento basati sul lavoro, inclusi i sistemi di apprendimento duale e di apprendistato;30/06/2018
FSE;40116;H79J15002170005;95107470247;FONDAZIONE ITS NUOVE TECNOLOGIE PER IL MADE IN ITALY - COMPARTO MECCATRONICO;Tecnico superiore per l'automazione ed i sistemi meccatronici/VI;Tecnico superiore per l'automazione ed i sistemi meccatronici/VI;05/10/2015;24/06/2019;23.828,60;0,50;36100;VICENZA;VICENZA;VENETO;ITALIA;Adozione di sistemi di istruzione e di formazione maggiormente rilevanti per il mercato del lavoro, facilitando la transizione dall'istruzione al lavoro e potenziando i sistemi di istruzione e formazione professionale e la loro qualit�, anche attraverso meccanismi per l'anticipazione delle capacit�, l'adeguamento dei piani di studio e l'introduzione e lo sviluppo di programmi di apprendimento basati sul lavoro, inclusi i sistemi di apprendimento duale e di apprendistato;30/06/2018
FSE;40117;H99J15002590005;95107470247;FONDAZIONE ITS NUOVE TECNOLOGIE PER IL MADE IN ITALY - COMPARTO MECCATRONICO;Tecnico superiore per l'innovazione di processi e prodotti meccanici;Tecnico superiore per l'innovazione di processi e prodotti meccanici;05/10/2015;24/06/2019;23.828,60;0,50;31100;TREVISO;TREVISO;VENETO;ITALIA;Adozione di sistemi di istruzione e di formazione maggiormente rilevanti per il mercato del lavoro, facilitando la transizione dall'istruzione al lavoro e potenziando i sistemi di istruzione e formazione professionale e la loro qualit�, anche attraverso meccanismi per l'anticipazione delle capacit�, l'adeguamento dei piani di studio e l'introduzione e lo sviluppo di programmi di apprendimento basati sul lavoro, inclusi i sistemi di apprendimento duale e di apprendistato;30/06/2018
FSE;40118;H69J15002110005;95107470247;FONDAZIONE ITS NUOVE TECNOLOGIE PER IL MADE IN ITALY - COMPARTO MECCATRONICO;Tecnico superiore per l'automazione ed i sistemi meccatronici/VR;Tecnico superiore per l'automazione ed i sistemi meccatronici/VR;05/10/2015;24/06/2019;23.828,60;0,50;37100:::37045;VERONA:::LEGNAGO;VERONA;VENETO;ITALIA;Adozione di sistemi di istruzione e di formazione maggiormente rilevanti per il mercato del lavoro, facilitando la transizione dall'istruzione al lavoro e potenziando i sistemi di istruzione e formazione professionale e la loro qualit�, anche attraverso meccanismi per l'anticipazione delle capacit�, l'adeguamento dei piani di studio e l'introduzione e lo sviluppo di programmi di apprendimento basati sul lavoro, inclusi i sistemi di apprendimento duale e di apprendistato;30/06/2018
FSE;40119;H69J15002120005;93222570231;FONDAZIONE ITS AREA TECNOLOGICA DELLA MOBILIT� SOSTENIBILE- LOGISTICA E SISTEMI;TECNICO SUPERIORE DEI TRASPORTI E DELL'INTERMODALITA';TECNICO SUPERIORE DEI TRASPORTI E DELL'INTERMODALITA';20/10/2015;24/06/2019;23.828,60;0,50;37100;VERONA;VERONA;VENETO;ITALIA;Adozione di sistemi di istruzione e di formazione maggiormente rilevanti per il mercato del lavoro, facilitando la transizione dall'istruzione al lavoro e potenziando i sistemi di istruzione e formazione professionale e la loro qualit�, anche attraverso meccanismi per l'anticipazione delle capacit�, l'adeguamento dei piani di studio e l'introduzione e lo sviluppo di programmi di apprendimento basati sul lavoro, inclusi i sistemi di apprendimento duale e di apprendistato;30/06/2018
FSE;40120;H79J15002180005;91079520937;I.T. S. PER LE TECNOLOGIE DELLA INFORMAZIONE E DELLA COMUNICAZIONE J.F.KENNEDY;TECNOLOGIE DELLA INFORMAZIONE E DELLA COMUNICAZIONE - TECNICO SUPERIORE PER I METODI E LE TECNOLOGIE PER LO SVILUPPO DI SISTEMI SOFTWARE - APPLICAZIONI INTEGRATE SU DISPOSITIVI MOBILI - THIENE (VI);TECNOLOGIE DELLA INFORMAZIONE E DELLA COMUNICAZIONE - TECNICO SUPERIORE PER I METODI E LE TECNOLOGIE PER LO SVILUPPO DI SISTEMI SOFTWARE - APPLICAZIONI INTEGRATE SU DISPOSITIVI MOBILI - THIENE (VI);14/10/2015;24/06/2019;23.828,60;0,50;36016:::36100;THIENE:::VICENZA;VICENZA;VENETO;ITALIA;Adozione di sistemi di istruzione e di formazione maggiormente rilevanti per il mercato del lavoro, facilitando la transizione dall'istruzione al lavoro e potenziando i sistemi di istruzione e formazione professionale e la loro qualit�, anche attraverso meccanismi per l'anticipazione delle capacit�, l'adeguamento dei piani di studio e l'introduzione e lo sviluppo di programmi di apprendimento basati sul lavoro, inclusi i sistemi di apprendimento duale e di apprendistato;30/06/2018
FSE;40121;H29J15001020005;92227360283;I.T.S. NUOVE TECNOLOGIE PER IL MADE IN ITALY COMPARTO MODA CALZATURA;Tecnico Superiore per il Coordinamento Sistema MODA - Padova - 4. Nuove Tecnologie per il Made in Italy - 4.4 Sistema Moda;Tecnico Superiore per il Coordinamento Sistema MODA - Padova - 4. Nuove Tecnologie per il Made in Italy - 4.4 Sistema Moda;22/10/2015;24/06/2019;23.828,60;0,50;35100;PADOVA;PADOVA;VENETO;ITALIA;Adozione di sistemi di istruzione e di formazione maggiormente rilevanti per il mercato del lavoro, facilitando la transizione dall'istruzione al lavoro e potenziando i sistemi di istruzione e formazione professionale e la loro qualit�, anche attraverso meccanismi per l'anticipazione delle capacit�, l'adeguamento dei piani di studio e l'introduzione e lo sviluppo di programmi di apprendimento basati sul lavoro, inclusi i sistemi di apprendimento duale e di apprendistato;30/06/2018
FSE;40122;H79J15002190005;92227360283;I.T.S. NUOVE TECNOLOGIE PER IL MADE IN ITALY COMPARTO MODA CALZATURA;Tecnico Superiore per la Lavorazione ORAFA - Vicenza - 5. Tecnologie innovative per i beni e le attivit� culturali-turismo - 5.2 Beni culturali e artistici;Tecnico Superiore per la Lavorazione ORAFA - Vicenza - 5. Tecnologie innovative per i beni e le attivit� culturali-turismo - 5.2 Beni culturali e artistici;22/10/2015;24/06/2019;23.828,60;0,50;36100;VICENZA;VICENZA;VENETO;ITALIA;Adozione di sistemi di istruzione e di formazione maggiormente rilevanti per il mercato del lavoro, facilitando la transizione dall'istruzione al lavoro e potenziando i sistemi di istruzione e formazione professionale e la loro qualit�, anche attraverso meccanismi per l'anticipazione delle capacit�, l'adeguamento dei piani di studio e l'introduzione e lo sviluppo di programmi di apprendimento basati sul lavoro, inclusi i sistemi di apprendimento duale e di apprendistato;30/06/2018
FSE;40123;H89J15002240005;92227360283;I.T.S. NUOVE TECNOLOGIE PER IL MADE IN ITALY COMPARTO MODA CALZATURA;Tecnico Superiore per la progettazione e realizzazione di occhiali  Longarone (BL) - 3. Nuove Tecnologie della vita - 3.2 Produzione di apparecchi, dispositivi diagnostici e biomedicali;Tecnico Superiore per la progettazione e realizzazione di occhiali  Longarone (BL) - 3. Nuove Tecnologie della vita - 3.2 Produzione di apparecchi, dispositivi diagnostici e biomedicali;22/10/2015;24/06/2019;23.828,60;0,50;32100;BELLUNO;BELLUNO;VENETO;ITALIA;Adozione di sistemi di istruzione e di formazione maggiormente rilevanti per il mercato del lavoro, facilitando la transizione dall'istruzione al lavoro e potenziando i sistemi di istruzione e formazione professionale e la loro qualit�, anche attraverso meccanismi per l'anticipazione delle capacit�, l'adeguamento dei piani di studio e l'introduzione e lo sviluppo di programmi di apprendimento basati sul lavoro, inclusi i sistemi di apprendimento duale e di apprendistato;30/06/2018
FSE;40124;H29J15001030005;92227360283;I.T.S. NUOVE TECNOLOGIE PER IL MADE IN ITALY COMPARTO MODA CALZATURA;Tecnico Superiore di prodotto e processo per il settore calzatura-moda - Capriccio di Vigonza (PD) - 4. Nuove Tecnologie per il Made in Italy - 4.4 Sistema Moda;Tecnico Superiore di prodotto e processo per il settore calzatura-moda - Capriccio di Vigonza (PD) - 4. Nuove Tecnologie per il Made in Italy - 4.4 Sistema Moda;22/10/2015;24/06/2019;30.946,16;0,50;35010:::35100;VIGONZA:::PADOVA;PADOVA;VENETO;ITALIA;Adozione di sistemi di istruzione e di formazione maggiormente rilevanti per il mercato del lavoro, facilitando la transizione dall'istruzione al lavoro e potenziando i sistemi di istruzione e formazione professionale e la loro qualit�, anche attraverso meccanismi per l'anticipazione delle capacit�, l'adeguamento dei piani di studio e l'introduzione e lo sviluppo di programmi di apprendimento basati sul lavoro, inclusi i sistemi di apprendimento duale e di apprendistato;30/06/2018
FSE;40141;H99J15005630009;03391310285;UPA FORMAZIONE SRL;Tecnico del restauro di beni culturali;Tecnico del restauro di beni culturali;28/01/2016;27/10/2017;85.505,00;0,50;35100;PADOVA;PADOVA;VENETO;ITALIA;Accesso all'occupazione per le persone in cerca di lavoro e le persone inattive, compresi i disoccupati di lunga durata e le persone distanti dal mercato del lavoro, anche attraverso iniziative locali per l'occupazione e il sostegno alla mobilit� dei lavoratori;30/06/2018
FSE;40142;H89J15002920009;00534400254;CENTRO CONSORZI;TECNICO DEL RESTAURO DI BENI CULTURALI;TECNICO DEL RESTAURO DI BENI CULTURALI;21/01/2016;24/04/2018;103.599,00;0,50;32100:::32036;BELLUNO:::SEDICO;BELLUNO;VENETO;ITALIA;Accesso all'occupazione per le persone in cerca di lavoro e le persone inattive, compresi i disoccupati di lunga durata e le persone distanti dal mercato del lavoro, anche attraverso iniziative locali per l'occupazione e il sostegno alla mobilit� dei lavoratori;30/06/2018
FSE;40143;H89J15002930009;00534400254;CENTRO CONSORZI;TECNICO DEL RESTAURO DI BENI CULTURALI;TECNICO DEL RESTAURO DI BENI CULTURALI;21/01/2016;24/04/2018;103.599,00;0,50;32100:::32036;BELLUNO:::SEDICO;BELLUNO;VENETO;ITALIA;Accesso all'occupazione per le persone in cerca di lavoro e le persone inattive, compresi i disoccupati di lunga durata e le persone distanti dal mercato del lavoro, anche attraverso iniziative locali per l'occupazione e il sostegno alla mobilit� dei lavoratori;30/06/2018
FSE;40144;H79J15003620009;80011280270;UIA UNIVERSITA' INTERNAZIONALE DELL'ARTE;TECNICO DEL RESTAURO DI BENI CULTURALI;TECNICO DEL RESTAURO DI BENI CULTURALI;18/01/2016;11/09/2017;128.559,00;0,50;30100;VENEZIA;VENEZIA;VENETO;ITALIA;Accesso all'occupazione per le persone in cerca di lavoro e le persone inattive, compresi i disoccupati di lunga durata e le persone distanti dal mercato del lavoro, anche attraverso iniziative locali per l'occupazione e il sostegno alla mobilit� dei lavoratori;30/06/2018
FSE;40145;H79J15003630009;80011280270;UIA UNIVERSITA' INTERNAZIONALE DELL'ARTE;TECNICO DEL RESTAURO DI BENI CULTURALI;TECNICO DEL RESTAURO DI BENI CULTURALI;18/01/2016;11/09/2017;119.255,00;0,50;30100;VENEZIA;VENEZIA;VENETO;ITALIA;Accesso all'occupazione per le persone in cerca di lavoro e le persone inattive, compresi i disoccupati di lunga durata e le persone distanti dal mercato del lavoro, anche attraverso iniziative locali per l'occupazione e il sostegno alla mobilit� dei lavoratori;30/06/2018
FSE;40146;H79J15003640009;80011280270;UIA UNIVERSITA' INTERNAZIONALE DELL'ARTE;TECNICO DEL RESTAURO DI BENI CULTURALI;TECNICO DEL RESTAURO DI BENI CULTURALI;18/01/2016;11/09/2017;105.299,00;0,50;30100;VENEZIA;VENEZIA;VENETO;ITALIA;Accesso all'occupazione per le persone in cerca di lavoro e le persone inattive, compresi i disoccupati di lunga durata e le persone distanti dal mercato del lavoro, anche attraverso iniziative locali per l'occupazione e il sostegno alla mobilit� dei lavoratori;30/06/2018
FSE;40147;H39J15004540009;95074720244;ENGIM VENETO;Tecnico del restauro di beni culturali;Tecnico del restauro di beni culturali;20/01/2016;24/04/2018;116.559,00;0,50;36100;VICENZA;VICENZA;VENETO;ITALIA;Accesso all'occupazione per le persone in cerca di lavoro e le persone inattive, compresi i disoccupati di lunga durata e le persone distanti dal mercato del lavoro, anche attraverso iniziative locali per l'occupazione e il sostegno alla mobilit� dei lavoratori;30/06/2018
FSE;40148;H39J15004550009;95074720244;ENGIM VENETO;Tecnico del restauro di beni culturali;Tecnico del restauro di beni culturali;20/01/2016;24/04/2018;112.707,00;0,50;36100;VICENZA;VICENZA;VENETO;ITALIA;Accesso all'occupazione per le persone in cerca di lavoro e le persone inattive, compresi i disoccupati di lunga durata e le persone distanti dal mercato del lavoro, anche attraverso iniziative locali per l'occupazione e il sostegno alla mobilit� dei lavoratori;30/06/2018
FSE;40149;H39J15004530009;95074720244;ENGIM VENETO;Tecnico del restauro di beni culturali;Tecnico del restauro di beni culturali;20/01/2016;12/10/2017;97.299,00;0,50;36100;VICENZA;VICENZA;VENETO;ITALIA;Accesso all'occupazione per le persone in cerca di lavoro e le persone inattive, compresi i disoccupati di lunga durata e le persone distanti dal mercato del lavoro, anche attraverso iniziative locali per l'occupazione e il sostegno alla mobilit� dei lavoratori;30/06/2018
FSE;40150;H19J15002060009;80002410233;ISPETTORIA SALESIANA SAN ZENO;TECNICO DEL RESTAURO DI BENI CULTURALI: MATERIALI LAPIDEI NATURALI E ARTIFICIALI;TECNICO DEL RESTAURO DI BENI CULTURALI: MATERIALI LAPIDEI NATURALI E ARTIFICIALI;18/01/2016;24/04/2018;112.344,00;0,50;37100:::37010;VERONA:::SANT'AMBROGIO DI VALPOLICELLA;VERONA;VENETO;ITALIA;Accesso all'occupazione per le persone in cerca di lavoro e le persone inattive, compresi i disoccupati di lunga durata e le persone distanti dal mercato del lavoro, anche attraverso iniziative locali per l'occupazione e il sostegno alla mobilit� dei lavoratori;30/06/2018
FSE;40151;H19J15002070009;80002410233;ISPETTORIA SALESIANA SAN ZENO;TECNICO DEL RESTAURO DI BENI CULTURALI: MATERIALI LAPIDEI NATURALI E ARTIFICIALI;TECNICO DEL RESTAURO DI BENI CULTURALI: MATERIALI LAPIDEI NATURALI E ARTIFICIALI;18/01/2016;30/10/2017;91.188,00;0,50;37100:::37010;VERONA:::SANT'AMBROGIO DI VALPOLICELLA;VERONA;VENETO;ITALIA;Accesso all'occupazione per le persone in cerca di lavoro e le persone inattive, compresi i disoccupati di lunga durata e le persone distanti dal mercato del lavoro, anche attraverso iniziative locali per l'occupazione e il sostegno alla mobilit� dei lavoratori;30/06/2018
FSE;40152;H49J15002720009;02552190247;ENTE DI FORMAZIONE I.RI.GEM. - SOCIETA' COOPERATIVA;Tecnico del restauro dibeni culturali;Tecnico del restauro dibeni culturali;18/01/2016;18/10/2017;124.749,00;0,50;36027:::36100;ROSA':::VICENZA;VICENZA;VENETO;ITALIA;Accesso all'occupazione per le persone in cerca di lavoro e le persone inattive, compresi i disoccupati di lunga durata e le persone distanti dal mercato del lavoro, anche attraverso iniziative locali per l'occupazione e il sostegno alla mobilit� dei lavoratori;30/06/2018
FSE;40153;H49J15002730009;02552190247;ENTE DI FORMAZIONE I.RI.GEM. - SOCIETA' COOPERATIVA;Tecnico del restauro di beni culturali;Tecnico del restauro di beni culturali;18/01/2016;12/10/2017;102.759,00;0,50;36027:::36100;ROSA':::VICENZA;VICENZA;VENETO;ITALIA;Accesso all'occupazione per le persone in cerca di lavoro e le persone inattive, compresi i disoccupati di lunga durata e le persone distanti dal mercato del lavoro, anche attraverso iniziative locali per l'occupazione e il sostegno alla mobilit� dei lavoratori;30/06/2018
FSE;40154;H49J15002710009;02552190247;ENTE DI FORMAZIONE I.RI.GEM. - SOCIETA' COOPERATIVA;Tecnico del restauro di beni culturali;Tecnico del restauro di beni culturali;18/01/2016;24/04/2018;93.963,00;0,50;36027:::36100;ROSA':::VICENZA;VICENZA;VENETO;ITALIA;Accesso all'occupazione per le persone in cerca di lavoro e le persone inattive, compresi i disoccupati di lunga durata e le persone distanti dal mercato del lavoro, anche attraverso iniziative locali per l'occupazione e il sostegno alla mobilit� dei lavoratori;30/06/2018
FSE;40155;H79J15003650009;94029440271;ISTITUTO VENETO PER I BENI CULTURALI;Tecnico del restauro di beni culturali;Tecnico del restauro di beni culturali;18/01/2016;28/08/2017;123.771,00;0,50;30100;VENEZIA;VENEZIA;VENETO;ITALIA;Accesso all'occupazione per le persone in cerca di lavoro e le persone inattive, compresi i disoccupati di lunga durata e le persone distanti dal mercato del lavoro, anche attraverso iniziative locali per l'occupazione e il sostegno alla mobilit� dei lavoratori;30/06/2018
FSE;40156;H79J15003660009;94029440271;ISTITUTO VENETO PER I BENI CULTURALI;Tecnico del restauro di beni culturali;Tecnico del restauro di beni culturali;18/01/2016;28/08/2017;119.765,00;0,50;30100;VENEZIA;VENEZIA;VENETO;ITALIA;Accesso all'occupazione per le persone in cerca di lavoro e le persone inattive, compresi i disoccupati di lunga durata e le persone distanti dal mercato del lavoro, anche attraverso iniziative locali per l'occupazione e il sostegno alla mobilit� dei lavoratori;30/06/2018
FSE;40157;H79J15003670009;94029440271;ISTITUTO VENETO PER I BENI CULTURALI;Tecnico del restauro di beni culturali;Tecnico del restauro di beni culturali;18/01/2016;28/08/2017;112.045,00;0,50;30100;VENEZIA;VENEZIA;VENETO;ITALIA;Accesso all'occupazione per le persone in cerca di lavoro e le persone inattive, compresi i disoccupati di lunga durata e le persone distanti dal mercato del lavoro, anche attraverso iniziative locali per l'occupazione e il sostegno alla mobilit� dei lavoratori;30/06/2018
FSE;40158;H39J15004580009;92005160285;E.N.A.I.P. VENETO;TECNICO DEL RESTAURO DI BENI CULTURALI;TECNICO DEL RESTAURO DI BENI CULTURALI;25/01/2016;05/10/2017;118.787,40;0,50;35100:::35016;PADOVA:::PIAZZOLA SUL BRENTA;PADOVA;VENETO;ITALIA;Accesso all'occupazione per le persone in cerca di lavoro e le persone inattive, compresi i disoccupati di lunga durata e le persone distanti dal mercato del lavoro, anche attraverso iniziative locali per l'occupazione e il sostegno alla mobilit� dei lavoratori;30/06/2018
FSE;40159;H39J15004560009;92005160285;E.N.A.I.P. VENETO;TECNICO DEL RESTAURO DI BENI CULTURALI;TECNICO DEL RESTAURO DI BENI CULTURALI;25/01/2016;16/10/2017;110.788,80;0,50;35100:::35016;PADOVA:::PIAZZOLA SUL BRENTA;PADOVA;VENETO;ITALIA;Accesso all'occupazione per le persone in cerca di lavoro e le persone inattive, compresi i disoccupati di lunga durata e le persone distanti dal mercato del lavoro, anche attraverso iniziative locali per l'occupazione e il sostegno alla mobilit� dei lavoratori;30/06/2018
FSE;40160;H39J15004570009;92005160285;E.N.A.I.P. VENETO;TECNICO DEL RESTAURO DI BENI CULTURALI;TECNICO DEL RESTAURO DI BENI CULTURALI;25/01/2016;27/09/2017;104.017,00;0,50;35100:::35016;PADOVA:::PIAZZOLA SUL BRENTA;PADOVA;VENETO;ITALIA;Accesso all'occupazione per le persone in cerca di lavoro e le persone inattive, compresi i disoccupati di lunga durata e le persone distanti dal mercato del lavoro, anche attraverso iniziative locali per l'occupazione e il sostegno alla mobilit� dei lavoratori;30/06/2018
FSE;40161;H19J15002080009;02289210276;ECIPA  SOC. CONS. A.R.L.;TECNICO DEL RESTAURO DEI BENI CULTURALI (FS-Q1T);TECNICO DEL RESTAURO DEI BENI CULTURALI (FS-Q1T);21/01/2016;09/08/2017;115.580,00;0,50;45100;ROVIGO;ROVIGO;VENETO;ITALIA;Accesso all'occupazione per le persone in cerca di lavoro e le persone inattive, compresi i disoccupati di lunga durata e le persone distanti dal mercato del lavoro, anche attraverso iniziative locali per l'occupazione e il sostegno alla mobilit� dei lavoratori;30/06/2018
FSE;40181;H79J15002290007;92005160285;E.N.A.I.P. VENETO;UNA STRADA PER IL LAVORO: PERCORSI DI REINSERIMENTO OCCUPAZIONALE;UNA STRADA PER IL LAVORO: PERCORSI DI REINSERIMENTO OCCUPAZIONALE;15/10/2015;09/07/2017;203.601,40;0,50;32100:::31100:::35100;BELLUNO:::TREVISO:::PADOVA;TREVISO:::BELLUNO:::PADOVA;VENETO;ITALIA;Inclusione attiva, anche al fine di promuovere le pari opportunit�, e partecipazione attiva, nonch� migliore occupabilit�;30/06/2018
FSE;40182;H39J15002300007;00517380267;C.F.P. MADONNA DEL GRAPPA FILIALE DI CASA PRIMARIA IN TV DELLE F.D.C. CANOSSIANE;Addetto alle macchine al controllo numerico;Addetto alle macchine al controllo numerico;15/10/2015;19/06/2018;61.364,00;0,50;32100:::32032;BELLUNO:::FELTRE;BELLUNO;VENETO;ITALIA;Inclusione attiva, anche al fine di promuovere le pari opportunit�, e partecipazione attiva, nonch� migliore occupabilit�;30/06/2018
FSE;40183;H49J15001420009;01514790276;GIUSEPPE OLIVOTTI S.C.S.;Addetto ai prodotti da forno: pizza, pane e pasticceria;Addetto ai prodotti da forno: pizza, pane e pasticceria;27/10/2015;03/04/2018;61.044,00;0,50;30034:::30100;MIRA:::VENEZIA;VENEZIA;VENETO;ITALIA;Inclusione attiva, anche al fine di promuovere le pari opportunit�, e partecipazione attiva, nonch� migliore occupabilit�;30/06/2018
FSE;40184;H59J15001490007;02701760288;COOP. SERVICES SOCIETA' COOPERATIVA;addetti al marketing e social media marketing;addetti al marketing e social media marketing;15/10/2015;08/11/2017;49.720,00;0,50;35100:::45100:::35042;PADOVA:::ROVIGO:::ESTE;ROVIGO:::PADOVA;VENETO;ITALIA;Inclusione attiva, anche al fine di promuovere le pari opportunit�, e partecipazione attiva, nonch� migliore occupabilit�;30/06/2018
FSE;40185;H19J15001250007;04008340285;JOB SELECT SRL;Il tirocinio di inserimento lavorativo come strumento per favorire la ricollocazione professionale;Il tirocinio di inserimento lavorativo come strumento per favorire la ricollocazione professionale;19/10/2015;07/07/2017;26.488,00;0,50;35100:::45100;PADOVA:::ROVIGO;ROVIGO:::PADOVA;VENETO;ITALIA;Inclusione attiva, anche al fine di promuovere le pari opportunit�, e partecipazione attiva, nonch� migliore occupabilit�;30/06/2018
FSE;40186;H99J15002650007;80037180280;IRECOOP VENETO-ISTITUTO REGIONALE PER L'EDUCAZIONE- STUDI COOP. ASS.RICONOSCIUTI;PERCORSO DI INSERIMENTO LAVORATIVO CON TIROCINIO - FREDDI;PERCORSO DI INSERIMENTO LAVORATIVO CON TIROCINIO - FREDDI;21/10/2015;16/10/2017;4.376,00;0,50;35100;PADOVA;PADOVA;VENETO;ITALIA;Inclusione attiva, anche al fine di promuovere le pari opportunit�, e partecipazione attiva, nonch� migliore occupabilit�;30/06/2018
FSE;40187;H79J15002300007;02468430232;AIV FORMAZIONE SC;COMMESSO ALLA VENDITA AL MINUTO;COMMESSO ALLA VENDITA AL MINUTO;20/10/2015;09/07/2017;79.404,00;0,50;30100;VENEZIA;VENEZIA;VENETO;ITALIA;Inclusione attiva, anche al fine di promuovere le pari opportunit�, e partecipazione attiva, nonch� migliore occupabilit�;30/06/2018
FSE;40188;H99J15002670009;02495270270;KAIROS S.P.A.;Modellizzazione e stampa 3D per l'industria;Modellizzazione e stampa 3D per l'industria;26/10/2015;28/08/2017;46.120,00;0,50;35100;PADOVA;PADOVA;VENETO;ITALIA;Inclusione attiva, anche al fine di promuovere le pari opportunit�, e partecipazione attiva, nonch� migliore occupabilit�;30/06/2018
FSE;40189;H99J15002660007;02549750244;FINECO INNOVAZIONE SRL;Operatore di amministrazione e segreteria;Operatore di amministrazione e segreteria;23/10/2015;20/10/2017;59.612,00;0,50;35100;PADOVA;PADOVA;VENETO;ITALIA;Inclusione attiva, anche al fine di promuovere le pari opportunit�, e partecipazione attiva, nonch� migliore occupabilit�;30/06/2018
FSE;40190;H79J15002310007;02793590270;CO.GE.S.  DON LORENZO MILANI SOCIETA' COOPERATIVA SOCIALE;Addetto ai piani nei servizi alberghieri;Addetto ai piani nei servizi alberghieri;15/10/2015;03/04/2018;76.371,20;0,50;30100;VENEZIA;VENEZIA;VENETO;ITALIA;Inclusione attiva, anche al fine di promuovere le pari opportunit�, e partecipazione attiva, nonch� migliore occupabilit�;30/06/2018
FSE;40191;H49J15001430009;03612280267;PIANETA FORMAZIONE SRL SOCIETA' UNIPERSONALE;AGGIORNAMENTO PER ADDETTI AL DIGITAL DESIGN IN UN' OTTICA DI REINSERIMENTO NEL SETTORE TECNICO;AGGIORNAMENTO PER ADDETTI AL DIGITAL DESIGN IN UN' OTTICA DI REINSERIMENTO NEL SETTORE TECNICO;15/10/2015;25/07/2017;35.448,00;0,50;31100:::31050;TREVISO:::VILLORBA;TREVISO;VENETO;ITALIA;Inclusione attiva, anche al fine di promuovere le pari opportunit�, e partecipazione attiva, nonch� migliore occupabilit�;30/06/2018
FSE;40192;H49J15001440007;02301900268;UNINDUSTRIA TREVISO SERVIZI & FORMAZIONE SCARL;T.R.I.O. - Tempo della RIqualificazione Occupazionale;T.R.I.O. - Tempo della RIqualificazione Occupazionale;15/10/2015;03/10/2017;40.064,00;0,50;31100;TREVISO;TREVISO;VENETO;ITALIA;Inclusione attiva, anche al fine di promuovere le pari opportunit�, e partecipazione attiva, nonch� migliore occupabilit�;30/06/2018
FSE;40193;H79J15002320007;03266230279;APINDUSTRIA SERVIZI SRL;Percorso reinserimento lavorativo per profilo Front Back Office - competenze amministrative;Percorso reinserimento lavorativo per profilo Front Back Office - competenze amministrative;15/10/2015;28/03/2018;70.816,00;0,50;30100;VENEZIA;VENEZIA;VENETO;ITALIA;Inclusione attiva, anche al fine di promuovere le pari opportunit�, e partecipazione attiva, nonch� migliore occupabilit�;30/06/2018
FSE;40194;H79J15002330009;04459660280;PSYCHOMETRICS SRL;Key Profiles: addetto amministrativo, responsabile magazzino, addetto commerciale Italia-Estero;Key Profiles: addetto amministrativo, responsabile magazzino, addetto commerciale Italia-Estero;22/10/2015;20/10/2017;119.430,00;0,50;35027:::35100;NOVENTA PADOVANA:::PADOVA;PADOVA;VENETO;ITALIA;Inclusione attiva, anche al fine di promuovere le pari opportunit�, e partecipazione attiva, nonch� migliore occupabilit�;30/06/2018
FSE;40195;H29J15001070009;02700760248;RISORSE IN CRESCITA S.R.L.;REACT - Riqualificazione e accompagnamento;REACT - Riqualificazione e accompagnamento;20/10/2015;11/09/2017;120.253,60;0,50;36100:::36077;VICENZA:::ALTAVILLA VICENTINA;VICENZA;VENETO;ITALIA;Inclusione attiva, anche al fine di promuovere le pari opportunit�, e partecipazione attiva, nonch� migliore occupabilit�;30/06/2018
FSE;40196;H39J15002320007;03674660273;BOSCOLO SRL;Addetto elaborazione cedolini paga e amministrazione del personale;Addetto elaborazione cedolini paga e amministrazione del personale;15/10/2015;24/10/2017;81.888,00;0,50;35028:::30100:::35100;PIOVE DI SACCO:::VENEZIA:::PADOVA;VENEZIA:::PADOVA;VENETO;ITALIA;Inclusione attiva, anche al fine di promuovere le pari opportunit�, e partecipazione attiva, nonch� migliore occupabilit�;30/06/2018
FSE;40197;H99J15002680007;03541060269;G.I.F. SCARL GRUPPO INSEGNANTI FORMATORI;Competenze tecniche nella grafica 3D per l'occupabilit�;Competenze tecniche nella grafica 3D per l'occupabilit�;15/10/2015;13/11/2017;63.380,00;0,50;31046:::31100;ODERZO:::TREVISO;TREVISO;VENETO;ITALIA;Inclusione attiva, anche al fine di promuovere le pari opportunit�, e partecipazione attiva, nonch� migliore occupabilit�;30/06/2018
FSE;40198;H49J15001450007;03309470262;KOINOS - CONSORZIO PER LO SVILUPPO COOPERATIVO;LAVORARE NEI SERVIZI DI PULIZIE GREEN;LAVORARE NEI SERVIZI DI PULIZIE GREEN;27/10/2015;19/07/2017;39.122,00;0,50;31100;TREVISO;TREVISO;VENETO;ITALIA;Inclusione attiva, anche al fine di promuovere le pari opportunit�, e partecipazione attiva, nonch� migliore occupabilit�;30/06/2018
FSE;40199;H99J15002690007;02320070283;DOMANI DONNA SOCIETA COOPERATIVA IN BREVE 2D FORMAZIONE;Percorsi di riqualificazione per addetti all'assemblaggio di macchinari industriali;Percorsi di riqualificazione per addetti all'assemblaggio di macchinari industriali;29/10/2015;09/07/2017;62.348,00;0,50;35100;PADOVA;PADOVA;VENETO;ITALIA;Inclusione attiva, anche al fine di promuovere le pari opportunit�, e partecipazione attiva, nonch� migliore occupabilit�;30/06/2018
FSE;40200;H89J15002400007;02449180237;E.NA.C. ENTE NAZIONALE  CANOSSIANO;Competenze per la gestione dell'ufficio commerciale italia-estero per il reinserimento lavorativo;Competenze per la gestione dell'ufficio commerciale italia-estero per il reinserimento lavorativo;15/10/2015;26/07/2017;85.308,00;0,50;36100:::36015;VICENZA:::SCHIO;VICENZA;VENETO;ITALIA;Inclusione attiva, anche al fine di promuovere le pari opportunit�, e partecipazione attiva, nonch� migliore occupabilit�;30/06/2018
FSE;40201;H39J15002310007;02060610231;IL PONTE SOCIETA' COOPERATIVA SOCIALE ONLUS;PERCORSI DI REINSERIMENTO LAVORATIVO NELL'AMBITO DEI SERVIZI E MAGAZZINAGGIO;PERCORSI DI REINSERIMENTO LAVORATIVO NELL'AMBITO DEI SERVIZI E MAGAZZINAGGIO;27/10/2015;09/07/2017;55.224,00;0,50;37100;VERONA;VERONA;VENETO;ITALIA;Inclusione attiva, anche al fine di promuovere le pari opportunit�, e partecipazione attiva, nonch� migliore occupabilit�;30/06/2018
FSE;40221;H39J15004070009;04489420234;FONDAZIONE ENAC VENETO CFP CANOSSIANO;Percorsi di outplacement per i lavoratori dell'Azienda OVER MECCANICA SPA;Percorsi di outplacement per i lavoratori dell'Azienda OVER MECCANICA SPA;03/11/2015;20/06/2018;43.744,00;0,50;37100;VERONA;VERONA;VENETO;ITALIA;Adattamento al cambiamento da parte di lavoratori, imprese e imprenditori;30/06/2018
FSE;40222;H99J15005290009;02320070283;DOMANI DONNA SOCIETA COOPERATIVA IN BREVE 2D FORMAZIONE;Percorsi di outplacement per i lavoratori di Berto srl Unipersonale;Percorsi di outplacement per i lavoratori di Berto srl Unipersonale;04/11/2015;01/06/2016;52.780,00;0,50;36100:::36035;VICENZA:::MARANO VICENTINO;VICENZA;VENETO;ITALIA;Adattamento al cambiamento da parte di lavoratori, imprese e imprenditori;30/06/2018
FSE;40223;H79J15003380009;03266230279;APINDUSTRIA SERVIZI SRL;PROGETTO DI RIQUALIFICAZIONE PER L'AZIENDA L.O.R.I;PROGETTO DI RIQUALIFICAZIONE PER L'AZIENDA L.O.R.I;30/10/2015;11/09/2017;18.766,00;0,50;35027:::35100;NOVENTA PADOVANA:::PADOVA;PADOVA;VENETO;ITALIA;Adattamento al cambiamento da parte di lavoratori, imprese e imprenditori;30/06/2018
FSE;40224;H39J15004080009;02320070283;DOMANI DONNA SOCIETA COOPERATIVA IN BREVE 2D FORMAZIONE;Percorsi di riqualificazione professionale per i lavoratori de La Pagoda dei f.lli Loro snc;Percorsi di riqualificazione professionale per i lavoratori de La Pagoda dei f.lli Loro snc;04/11/2015;28/09/2017;38.704,00;0,50;36100:::36056;VICENZA:::TEZZE SUL BRENTA;VICENZA;VENETO;ITALIA;Adattamento al cambiamento da parte di lavoratori, imprese e imprenditori;30/06/2018
FSE;40261;H71E15000420009;80007580279;REGIONE DEL VENETO GIUNTA REGIONALE;PROROGA PROGETTO OBIETTIVO ASSISTENZA TECNICA FSE;PROROGA PROGETTO OBIETTIVO ASSISTENZA TECNICA FSE;01/11/2015;30/06/2018;2.036.743,54;0,50;30121;VENEZIA;VENEZIA;VENETO;ITALIA;Preparazione, attuazione, sorveglianza e ispezioni;30/06/2018
FSE;40301;H89J15002760009;03082810262;UOMO E IMPRESA S.R.L.;Progetto di Riqualificazione Professionale e Reimpiego di lavoratori in Cassa Integrazione Straordinaria provenienti dall'azienda BERTI PAVIMENTI SNC;Progetto di Riqualificazione Professionale e Reimpiego di lavoratori in Cassa Integrazione Straordinaria provenienti dall'azienda BERTI PAVIMENTI SNC;16/11/2015;11/01/2017;34.232,00;0,50;35013:::35100;CITTADELLA:::PADOVA;PADOVA;VENETO;ITALIA;Adattamento al cambiamento da parte di lavoratori, imprese e imprenditori;30/06/2018
FSE;40321;H59J15002350009;12730090151;RANDSTAD ITALIA SPA;BEAR UP: ACQUISIRE NUOVE COMPETENZE PER RIPARTIRE NEL MONDO DEL LAVORO;BEAR UP: ACQUISIRE NUOVE COMPETENZE PER RIPARTIRE NEL MONDO DEL LAVORO;18/12/2015;18/06/2018;45.776,00;0,50;30100:::30027;VENEZIA:::SAN DONA' DI PIAVE;VENEZIA;VENETO;ITALIA;Adattamento al cambiamento da parte di lavoratori, imprese e imprenditori;30/06/2018
FSE;40322;H59J15002360009;92005160285;E.N.A.I.P. VENETO;PROGETTO DI RIQUALIFICAZIONE PROFESSIONALE PER IL PERSONALE DI BERTI SNC;PROGETTO DI RIQUALIFICAZIONE PROFESSIONALE PER IL PERSONALE DI BERTI SNC;30/11/2015;05/10/2017;65.336,00;0,50;35010:::35100;VILLA DEL CONTE:::PADOVA;PADOVA;VENETO;ITALIA;Adattamento al cambiamento da parte di lavoratori, imprese e imprenditori;30/06/2018
FSE;40341;H11E14000770009;80007580279;REGIONE DEL VENETO GIUNTA REGIONALE;TECNOSTRUTTURA - PROGETTO DI ASSISTENZA TECNICA ISTITUZIONALE ALLA REGIONE DEL VENETO PERIODO 01/01/2015 - 31/12/2022;TECNOSTRUTTURA - PROGETTO DI ASSISTENZA TECNICA ISTITUZIONALE ALLA REGIONE DEL VENETO PERIODO 01/01/2015 - 31/12/2022;01/01/2015;30/09/2023;872.740,00;0,50;30121;VENEZIA;VENEZIA;VENETO;ITALIA;Preparazione, attuazione, sorveglianza e ispezioni;30/06/2018
FSE;40361;H11E14000780009;80007580279;REGIONE DEL VENETO GIUNTA REGIONALE;SERVIZIO DI ASSISTENZA TECNICA ALL'ADG POR FSE 2014/2020 - RTI TRA ARCHIDATA SRL ED MBS SRL;SERVIZIO DI ASSISTENZA TECNICA ALL'ADG POR FSE 2014/2020 - RTI TRA ARCHIDATA SRL ED MBS SRL;15/09/2015;30/11/2017;271.675,20;0,50;30121;VENEZIA;VENEZIA;VENETO;ITALIA;Preparazione, attuazione, sorveglianza e ispezioni;30/06/2018
FSE;40421;H79J15003500009;03395860103;CFLI - CONSORZIO FORMAZIONE LOGISTICA INTERMODALE;Percorso formativo per tecnico della logistica e delle spedizioni internazionali -  Work Experience specialistica;Percorso formativo per tecnico della logistica e delle spedizioni internazionali -  Work Experience specialistica;19/11/2015;16/10/2017;78.700,00;0,50;30100;VENEZIA;VENEZIA;VENETO;ITALIA;Accesso all'occupazione per le persone in cerca di lavoro e le persone inattive, compresi i disoccupati di lunga durata e le persone distanti dal mercato del lavoro, anche attraverso iniziative locali per l'occupazione e il sostegno alla mobilit� dei lavoratori;30/06/2018
FSE;40422;H79J15003510009;02708770231;SYNTHESIS SRL;Hotel Assistant Guest Relation - WE tipo specialistico;Hotel Assistant Guest Relation - WE tipo specialistico;20/11/2015;07/08/2017;74.064,00;0,50;35027:::35100;NOVENTA PADOVANA:::PADOVA;PADOVA;VENETO;ITALIA;Accesso all'occupazione per le persone in cerca di lavoro e le persone inattive, compresi i disoccupati di lunga durata e le persone distanti dal mercato del lavoro, anche attraverso iniziative locali per l'occupazione e il sostegno alla mobilit� dei lavoratori;30/06/2018
FSE;40423;H39J15004210009;02449180237;E.NA.C. ENTE NAZIONALE  CANOSSIANO;Work Experience di specializzazione per tecnico commerciale settore vitivinicolo;Work Experience di specializzazione per tecnico commerciale settore vitivinicolo;24/11/2015;20/06/2018;106.032,00;0,50;37100;VERONA;VERONA;VENETO;ITALIA;Accesso all'occupazione per le persone in cerca di lavoro e le persone inattive, compresi i disoccupati di lunga durata e le persone distanti dal mercato del lavoro, anche attraverso iniziative locali per l'occupazione e il sostegno alla mobilit� dei lavoratori;30/06/2018
FSE;40424;H19J15001970009;00932220270;FORMAT - FORMAZIONE TECNICA;Work Experience professionalizzante per operatore ai servizi di vendita dell'usato;Work Experience professionalizzante per operatore ai servizi di vendita dell'usato;24/11/2015;27/03/2018;52.280,00;0,50;36100:::30100:::35100;VICENZA:::VENEZIA:::PADOVA;VENEZIA:::PADOVA:::VICENZA;VENETO;ITALIA;Accesso all'occupazione per le persone in cerca di lavoro e le persone inattive, compresi i disoccupati di lunga durata e le persone distanti dal mercato del lavoro, anche attraverso iniziative locali per l'occupazione e il sostegno alla mobilit� dei lavoratori;30/06/2018
